Department,Entity,Transaction Date,Expense Type,Expense Area,Supplier,Transaction No.,Amount
"Department for Business, Energy and Industrial Strategy",The Coal Authority,30/11/2021,Applications Consultancy,ENV - Mine Water Operations,Schneider Electric Systems UK Ltd,117025,"29,738.33"
"Department for Business, Energy and Industrial Strategy",The Coal Authority,01/10/2021,Applications Consultancy,DIG - Technical Delivery,Cgi It Uk Ltd,117613,"5,077.73"
"Department for Business, Energy and Industrial Strategy",The Coal Authority,12/11/2021,Applications Consultancy,DIG - Technical Delivery,Cgi It Uk Ltd,118154,"1,749.47"
"Department for Business, Energy and Industrial Strategy",The Coal Authority,12/11/2021,Applications Consultancy,DIG - Technical Delivery,Cgi It Uk Ltd,118154,"23,189.70"
"Department for Business, Energy and Industrial Strategy",The Coal Authority,15/12/2021,Bank Charges,Finance,National Westminster Bank Plc,118399,65.28
"Department for Business, Energy and Industrial Strategy",The Coal Authority,03/12/2021,Bridgewater - Contractor Costs,PS&S - General Claims,The Bridgewater Canal Co Ltd,117422,"247,080.26"
"Department for Business, Energy and Industrial Strategy",The Coal Authority,11/12/2021,Bridgewater - Contractor Costs,PS&S - General Claims,The Bridgewater Canal Co Ltd,117831,"28,906.61"
"Department for Business, Energy and Industrial Strategy",The Coal Authority,18/12/2021,Bridgewater - Contractor Costs,PS&S - General Claims,The Bridgewater Canal Co Ltd,117832,"1,711.46"
"Department for Business, Energy and Industrial Strategy",The Coal Authority,05/10/2021,Business Entertainment / Hospitality,Executive,Government Procurement Card,118626,320.73
"Department for Business, Energy and Industrial Strategy",The Coal Authority,23/11/2021,Business Entertainment / Hospitality,DIG - Data Licensing,Government Procurement Card,118629,11.65
"Department for Business, Energy and Industrial Strategy",The Coal Authority,25/11/2021,Business Entertainment / Hospitality,Innovation By-Product & Services Delivery,Government Procurement Card,118629,16.70
"Department for Business, Energy and Industrial Strategy",The Coal Authority,25/11/2021,Business Entertainment / Hospitality,Innovation By-Product & Services Delivery,Government Procurement Card,118629,10.80
"Department for Business, Energy and Industrial Strategy",The Coal Authority,25/11/2021,Business Entertainment / Hospitality,Innovation By-Product & Services Delivery,Government Procurement Card,118629,37.20
"Department for Business, Energy and Industrial Strategy",The Coal Authority,25/11/2021,Business Entertainment / Hospitality,Innovation By-Product & Services Delivery,Government Procurement Card,118629,20.20
"Department for Business, Energy and Industrial Strategy",The Coal Authority,25/11/2021,Business Entertainment / Hospitality,Innovation By-Product & Services Delivery,Government Procurement Card,118629,81.70
"Department for Business, Energy and Industrial Strategy",The Coal Authority,25/11/2021,Business Entertainment / Hospitality,Innovation By-Product & Services Delivery,Government Procurement Card,118629,19.90
"Department for Business, Energy and Industrial Strategy",The Coal Authority,30/11/2021,Business Meetings,Board,Professor Laura McAllister,117053,"1,000.00"
"Department for Business, Energy and Industrial Strategy",The Coal Authority,07/12/2021,Business Meetings,PS&S - General Claims,Jurys Inn Newcastle,117684,420.00
"Department for Business, Energy and Industrial Strategy",The Coal Authority,15/06/2021,Business Meetings,PS&S - General Claims,West Denton Community Centre,117945,8.00
"Department for Business, Energy and Industrial Strategy",The Coal Authority,04/03/2020,Business Meetings,PS&S - General Claims,West Denton Community Centre,117946,4.00
"Department for Business, Energy and Industrial Strategy",The Coal Authority,11/12/2021,Business Meetings,PS&S - General Claims,West Denton Community Centre,117957,32.00
"Department for Business, Energy and Industrial Strategy",The Coal Authority,04/11/2021,Business Meetings,PS&S - General Claims,Government Procurement Card,118629,20.83
"Department for Business, Energy and Industrial Strategy",The Coal Authority,05/11/2021,Business Meetings,PS&S - Industry Claims,Government Procurement Card,118629,5.52
"Department for Business, Energy and Industrial Strategy",The Coal Authority,08/11/2021,Business Meetings,PS&S - Industry Claims,Government Procurement Card,118629,8.12
"Department for Business, Energy and Industrial Strategy",The Coal Authority,10/11/2021,Business Meetings,PS&S - Industry Claims,Government Procurement Card,118629,14.24
"Department for Business, Energy and Industrial Strategy",The Coal Authority,15/11/2021,Business Meetings,DIG - Data Licensing,Government Procurement Card,118629,224.00
"Department for Business, Energy and Industrial Strategy",The Coal Authority,16/11/2021,Business Meetings,DIG - Data Licensing,Government Procurement Card,118629,380.90
"Department for Business, Energy and Industrial Strategy",The Coal Authority,17/11/2021,Business Meetings,PS&S - Industry Claims,Government Procurement Card,118629,9.40
"Department for Business, Energy and Industrial Strategy",The Coal Authority,22/11/2021,Business Meetings,PS&S - General Claims,Government Procurement Card,118629,3.01
"Department for Business, Energy and Industrial Strategy",The Coal Authority,25/10/2021,Canteen Equipment,Facilities,Eden Springs UK LTD,117497,129.12
"Department for Business, Energy and Industrial Strategy",The Coal Authority,23/11/2021,Central Training,"Health, Safety & Wellbeing",Risk & Safety Management Serv,117113,289.00
"Department for Business, Energy and Industrial Strategy",The Coal Authority,21/07/2021,Central Training,"Health, Safety & Wellbeing",RRC International,117114,109.00
"Department for Business, Energy and Industrial Strategy",The Coal Authority,23/11/2021,Central Training,"Health, Safety & Wellbeing",Mines Rescue Service Limited,117879,156.00
"Department for Business, Energy and Industrial Strategy",The Coal Authority,09/12/2021,Central Training,People & Organisational Development,S P Foods,117981,84.50
"Department for Business, Energy and Industrial Strategy",The Coal Authority,16/12/2021,Central Training,People & Organisational Development,Oe Cam Llp,118361,514.29
"Department for Business, Energy and Industrial Strategy",The Coal Authority,16/12/2021,Central Training,People & Organisational Development,Oe Cam Llp,118361,321.44
"Department for Business, Energy and Industrial Strategy",The Coal Authority,16/12/2021,Central Training,People & Organisational Development,Oe Cam Llp,118362,233.93
"Department for Business, Energy and Industrial Strategy",The Coal Authority,16/12/2021,Central Training,People & Organisational Development,Oe Cam Llp,118363,"3,193.50"
"Department for Business, Energy and Industrial Strategy",The Coal Authority,16/12/2021,Central Training,People & Organisational Development,Oe Cam Llp,118363,"3,193.50"
"Department for Business, Energy and Industrial Strategy",The Coal Authority,16/12/2021,Central Training,People & Organisational Development,Oe Cam Llp,118364,150.00
"Department for Business, Energy and Industrial Strategy",The Coal Authority,16/12/2021,Central Training,People & Organisational Development,Oe Cam Llp,118365,"1,000.00"
"Department for Business, Energy and Industrial Strategy",The Coal Authority,16/12/2021,Central Training,People & Organisational Development,Oe Cam Llp,118365,"1,000.00"
"Department for Business, Energy and Industrial Strategy",The Coal Authority,16/12/2021,Central Training,People & Organisational Development,Oe Cam Llp,118657,599.17
"Department for Business, Energy and Industrial Strategy",The Coal Authority,16/12/2021,Central Training,People & Organisational Development,Oe Cam Llp,118657,622.55
"Department for Business, Energy and Industrial Strategy",The Coal Authority,11/11/2021,Central Training,People & Organisational Development,S P Foods,118674,101.40
"Department for Business, Energy and Industrial Strategy",The Coal Authority,10/11/2021,Consultancy - Commercialisation Costs,Consultancy-Infrastructure-Energy,RS Hydro Ltd,118030,253.00
"Department for Business, Energy and Industrial Strategy",The Coal Authority,10/11/2021,Consultancy - Commercialisation Costs,Consultancy-Infrastructure-Energy,RS Hydro Ltd,118030,253.00
"Department for Business, Energy and Industrial Strategy",The Coal Authority,10/11/2021,Consultancy - Commercialisation Costs,Consultancy-Infrastructure-Energy,RS Hydro Ltd,118030,66.00
"Department for Business, Energy and Industrial Strategy",The Coal Authority,07/10/2021,Consultancy - Property Management,DEV - Property Management,Deloitte Llp,118470,"9,000.00"
"Department for Business, Energy and Industrial Strategy",The Coal Authority,20/12/2021,Consultancy - Property Management,DEV - Property Management,Deloitte Llp,118548,"9,000.00"
"Department for Business, Energy and Industrial Strategy",The Coal Authority,06/12/2021,Contract Hire Vehicles,PS&S - General Claims,Kinto UK Limited,118322,15.00
"Department for Business, Energy and Industrial Strategy",The Coal Authority,29/11/2021,Contract Hire Vehicles,PS&S - General Claims,Kinto UK Limited,118324,"5,371.82"
"Department for Business, Energy and Industrial Strategy",The Coal Authority,29/11/2021,Contract Hire Vehicles,PS&S - General Claims,Kinto UK Limited,118324,0.02
"Department for Business, Energy and Industrial Strategy",The Coal Authority,29/11/2021,Contract Hire Vehicles,PS&S - General Claims,Kinto UK Limited,118324,581.91
"Department for Business, Energy and Industrial Strategy",The Coal Authority,29/11/2021,Contract Hire Vehicles,PS&S - General Claims,Kinto UK Limited,118324,537.18
"Department for Business, Energy and Industrial Strategy",The Coal Authority,29/11/2021,Contract Hire Vehicles,PS&S - General Claims,Kinto UK Limited,118324,"4,387.13"
"Department for Business, Energy and Industrial Strategy",The Coal Authority,29/11/2021,Contract Hire Vehicles,PS&S - General Claims,Kinto UK Limited,118324,581.89
"Department for Business, Energy and Industrial Strategy",The Coal Authority,29/11/2021,Contract Hire Vehicles,PS&S - General Claims,Kinto UK Limited,118324,438.71
"Department for Business, Energy and Industrial Strategy",The Coal Authority,29/11/2021,Contract Hire Vehicles,Tips Response,Kinto UK Limited,118324,420.23
"Department for Business, Energy and Industrial Strategy",The Coal Authority,29/11/2021,Contract Hire Vehicles,Tips Response,Kinto UK Limited,118324,87.70
"Department for Business, Energy and Industrial Strategy",The Coal Authority,29/11/2021,Contract Hire Vehicles,Tips Response,Kinto UK Limited,118324,42.02
"Department for Business, Energy and Industrial Strategy",The Coal Authority,26/11/2021,Contract Hire Vehicles,PS&S - General Claims,Kinto UK Limited,118326,295.15
"Department for Business, Energy and Industrial Strategy",The Coal Authority,26/11/2021,Contract Hire Vehicles,PS&S - General Claims,Kinto UK Limited,118326,51.78
"Department for Business, Energy and Industrial Strategy",The Coal Authority,26/11/2021,Contract Hire Vehicles,PS&S - General Claims,Kinto UK Limited,118326,29.52
"Department for Business, Energy and Industrial Strategy",The Coal Authority,26/11/2021,Contract Hire Vehicles,PS&S - General Claims,Kinto UK Limited,118326,0.00
"Department for Business, Energy and Industrial Strategy",The Coal Authority,03/11/2021,Contract Hire Vehicles,PS&S - General Claims,Government Procurement Card,118629,4.16
"Department for Business, Energy and Industrial Strategy",The Coal Authority,08/12/2021,CY - Fix & Fit (Bought) - Additions,Facilities,Gresham Office Furniture,118110,749.20
"Department for Business, Energy and Industrial Strategy",The Coal Authority,08/12/2021,CY - Fix & Fit (Bought) - Additions,Facilities,Gresham Office Furniture,118110,"2,032.80"
"Department for Business, Energy and Industrial Strategy",The Coal Authority,18/11/2021,CY - Head Office Buildings - Additions,Facilities,northwest security services ltd,118013,"14,100.00"
"Department for Business, Energy and Industrial Strategy",The Coal Authority,14/12/2021,CY - Head Office Buildings - Additions,Facilities,northwest security services ltd,118115,"9,900.00"
"Department for Business, Energy and Industrial Strategy",The Coal Authority,14/12/2021,CY - Head Office Buildings - Additions,Facilities,northwest security services ltd,118115,350.00
"Department for Business, Energy and Industrial Strategy",The Coal Authority,14/12/2021,CY - Head Office Buildings - Additions,Facilities,northwest security services ltd,118115,"1,750.00"
"Department for Business, Energy and Industrial Strategy",The Coal Authority,30/11/2021,CY - Intangible IT - Additions,ENV - Mine Water Operations,Schneider Electric Systems UK Ltd,117025,"6,213.24"
"Department for Business, Energy and Industrial Strategy",The Coal Authority,01/10/2021,CY - Intangible IT - Additions,DEV - Permissions,Cgi It Uk Ltd,117613,"11,396.09"
"Department for Business, Energy and Industrial Strategy",The Coal Authority,01/10/2021,CY - Intangible IT - Additions,Records Management,Cgi It Uk Ltd,117613,"7,775.37"
"Department for Business, Energy and Industrial Strategy",The Coal Authority,12/11/2021,CY - Intangible IT - Additions,DEV - Permissions,Cgi It Uk Ltd,118154,"11,434.22"
"Department for Business, Energy and Industrial Strategy",The Coal Authority,12/11/2021,CY - Intangible IT - Additions,Records Management,Cgi It Uk Ltd,118154,"1,909.74"
"Department for Business, Energy and Industrial Strategy",The Coal Authority,21/12/2021,CY - Intangible IT - Additions,ENV - Mine Water Operations,Schneider Electric Systems UK Ltd,118547,"5,073.22"
"Department for Business, Energy and Industrial Strategy",The Coal Authority,22/11/2021,CY - Land - Additions,ENV - Projects & Delivery,George F White,118614,362.00
"Department for Business, Energy and Industrial Strategy",The Coal Authority,01/12/2021,CY - Minewater Scheme - Additions,ENV - Projects & Delivery,Alun Griffiths (Contractors) Ltd,117008,"42,000.69"
"Department for Business, Energy and Industrial Strategy",The Coal Authority,08/10/2021,CY - Minewater Scheme - Additions,ENV - Projects & Delivery,Kier Integrated Services Limited,117190,"25,000.00"
"Department for Business, Energy and Industrial Strategy",The Coal Authority,08/10/2021,CY - Minewater Scheme - Additions,ENV - Projects & Delivery,Kier Integrated Services Limited,117190,"1,378.81"
"Department for Business, Energy and Industrial Strategy",The Coal Authority,03/12/2021,CY - Minewater Scheme - Additions,ENV - Projects & Delivery,Socotec,117322,-17.44
"Department for Business, Energy and Industrial Strategy",The Coal Authority,07/12/2021,CY - Minewater Scheme - Additions,ENV - Projects & Delivery,J N Bentley Limited,117410,"24,413.40"
"Department for Business, Energy and Industrial Strategy",The Coal Authority,07/12/2021,CY - Minewater Scheme - Additions,ENV - Projects & Delivery,J N Bentley Limited,117410,"20,715.64"
"Department for Business, Energy and Industrial Strategy",The Coal Authority,16/09/2021,CY - Minewater Scheme - Additions,ENV - Projects & Delivery,J N Bentley Limited,117440,"21,361.72"
"Department for Business, Energy and Industrial Strategy",The Coal Authority,16/09/2021,CY - Minewater Scheme - Additions,ENV - Projects & Delivery,J N Bentley Limited,117440,"20,650.36"
"Department for Business, Energy and Industrial Strategy",The Coal Authority,16/09/2021,CY - Minewater Scheme - Additions,ENV - Projects & Delivery,J N Bentley Limited,117440,0.00
"Department for Business, Energy and Industrial Strategy",The Coal Authority,01/12/2021,CY - Minewater Scheme - Additions,ENV - Projects & Delivery,J N Bentley Limited,117445,"23,573.84"
"Department for Business, Energy and Industrial Strategy",The Coal Authority,01/12/2021,CY - Minewater Scheme - Additions,ENV - Projects & Delivery,J N Bentley Limited,117445,"1,806.47"
"Department for Business, Energy and Industrial Strategy",The Coal Authority,10/12/2021,CY - Minewater Scheme - Additions,ENV - Projects & Delivery,J N Bentley Limited,117815,"17,042.77"
"Department for Business, Energy and Industrial Strategy",The Coal Authority,10/12/2021,CY - Minewater Scheme - Additions,ENV - Projects & Delivery,J N Bentley Limited,117815,"4,255.58"
"Department for Business, Energy and Industrial Strategy",The Coal Authority,12/12/2021,CY - Minewater Scheme - Additions,ENV - Projects & Delivery,J N Bentley Limited,117816,"1,295.15"
"Department for Business, Energy and Industrial Strategy",The Coal Authority,12/12/2021,CY - Minewater Scheme - Additions,ENV - Projects & Delivery,J N Bentley Limited,117816,"1,791.54"
"Department for Business, Energy and Industrial Strategy",The Coal Authority,12/12/2021,CY - Minewater Scheme - Additions,ENV - Projects & Delivery,J N Bentley Limited,117816,"15,607.15"
"Department for Business, Energy and Industrial Strategy",The Coal Authority,12/12/2021,CY - Minewater Scheme - Additions,ENV - Projects & Delivery,J N Bentley Limited,117816,"3,562.45"
"Department for Business, Energy and Industrial Strategy",The Coal Authority,12/12/2021,CY - Minewater Scheme - Additions,ENV - Projects & Delivery,J N Bentley Limited,117816,"14,987.46"
"Department for Business, Energy and Industrial Strategy",The Coal Authority,12/12/2021,CY - Minewater Scheme - Additions,ENV - Projects & Delivery,J N Bentley Limited,117816,"2,754.16"
"Department for Business, Energy and Industrial Strategy",The Coal Authority,12/12/2021,CY - Minewater Scheme - Additions,ENV - Projects & Delivery,J N Bentley Limited,117816,"2,605.77"
"Department for Business, Energy and Industrial Strategy",The Coal Authority,12/12/2021,CY - Minewater Scheme - Additions,ENV - Projects & Delivery,J N Bentley Limited,117816,"12,187.44"
"Department for Business, Energy and Industrial Strategy",The Coal Authority,12/12/2021,CY - Minewater Scheme - Additions,ENV - Projects & Delivery,J N Bentley Limited,117816,"4,956.19"
"Department for Business, Energy and Industrial Strategy",The Coal Authority,12/12/2021,CY - Minewater Scheme - Additions,ENV - Projects & Delivery,J N Bentley Limited,117816,"1,855.48"
"Department for Business, Energy and Industrial Strategy",The Coal Authority,12/12/2021,CY - Minewater Scheme - Additions,ENV - Projects & Delivery,J N Bentley Limited,117816,"4,997.88"
"Department for Business, Energy and Industrial Strategy",The Coal Authority,12/12/2021,CY - Minewater Scheme - Additions,ENV - Projects & Delivery,J N Bentley Limited,117816,"5,058.94"
"Department for Business, Energy and Industrial Strategy",The Coal Authority,12/12/2021,CY - Minewater Scheme - Additions,ENV - Projects & Delivery,J N Bentley Limited,117816,"3,619.71"
"Department for Business, Energy and Industrial Strategy",The Coal Authority,12/12/2021,CY - Minewater Scheme - Additions,ENV - Projects & Delivery,J N Bentley Limited,117816,"1,325.72"
"Department for Business, Energy and Industrial Strategy",The Coal Authority,12/12/2021,CY - Minewater Scheme - Additions,ENV - Projects & Delivery,J N Bentley Limited,117816,"1,382.51"
"Department for Business, Energy and Industrial Strategy",The Coal Authority,12/12/2021,CY - Minewater Scheme - Additions,ENV - Projects & Delivery,J N Bentley Limited,117816,"3,685.63"
"Department for Business, Energy and Industrial Strategy",The Coal Authority,19/11/2021,CY - Minewater Scheme - Additions,ENV - Projects & Delivery,WSP UK Ltd,117944,"3,432.83"
"Department for Business, Energy and Industrial Strategy",The Coal Authority,19/11/2021,CY - Minewater Scheme - Additions,ENV - Projects & Delivery,WSP UK Ltd,117944,"8,362.00"
"Department for Business, Energy and Industrial Strategy",The Coal Authority,19/11/2021,CY - Minewater Scheme - Additions,ENV - Projects & Delivery,WSP UK Ltd,117944,"15,234.17"
"Department for Business, Energy and Industrial Strategy",The Coal Authority,09/12/2021,CY - Minewater Scheme - Additions,ENV - Mine Water Operations,Severn Trent Serv Ops Uk Ltd,118246,"3,858.60"
"Department for Business, Energy and Industrial Strategy",The Coal Authority,09/12/2021,CY - Minewater Scheme - Additions,ENV - Mine Water Operations,Severn Trent Serv Ops Uk Ltd,118246,"2,531.92"
"Department for Business, Energy and Industrial Strategy",The Coal Authority,09/12/2021,CY - Minewater Scheme - Additions,ENV - Mine Water Operations,Severn Trent Serv Ops Uk Ltd,118246,85.14
"Department for Business, Energy and Industrial Strategy",The Coal Authority,09/12/2021,CY - Minewater Scheme - Additions,ENV - Mine Water Operations,Severn Trent Serv Ops Uk Ltd,118246,"4,385.67"
"Department for Business, Energy and Industrial Strategy",The Coal Authority,09/12/2021,CY - Minewater Scheme - Additions,ENV - Mine Water Operations,Severn Trent Serv Ops Uk Ltd,118246,72.41
"Department for Business, Energy and Industrial Strategy",The Coal Authority,09/12/2021,CY - Minewater Scheme - Additions,ENV - Mine Water Operations,Severn Trent Serv Ops Uk Ltd,118246,217.22
"Department for Business, Energy and Industrial Strategy",The Coal Authority,09/12/2021,CY - Minewater Scheme - Additions,ENV - Mine Water Operations,Severn Trent Serv Ops Uk Ltd,118246,"1,166.59"
"Department for Business, Energy and Industrial Strategy",The Coal Authority,09/12/2021,CY - Minewater Scheme - Additions,ENV - Mine Water Operations,Severn Trent Serv Ops Uk Ltd,118246,705.86
"Department for Business, Energy and Industrial Strategy",The Coal Authority,09/12/2021,CY - Minewater Scheme - Additions,ENV - Mine Water Operations,Severn Trent Serv Ops Uk Ltd,118246,"4,543.47"
"Department for Business, Energy and Industrial Strategy",The Coal Authority,09/12/2021,CY - Minewater Scheme - Additions,ENV - Mine Water Operations,Severn Trent Serv Ops Uk Ltd,118246,464.19
"Department for Business, Energy and Industrial Strategy",The Coal Authority,09/12/2021,CY - Minewater Scheme - Additions,ENV - Mine Water Operations,Severn Trent Serv Ops Uk Ltd,118246,56.76
"Department for Business, Energy and Industrial Strategy",The Coal Authority,09/12/2021,CY - Minewater Scheme - Additions,ENV - Mine Water Operations,Severn Trent Serv Ops Uk Ltd,118246,"13,335.71"
"Department for Business, Energy and Industrial Strategy",The Coal Authority,09/12/2021,CY - Minewater Scheme - Additions,ENV - Mine Water Operations,Severn Trent Serv Ops Uk Ltd,118246,"16,250.13"
"Department for Business, Energy and Industrial Strategy",The Coal Authority,09/12/2021,CY - Minewater Scheme - Additions,ENV - Mine Water Operations,Severn Trent Serv Ops Uk Ltd,118246,"2,564.60"
"Department for Business, Energy and Industrial Strategy",The Coal Authority,09/12/2021,CY - Minewater Scheme - Additions,ENV - Mine Water Operations,Severn Trent Serv Ops Uk Ltd,118246,464.19
"Department for Business, Energy and Industrial Strategy",The Coal Authority,09/12/2021,CY - Minewater Scheme - Additions,ENV - Mine Water Operations,Severn Trent Serv Ops Uk Ltd,118246,232.10
"Department for Business, Energy and Industrial Strategy",The Coal Authority,09/12/2021,CY - Minewater Scheme - Additions,ENV - Mine Water Operations,Severn Trent Serv Ops Uk Ltd,118246,232.10
"Department for Business, Energy and Industrial Strategy",The Coal Authority,09/12/2021,CY - Minewater Scheme - Additions,ENV - Mine Water Operations,Severn Trent Serv Ops Uk Ltd,118246,"158,443.17"
"Department for Business, Energy and Industrial Strategy",The Coal Authority,09/12/2021,CY - Minewater Scheme - Additions,ENV - Mine Water Operations,Severn Trent Serv Ops Uk Ltd,118246,"3,415.64"
"Department for Business, Energy and Industrial Strategy",The Coal Authority,09/12/2021,CY - Minewater Scheme - Additions,ENV - Mine Water Operations,Severn Trent Serv Ops Uk Ltd,118246,0.00
"Department for Business, Energy and Industrial Strategy",The Coal Authority,09/12/2021,CY - Minewater Scheme - Additions,ENV - Mine Water Operations,Severn Trent Serv Ops Uk Ltd,118246,56.76
"Department for Business, Energy and Industrial Strategy",The Coal Authority,09/12/2021,CY - Minewater Scheme - Additions,ENV - Mine Water Operations,Severn Trent Serv Ops Uk Ltd,118246,"21,559.64"
"Department for Business, Energy and Industrial Strategy",The Coal Authority,09/12/2021,CY - Minewater Scheme - Additions,ENV - Mine Water Operations,Severn Trent Serv Ops Uk Ltd,118246,745.46
"Department for Business, Energy and Industrial Strategy",The Coal Authority,09/12/2021,CY - Minewater Scheme - Additions,ENV - Mine Water Operations,Severn Trent Serv Ops Uk Ltd,118246,612.15
"Department for Business, Energy and Industrial Strategy",The Coal Authority,09/12/2021,CY - Minewater Scheme - Additions,ENV - Mine Water Operations,Severn Trent Serv Ops Uk Ltd,118246,121.44
"Department for Business, Energy and Industrial Strategy",The Coal Authority,09/12/2021,CY - Minewater Scheme - Additions,ENV - Mine Water Operations,Severn Trent Serv Ops Uk Ltd,118246,203.16
"Department for Business, Energy and Industrial Strategy",The Coal Authority,09/12/2021,CY - Minewater Scheme - Additions,ENV - Mine Water Operations,Severn Trent Serv Ops Uk Ltd,118246,"40,558.39"
"Department for Business, Energy and Industrial Strategy",The Coal Authority,09/12/2021,CY - Minewater Scheme - Additions,ENV - Mine Water Operations,Severn Trent Serv Ops Uk Ltd,118246,"2,188.83"
"Department for Business, Energy and Industrial Strategy",The Coal Authority,09/12/2021,CY - Minewater Scheme - Additions,ENV - Mine Water Operations,Severn Trent Serv Ops Uk Ltd,118246,"2,010.21"
"Department for Business, Energy and Industrial Strategy",The Coal Authority,09/12/2021,CY - Minewater Scheme - Additions,ENV - Mine Water Operations,Severn Trent Serv Ops Uk Ltd,118246,612.15
"Department for Business, Energy and Industrial Strategy",The Coal Authority,09/12/2021,CY - Minewater Scheme - Additions,ENV - Mine Water Operations,Severn Trent Serv Ops Uk Ltd,118246,637.12
"Department for Business, Energy and Industrial Strategy",The Coal Authority,09/12/2021,CY - Minewater Scheme - Additions,ENV - Mine Water Operations,Severn Trent Serv Ops Uk Ltd,118246,612.15
"Department for Business, Energy and Industrial Strategy",The Coal Authority,09/12/2021,CY - Minewater Scheme - Additions,ENV - Mine Water Operations,Severn Trent Serv Ops Uk Ltd,118246,612.15
"Department for Business, Energy and Industrial Strategy",The Coal Authority,09/12/2021,CY - Minewater Scheme - Additions,ENV - Mine Water Operations,Severn Trent Serv Ops Uk Ltd,118246,"19,151.24"
"Department for Business, Energy and Industrial Strategy",The Coal Authority,09/12/2021,CY - Minewater Scheme - Additions,ENV - Mine Water Operations,Severn Trent Serv Ops Uk Ltd,118246,144.81
"Department for Business, Energy and Industrial Strategy",The Coal Authority,09/12/2021,CY - Minewater Scheme - Additions,ENV - Mine Water Operations,Severn Trent Serv Ops Uk Ltd,118246,72.41
"Department for Business, Energy and Industrial Strategy",The Coal Authority,09/12/2021,CY - Minewater Scheme - Additions,ENV - Mine Water Operations,Severn Trent Serv Ops Uk Ltd,118246,"4,336.97"
"Department for Business, Energy and Industrial Strategy",The Coal Authority,09/12/2021,CY - Minewater Scheme - Additions,ENV - Mine Water Operations,Severn Trent Serv Ops Uk Ltd,118246,73.34
"Department for Business, Energy and Industrial Strategy",The Coal Authority,09/12/2021,CY - Minewater Scheme - Additions,ENV - Mine Water Operations,Severn Trent Serv Ops Uk Ltd,118246,364.31
"Department for Business, Energy and Industrial Strategy",The Coal Authority,09/12/2021,CY - Minewater Scheme - Additions,ENV - Mine Water Operations,Severn Trent Serv Ops Uk Ltd,118246,"1,133.49"
"Department for Business, Energy and Industrial Strategy",The Coal Authority,09/12/2021,CY - Minewater Scheme - Additions,ENV - Mine Water Operations,Severn Trent Serv Ops Uk Ltd,118246,72.41
"Department for Business, Energy and Industrial Strategy",The Coal Authority,09/12/2021,CY - Minewater Scheme - Additions,ENV - Mine Water Operations,Severn Trent Serv Ops Uk Ltd,118246,56.76
"Department for Business, Energy and Industrial Strategy",The Coal Authority,09/12/2021,CY - Minewater Scheme - Additions,ENV - Mine Water Operations,Severn Trent Serv Ops Uk Ltd,118246,144.81
"Department for Business, Energy and Industrial Strategy",The Coal Authority,09/12/2021,CY - Minewater Scheme - Additions,ENV - Mine Water Operations,Severn Trent Serv Ops Uk Ltd,118246,144.81
"Department for Business, Energy and Industrial Strategy",The Coal Authority,09/12/2021,CY - Minewater Scheme - Additions,ENV - Projects & Delivery,Severn Trent Serv Ops Uk Ltd,118246,"11,587.48"
"Department for Business, Energy and Industrial Strategy",The Coal Authority,09/12/2021,CY - Minewater Scheme - Additions,ENV - Projects & Delivery,Severn Trent Serv Ops Uk Ltd,118246,312.50
"Department for Business, Energy and Industrial Strategy",The Coal Authority,09/12/2021,CY - Minewater Scheme - Additions,ENV - Projects & Delivery,Severn Trent Serv Ops Uk Ltd,118246,704.28
"Department for Business, Energy and Industrial Strategy",The Coal Authority,09/12/2021,CY - Minewater Scheme - Additions,ENV - Projects & Delivery,Severn Trent Serv Ops Uk Ltd,118246,327.79
"Department for Business, Energy and Industrial Strategy",The Coal Authority,09/12/2021,CY - Minewater Scheme - Additions,ENV - Projects & Delivery,Severn Trent Serv Ops Uk Ltd,118246,318.71
"Department for Business, Energy and Industrial Strategy",The Coal Authority,09/12/2021,CY - Minewater Scheme - Additions,ENV - Projects & Delivery,Severn Trent Serv Ops Uk Ltd,118246,651.64
"Department for Business, Energy and Industrial Strategy",The Coal Authority,09/12/2021,CY - Minewater Scheme - Additions,ENV - Projects & Delivery,Severn Trent Serv Ops Uk Ltd,118246,"1,835.31"
"Department for Business, Energy and Industrial Strategy",The Coal Authority,09/12/2021,CY - Minewater Scheme - Additions,ENV - Projects & Delivery,Severn Trent Serv Ops Uk Ltd,118246,64.25
"Department for Business, Energy and Industrial Strategy",The Coal Authority,09/12/2021,CY - Minewater Scheme - Additions,ENV - Projects & Delivery,Severn Trent Serv Ops Uk Ltd,118246,"1,318.02"
"Department for Business, Energy and Industrial Strategy",The Coal Authority,17/12/2021,CY - Minewater Scheme - Additions,ENV - Mine Water Operations,Severn Trent Serv Ops Uk Ltd,118251,"-5,534.62"
"Department for Business, Energy and Industrial Strategy",The Coal Authority,17/12/2021,CY - Minewater Scheme - Additions,ENV - Mine Water Operations,Severn Trent Serv Ops Uk Ltd,118251,"-2,091.75"
"Department for Business, Energy and Industrial Strategy",The Coal Authority,03/12/2021,CY - Minewater Scheme - Additions,ENV - Projects & Delivery,J N Bentley Limited,118396,"2,650.28"
"Department for Business, Energy and Industrial Strategy",The Coal Authority,03/12/2021,CY - Minewater Scheme - Additions,ENV - Projects & Delivery,J N Bentley Limited,118396,661.77
"Department for Business, Energy and Industrial Strategy",The Coal Authority,30/11/2021,CY - Non-coal Minewater - Additions,DEFRA LEP Funding,Enviro Centre,117286,"4,700.00"
"Department for Business, Energy and Industrial Strategy",The Coal Authority,01/12/2021,CY - Non-coal Minewater - Additions,DEFRA Metal Mine Programme,Detectronic Limited,117317,500.00
"Department for Business, Energy and Industrial Strategy",The Coal Authority,09/12/2021,CY - Non-coal Minewater - Additions,DEFRA LEP Funding,Aecom Infrastructure & Env,117685,901.26
"Department for Business, Energy and Industrial Strategy",The Coal Authority,07/12/2021,CY - Non-coal Minewater - Additions,DEFRA Metal Mine Programme,John F Hunt Regeneration Ltd,117862,"2,539.42"
"Department for Business, Energy and Industrial Strategy",The Coal Authority,10/12/2021,CY - Non-coal Minewater - Additions,DEFRA LEP Funding,Aecom Infrastructure & Env,118138,"2,260.87"
"Department for Business, Energy and Industrial Strategy",The Coal Authority,09/12/2021,CY - Non-coal Minewater - Additions,DEFRA Metal Mine Programme,Severn Trent Serv Ops Uk Ltd,118233,"24,677.26"
"Department for Business, Energy and Industrial Strategy",The Coal Authority,07/12/2021,CY - Non-coal Minewater - Additions,DEFRA LEP Funding,I & H Brown Limited,118409,"5,746.63"
"Department for Business, Energy and Industrial Strategy",The Coal Authority,07/12/2021,CY - Non-coal Minewater - Additions,DEFRA LEP Funding,I & H Brown Limited,118409,"7,676.01"
"Department for Business, Energy and Industrial Strategy",The Coal Authority,07/12/2021,CY - Non-coal Minewater - Additions,DEFRA LEP Funding,I & H Brown Limited,118409,"2,210.62"
"Department for Business, Energy and Industrial Strategy",The Coal Authority,07/12/2021,CY - Non-coal Minewater - Additions,DEFRA LEP Funding,I & H Brown Limited,118409,"19,503.26"
"Department for Business, Energy and Industrial Strategy",The Coal Authority,07/12/2021,CY - Non-coal Minewater - Additions,DEFRA LEP Funding,I & H Brown Limited,118409,"33,562.63"
"Department for Business, Energy and Industrial Strategy",The Coal Authority,07/12/2021,CY - Non-coal Minewater - Additions,DEFRA LEP Funding,I & H Brown Limited,118409,884.78
"Department for Business, Energy and Industrial Strategy",The Coal Authority,07/12/2021,CY - Non-coal Minewater - Additions,DEFRA LEP Funding,I & H Brown Limited,118409,575.11
"Department for Business, Energy and Industrial Strategy",The Coal Authority,07/12/2021,CY - Non-coal Minewater - Additions,DEFRA LEP Funding,I & H Brown Limited,118409,"9,793.32"
"Department for Business, Energy and Industrial Strategy",The Coal Authority,07/12/2021,CY - Non-coal Minewater - Additions,DEFRA LEP Funding,I & H Brown Limited,118409,"9,919.34"
"Department for Business, Energy and Industrial Strategy",The Coal Authority,07/12/2021,CY - Non-coal Minewater - Additions,DEFRA LEP Funding,I & H Brown Limited,118409,555.83
"Department for Business, Energy and Industrial Strategy",The Coal Authority,17/12/2021,CY - Non-coal Minewater - Additions,DEFRA LEP Funding,I & H Brown Limited,118410,"54,610.53"
"Department for Business, Energy and Industrial Strategy",The Coal Authority,17/12/2021,CY - Non-coal Minewater - Additions,DEFRA LEP Funding,I & H Brown Limited,118410,"2,662.48"
"Department for Business, Energy and Industrial Strategy",The Coal Authority,09/12/2021,CY - Non-coal Minewater - Additions,DEFRA LEP Funding,Aecom Infrastructure & Env,118574,"2,867.58"
"Department for Business, Energy and Industrial Strategy",The Coal Authority,09/12/2021,CY - Non-coal Minewater - Additions,DEFRA LEP Funding,Aecom Infrastructure & Env,118574,"2,987.65"
"Department for Business, Energy and Industrial Strategy",The Coal Authority,09/12/2021,CY - Non-coal Minewater - Additions,DEFRA LEP Funding,Aecom Infrastructure & Env,118574,"2,485.89"
"Department for Business, Energy and Industrial Strategy",The Coal Authority,09/12/2021,CY - Non-coal Minewater - Additions,DEFRA LEP Funding,Aecom Infrastructure & Env,118574,126.98
"Department for Business, Energy and Industrial Strategy",The Coal Authority,09/12/2021,CY - Non-coal Minewater - Additions,DEFRA LEP Funding,Aecom Infrastructure & Env,118574,474.91
"Department for Business, Energy and Industrial Strategy",The Coal Authority,09/12/2021,CY - Non-coal Minewater - Additions,DEFRA LEP Funding,Aecom Infrastructure & Env,118574,0.00
"Department for Business, Energy and Industrial Strategy",The Coal Authority,09/12/2021,CY - Plant & Machinery - Additions,ENV - Mine Water Operations,Severn Trent Serv Ops Uk Ltd,118246,85.14
"Department for Business, Energy and Industrial Strategy",The Coal Authority,13/12/2021,CY - Software Licences - Additions,Finance,Sapphire Systems Plc,117990,"3,456.00"
"Department for Business, Energy and Industrial Strategy",The Coal Authority,13/12/2021,CY - Software Licences - Additions,Finance,Sapphire Systems Plc,117990,759.31
"Department for Business, Energy and Industrial Strategy",The Coal Authority,09/12/2021,CY - Subsidence Pumping - Additions,ENV - Mine Water Operations,Severn Trent Serv Ops Uk Ltd,118246,"1,727.72"
"Department for Business, Energy and Industrial Strategy",The Coal Authority,30/11/2021,CY - Tangible IT - Additions,ENV - Mine Water Operations,Schneider Electric Systems UK Ltd,117025,"51,142.22"
"Department for Business, Energy and Industrial Strategy",The Coal Authority,30/11/2021,CY - Tangible IT - Additions,ENV - Mine Water Operations,Schneider Electric Systems UK Ltd,117025,0.00
"Department for Business, Energy and Industrial Strategy",The Coal Authority,24/11/2021,CY - Tangible IT - Additions,DIG - Service & Assurance,Konica Minolta Business Sltns Ltd,117107,85.82
"Department for Business, Energy and Industrial Strategy",The Coal Authority,24/11/2021,CY - Tangible IT - Additions,DIG - Service & Assurance,Konica Minolta Business Sltns Ltd,117107,-0.01
"Department for Business, Energy and Industrial Strategy",The Coal Authority,24/11/2021,CY - Tangible IT - Additions,DIG - Service & Assurance,Konica Minolta Business Sltns Ltd,117109,85.82
"Department for Business, Energy and Industrial Strategy",The Coal Authority,24/11/2021,CY - Tangible IT - Additions,DIG - Service & Assurance,Konica Minolta Business Sltns Ltd,117109,-0.01
"Department for Business, Energy and Industrial Strategy",The Coal Authority,21/12/2021,CY - Tangible IT - Additions,ENV - Mine Water Operations,Schneider Electric Systems UK Ltd,118547,"3,536.24"
"Department for Business, Energy and Industrial Strategy",The Coal Authority,18/10/2021,Desktop Computing,DIG - Technical Delivery,Ergo Computing  UK Ltd,117131,"3,076.00"
"Department for Business, Energy and Industrial Strategy",The Coal Authority,15/11/2021,Desktop Computing,"Health, Safety & Wellbeing",Government Procurement Card,118629,12.48
"Department for Business, Energy and Industrial Strategy",The Coal Authority,01/12/2021,eCommerce Commission Charges,DEV - Permissions,Worldpay Limited,117872,7.25
"Department for Business, Energy and Industrial Strategy",The Coal Authority,01/12/2021,eCommerce Commission Charges,Customer Services & Strategy,Worldpay Limited,118573,160.00
"Department for Business, Energy and Industrial Strategy",The Coal Authority,24/11/2021,External Agency / Introduction Fees,People & Organisational Development,Distinct Recruitment,117055,"4,532.55"
"Department for Business, Energy and Industrial Strategy",The Coal Authority,20/10/2021,External Agency / Introduction Fees,"Health, Safety & Wellbeing",Distinct Recruitment,117881,391.23
"Department for Business, Energy and Industrial Strategy",The Coal Authority,31/10/2021,External Agency / Introduction Fees,"Health, Safety & Wellbeing",Distinct Recruitment,117882,689.31
"Department for Business, Energy and Industrial Strategy",The Coal Authority,10/11/2021,External Agency / Introduction Fees,"Health, Safety & Wellbeing",Distinct Recruitment,117883,689.31
"Department for Business, Energy and Industrial Strategy",The Coal Authority,27/10/2021,External Agency / Introduction Fees,"Health, Safety & Wellbeing",Distinct Recruitment,117884,619.45
"Department for Business, Energy and Industrial Strategy",The Coal Authority,17/11/2021,External Agency / Introduction Fees,"Health, Safety & Wellbeing",Distinct Recruitment,117891,689.31
"Department for Business, Energy and Industrial Strategy",The Coal Authority,30/11/2021,External Agency / Introduction Fees,"Health, Safety & Wellbeing",Distinct Recruitment,117892,689.31
"Department for Business, Energy and Industrial Strategy",The Coal Authority,24/11/2021,External Agency / Introduction Fees,"Health, Safety & Wellbeing",Distinct Recruitment,117893,689.31
"Department for Business, Energy and Industrial Strategy",The Coal Authority,27/10/2021,External Agency / Introduction Fees,"Health, Safety & Wellbeing",Distinct Recruitment,117895,25.00
"Department for Business, Energy and Industrial Strategy",The Coal Authority,08/12/2021,External Agency / Introduction Fees,"Health, Safety & Wellbeing",Distinct Recruitment,117959,558.90
"Department for Business, Energy and Industrial Strategy",The Coal Authority,25/10/2021,External Agency / Introduction Fees,People & Organisational Development,Michael Page Int Recruit Ltd,118360,"4,500.00"
"Department for Business, Energy and Industrial Strategy",The Coal Authority,15/12/2021,External Agency / Introduction Fees,"Health, Safety & Wellbeing",Distinct Recruitment,118369,689.31
"Department for Business, Energy and Industrial Strategy",The Coal Authority,23/11/2021,Fares - Public Transport,Tips Response,Staff Expenses Control,117454,4.67
"Department for Business, Energy and Industrial Strategy",The Coal Authority,30/11/2021,Fares - Public Transport,Customer Services & Strategy,Ace Of Mansfield Ltd,117845,12.83
"Department for Business, Energy and Industrial Strategy",The Coal Authority,06/12/2021,Fares - Public Transport,Innovation By-Product & Services Delivery,Staff Expenses Control,118477,10.00
"Department for Business, Energy and Industrial Strategy",The Coal Authority,07/09/2021,Fares - Public Transport,ENV - Mine Water Operations,Government Procurement Card,118625,11.05
"Department for Business, Energy and Industrial Strategy",The Coal Authority,07/09/2021,Fares - Public Transport,ENV - Mine Water Operations,Government Procurement Card,118625,12.00
"Department for Business, Energy and Industrial Strategy",The Coal Authority,07/09/2021,Fares - Public Transport,ENV - Mine Water Operations,Government Procurement Card,118625,14.00
"Department for Business, Energy and Industrial Strategy",The Coal Authority,07/09/2021,Fares - Public Transport,ENV - Mine Water Operations,Government Procurement Card,118625,20.00
"Department for Business, Energy and Industrial Strategy",The Coal Authority,20/10/2021,Fares - Public Transport,Executive,Government Procurement Card,118626,50.00
"Department for Business, Energy and Industrial Strategy",The Coal Authority,23/11/2021,Fares - Public Transport,ENV - Mine Water Operations,Government Procurement Card,118629,32.28
"Department for Business, Energy and Industrial Strategy",The Coal Authority,29/11/2021,Fares - Public Transport,Facilities,Government Procurement Card,118629,4.60
"Department for Business, Energy and Industrial Strategy",The Coal Authority,29/11/2021,Fares - Public Transport,Facilities,Government Procurement Card,118629,4.60
"Department for Business, Energy and Industrial Strategy",The Coal Authority,29/11/2021,Fares - Public Transport,Facilities,Government Procurement Card,118629,4.60
"Department for Business, Energy and Industrial Strategy",The Coal Authority,30/11/2021,Fares - Public Transport,Facilities,Government Procurement Card,118629,4.73
"Department for Business, Energy and Industrial Strategy",The Coal Authority,30/11/2021,Fares - Public Transport,Facilities,Government Procurement Card,118629,4.73
"Department for Business, Energy and Industrial Strategy",The Coal Authority,30/11/2021,Fares - Public Transport,Facilities,Government Procurement Card,118629,4.74
"Department for Business, Energy and Industrial Strategy",The Coal Authority,30/11/2021,Fares - Public Transport,Facilities,Government Procurement Card,118629,3.40
"Department for Business, Energy and Industrial Strategy",The Coal Authority,30/11/2021,Fares - Public Transport,Facilities,Government Procurement Card,118629,3.40
"Department for Business, Energy and Industrial Strategy",The Coal Authority,30/11/2021,Fares - Public Transport,Facilities,Government Procurement Card,118629,3.40
"Department for Business, Energy and Industrial Strategy",The Coal Authority,28/10/2021,Fares - Rail,DEV - Property Management,Staff Expenses Control,117454,9.80
"Department for Business, Energy and Industrial Strategy",The Coal Authority,30/11/2021,Fares - Rail,Finance,Corporate Travel Management North,117586,"2,869.05"
"Department for Business, Energy and Industrial Strategy",The Coal Authority,23/11/2021,Fares - Rail,Innovation By-Product & Services Delivery,Staff Expenses Control,118477,14.90
"Department for Business, Energy and Industrial Strategy",The Coal Authority,24/11/2021,Fares - Rail,Innovation By-Product & Services Delivery,Staff Expenses Control,118477,9.30
"Department for Business, Energy and Industrial Strategy",The Coal Authority,20/10/2021,Fares - Rail,Heat & By-Product Innovation,Government Procurement Card,118626,2.40
"Department for Business, Energy and Industrial Strategy",The Coal Authority,30/11/2021,Fuel (Vehicle),ENV - Projects & Delivery,Irrecoverable VAT on personal mileage-PM,117436,52.10
"Department for Business, Energy and Industrial Strategy",The Coal Authority,30/11/2021,Fuel (Vehicle),PS&S - General Claims,Irrecoverable VAT on personal mileage-PM,117436,32.36
"Department for Business, Energy and Industrial Strategy",The Coal Authority,30/11/2021,Fuel (Vehicle),PS&S - Industry Claims,Irrecoverable VAT on personal mileage-PM,117436,25.61
"Department for Business, Energy and Industrial Strategy",The Coal Authority,30/11/2021,Fuel (Vehicle),Tips Response,Irrecoverable VAT on personal mileage-PM,117436,7.75
"Department for Business, Energy and Industrial Strategy",The Coal Authority,21/11/2021,Fuel (Vehicle),DEFRA Metal Mine Programme,Staff Expenses Control,117454,52.82
"Department for Business, Energy and Industrial Strategy",The Coal Authority,01/12/2021,Fuel (Vehicle),PS&S - General Claims,Staff Expenses Control,117454,24.72
"Department for Business, Energy and Industrial Strategy",The Coal Authority,03/11/2021,Fuel (Vehicle),Facilities,Allstar Business Solutions Ltd,117554,30.28
"Department for Business, Energy and Industrial Strategy",The Coal Authority,03/11/2021,Fuel (Vehicle),Facilities,Allstar Business Solutions Ltd,117554,47.73
"Department for Business, Energy and Industrial Strategy",The Coal Authority,03/11/2021,Fuel (Vehicle),Facilities,Allstar Business Solutions Ltd,117554,40.70
"Department for Business, Energy and Industrial Strategy",The Coal Authority,03/11/2021,Fuel (Vehicle),Facilities,Allstar Business Solutions Ltd,117554,80.84
"Department for Business, Energy and Industrial Strategy",The Coal Authority,03/11/2021,Fuel (Vehicle),Facilities,Allstar Business Solutions Ltd,117554,0.00
"Department for Business, Energy and Industrial Strategy",The Coal Authority,03/11/2021,Fuel (Vehicle),Facilities,Allstar Business Solutions Ltd,117554,5.70
"Department for Business, Energy and Industrial Strategy",The Coal Authority,03/11/2021,Fuel (Vehicle),Facilities,Allstar Business Solutions Ltd,117554,45.44
"Department for Business, Energy and Industrial Strategy",The Coal Authority,03/11/2021,Fuel (Vehicle),Facilities,Allstar Business Solutions Ltd,117554,91.24
"Department for Business, Energy and Industrial Strategy",The Coal Authority,03/11/2021,Fuel (Vehicle),Facilities,Allstar Business Solutions Ltd,117554,8.33
"Department for Business, Energy and Industrial Strategy",The Coal Authority,10/11/2021,Fuel (Vehicle),Facilities,Allstar Business Solutions Ltd,117555,59.55
"Department for Business, Energy and Industrial Strategy",The Coal Authority,10/11/2021,Fuel (Vehicle),Facilities,Allstar Business Solutions Ltd,117555,103.20
"Department for Business, Energy and Industrial Strategy",The Coal Authority,10/11/2021,Fuel (Vehicle),Facilities,Allstar Business Solutions Ltd,117555,41.37
"Department for Business, Energy and Industrial Strategy",The Coal Authority,10/11/2021,Fuel (Vehicle),Facilities,Allstar Business Solutions Ltd,117555,44.86
"Department for Business, Energy and Industrial Strategy",The Coal Authority,10/11/2021,Fuel (Vehicle),Facilities,Allstar Business Solutions Ltd,117555,27.25
"Department for Business, Energy and Industrial Strategy",The Coal Authority,10/11/2021,Fuel (Vehicle),Facilities,Allstar Business Solutions Ltd,117555,60.00
"Department for Business, Energy and Industrial Strategy",The Coal Authority,10/11/2021,Fuel (Vehicle),Facilities,Allstar Business Solutions Ltd,117555,3.80
"Department for Business, Energy and Industrial Strategy",The Coal Authority,10/11/2021,Fuel (Vehicle),Facilities,Allstar Business Solutions Ltd,117555,0.00
"Department for Business, Energy and Industrial Strategy",The Coal Authority,17/11/2021,Fuel (Vehicle),Facilities,Allstar Business Solutions Ltd,117556,69.58
"Department for Business, Energy and Industrial Strategy",The Coal Authority,17/11/2021,Fuel (Vehicle),Facilities,Allstar Business Solutions Ltd,117556,69.32
"Department for Business, Energy and Industrial Strategy",The Coal Authority,17/11/2021,Fuel (Vehicle),Facilities,Allstar Business Solutions Ltd,117556,38.99
"Department for Business, Energy and Industrial Strategy",The Coal Authority,17/11/2021,Fuel (Vehicle),Facilities,Allstar Business Solutions Ltd,117556,50.25
"Department for Business, Energy and Industrial Strategy",The Coal Authority,17/11/2021,Fuel (Vehicle),Facilities,Allstar Business Solutions Ltd,117556,41.87
"Department for Business, Energy and Industrial Strategy",The Coal Authority,17/11/2021,Fuel (Vehicle),Facilities,Allstar Business Solutions Ltd,117556,50.04
"Department for Business, Energy and Industrial Strategy",The Coal Authority,17/11/2021,Fuel (Vehicle),Facilities,Allstar Business Solutions Ltd,117556,47.24
"Department for Business, Energy and Industrial Strategy",The Coal Authority,17/11/2021,Fuel (Vehicle),Facilities,Allstar Business Solutions Ltd,117556,11.40
"Department for Business, Energy and Industrial Strategy",The Coal Authority,17/11/2021,Fuel (Vehicle),Facilities,Allstar Business Solutions Ltd,117556,0.00
"Department for Business, Energy and Industrial Strategy",The Coal Authority,24/11/2021,Fuel (Vehicle),Facilities,Allstar Business Solutions Ltd,117557,64.72
"Department for Business, Energy and Industrial Strategy",The Coal Authority,24/11/2021,Fuel (Vehicle),Facilities,Allstar Business Solutions Ltd,117557,46.97
"Department for Business, Energy and Industrial Strategy",The Coal Authority,24/11/2021,Fuel (Vehicle),Facilities,Allstar Business Solutions Ltd,117557,3.80
"Department for Business, Energy and Industrial Strategy",The Coal Authority,24/11/2021,Fuel (Vehicle),Facilities,Allstar Business Solutions Ltd,117557,106.03
"Department for Business, Energy and Industrial Strategy",The Coal Authority,24/11/2021,Fuel (Vehicle),Facilities,Allstar Business Solutions Ltd,117557,54.17
"Department for Business, Energy and Industrial Strategy",The Coal Authority,20/10/2021,Fuel (Vehicle),NRW Metal Mine Programme,Staff Expenses Control,117907,49.90
"Department for Business, Energy and Industrial Strategy",The Coal Authority,18/11/2021,Fuel (Vehicle),NRW Metal Mine Programme,Staff Expenses Control,117907,76.99
"Department for Business, Energy and Industrial Strategy",The Coal Authority,26/11/2021,Fuel (Vehicle),ENV - Technical,Staff Expenses Control,117907,33.50
"Department for Business, Energy and Industrial Strategy",The Coal Authority,06/12/2021,Fuel (Vehicle),DEFRA Metal Mine Programme,Staff Expenses Control,117907,52.98
"Department for Business, Energy and Industrial Strategy",The Coal Authority,07/12/2021,Fuel (Vehicle),DEFRA Metal Mine Programme,Staff Expenses Control,117907,23.80
"Department for Business, Energy and Industrial Strategy",The Coal Authority,01/12/2021,Fuel (Vehicle),PS&S - General Claims,Allstar Business Solutions Ltd,118196,60.30
"Department for Business, Energy and Industrial Strategy",The Coal Authority,01/12/2021,Fuel (Vehicle),PS&S - General Claims,Allstar Business Solutions Ltd,118196,62.42
"Department for Business, Energy and Industrial Strategy",The Coal Authority,01/12/2021,Fuel (Vehicle),PS&S - General Claims,Allstar Business Solutions Ltd,118196,7.60
"Department for Business, Energy and Industrial Strategy",The Coal Authority,01/12/2021,Fuel (Vehicle),PS&S - General Claims,Allstar Business Solutions Ltd,118196,36.80
"Department for Business, Energy and Industrial Strategy",The Coal Authority,01/12/2021,Fuel (Vehicle),PS&S - General Claims,Allstar Business Solutions Ltd,118196,41.04
"Department for Business, Energy and Industrial Strategy",The Coal Authority,01/12/2021,Fuel (Vehicle),PS&S - General Claims,Allstar Business Solutions Ltd,118196,57.03
"Department for Business, Energy and Industrial Strategy",The Coal Authority,01/12/2021,Fuel (Vehicle),Tips Response,Allstar Business Solutions Ltd,118196,116.65
"Department for Business, Energy and Industrial Strategy",The Coal Authority,15/12/2021,Fuel (Vehicle),ENV - Projects & Delivery,Allstar Business Solutions Ltd,118212,36.03
"Department for Business, Energy and Industrial Strategy",The Coal Authority,15/12/2021,Fuel (Vehicle),ENV - Projects & Delivery,Allstar Business Solutions Ltd,118212,0.00
"Department for Business, Energy and Industrial Strategy",The Coal Authority,08/12/2021,Fuel (Vehicle),PS&S - General Claims,Allstar Business Solutions Ltd,118213,13.30
"Department for Business, Energy and Industrial Strategy",The Coal Authority,08/12/2021,Fuel (Vehicle),PS&S - General Claims,Allstar Business Solutions Ltd,118213,98.21
"Department for Business, Energy and Industrial Strategy",The Coal Authority,08/12/2021,Fuel (Vehicle),PS&S - General Claims,Allstar Business Solutions Ltd,118213,49.64
"Department for Business, Energy and Industrial Strategy",The Coal Authority,08/12/2021,Fuel (Vehicle),PS&S - General Claims,Allstar Business Solutions Ltd,118213,51.77
"Department for Business, Energy and Industrial Strategy",The Coal Authority,08/12/2021,Fuel (Vehicle),PS&S - General Claims,Allstar Business Solutions Ltd,118213,87.08
"Department for Business, Energy and Industrial Strategy",The Coal Authority,08/12/2021,Fuel (Vehicle),Tips Response,Allstar Business Solutions Ltd,118213,56.04
"Department for Business, Energy and Industrial Strategy",The Coal Authority,08/12/2021,Fuel (Vehicle),Tips Response,Allstar Business Solutions Ltd,118213,82.23
"Department for Business, Energy and Industrial Strategy",The Coal Authority,08/12/2021,Fuel (Vehicle),ENV - Projects & Delivery,Allstar Business Solutions Ltd,118215,93.55
"Department for Business, Energy and Industrial Strategy",The Coal Authority,08/12/2021,Fuel (Vehicle),ENV - Projects & Delivery,Allstar Business Solutions Ltd,118215,0.00
"Department for Business, Energy and Industrial Strategy",The Coal Authority,15/12/2021,Fuel (Vehicle),PS&S - General Claims,Allstar Business Solutions Ltd,118216,22.50
"Department for Business, Energy and Industrial Strategy",The Coal Authority,15/12/2021,Fuel (Vehicle),PS&S - General Claims,Allstar Business Solutions Ltd,118216,13.30
"Department for Business, Energy and Industrial Strategy",The Coal Authority,15/12/2021,Fuel (Vehicle),PS&S - General Claims,Allstar Business Solutions Ltd,118216,80.83
"Department for Business, Energy and Industrial Strategy",The Coal Authority,15/12/2021,Fuel (Vehicle),PS&S - General Claims,Allstar Business Solutions Ltd,118216,64.56
"Department for Business, Energy and Industrial Strategy",The Coal Authority,15/12/2021,Fuel (Vehicle),PS&S - General Claims,Allstar Business Solutions Ltd,118216,51.21
"Department for Business, Energy and Industrial Strategy",The Coal Authority,15/12/2021,Fuel (Vehicle),PS&S - General Claims,Allstar Business Solutions Ltd,118216,36.41
"Department for Business, Energy and Industrial Strategy",The Coal Authority,15/12/2021,Fuel (Vehicle),PS&S - General Claims,Allstar Business Solutions Ltd,118216,149.26
"Department for Business, Energy and Industrial Strategy",The Coal Authority,15/12/2021,Fuel (Vehicle),PS&S - General Claims,Allstar Business Solutions Ltd,118216,63.66
"Department for Business, Energy and Industrial Strategy",The Coal Authority,15/12/2021,Fuel (Vehicle),PS&S - General Claims,Allstar Business Solutions Ltd,118216,0.00
"Department for Business, Energy and Industrial Strategy",The Coal Authority,15/12/2021,Fuel (Vehicle),Tips Response,Allstar Business Solutions Ltd,118216,78.82
"Department for Business, Energy and Industrial Strategy",The Coal Authority,15/12/2021,Fuel (Vehicle),Tips Response,Allstar Business Solutions Ltd,118216,53.88
"Department for Business, Energy and Industrial Strategy",The Coal Authority,09/12/2021,Fuel (Vehicle),Innovation By-Product & Services Delivery,Staff Expenses Control,118477,52.07
"Department for Business, Energy and Industrial Strategy",The Coal Authority,14/12/2021,Fuel (Vehicle),ENV - Technical,Staff Expenses Control,118477,8.46
"Department for Business, Energy and Industrial Strategy",The Coal Authority,14/12/2021,Fuel (Vehicle),NRW Metal Mine Programme,Staff Expenses Control,118477,22.73
"Department for Business, Energy and Industrial Strategy",The Coal Authority,16/12/2021,Fuel (Vehicle),PS&S - General Claims,Staff Expenses Control,118477,31.34
"Department for Business, Energy and Industrial Strategy",The Coal Authority,21/09/2021,Fuel (Vehicle),ENV - Mine Water Operations,Government Procurement Card,118625,47.44
"Department for Business, Energy and Industrial Strategy",The Coal Authority,22/09/2021,Fuel (Vehicle),ENV - Mine Water Operations,Government Procurement Card,118625,10.83
"Department for Business, Energy and Industrial Strategy",The Coal Authority,13/10/2021,Fuel (Vehicle),ENV - Projects & Delivery,Government Procurement Card,118626,48.12
"Department for Business, Energy and Industrial Strategy",The Coal Authority,14/10/2021,Fuel (Vehicle),ENV - Mine Water Operations,Government Procurement Card,118626,36.01
"Department for Business, Energy and Industrial Strategy",The Coal Authority,20/10/2021,Fuel (Vehicle),Heat & By-Product Innovation,Government Procurement Card,118626,48.39
"Department for Business, Energy and Industrial Strategy",The Coal Authority,20/10/2021,Fuel (Vehicle),Tip Management Services,Government Procurement Card,118626,50.15
"Department for Business, Energy and Industrial Strategy",The Coal Authority,21/10/2021,Fuel (Vehicle),Tip Management Services,Government Procurement Card,118626,23.28
"Department for Business, Energy and Industrial Strategy",The Coal Authority,28/10/2021,Fuel (Vehicle),Tip Management Services,Government Procurement Card,118626,61.33
"Department for Business, Energy and Industrial Strategy",The Coal Authority,03/11/2021,Fuel (Vehicle),ENV - Mine Water Operations,Government Procurement Card,118629,37.51
"Department for Business, Energy and Industrial Strategy",The Coal Authority,03/11/2021,Fuel (Vehicle),ENV - Technical,Government Procurement Card,118629,23.54
"Department for Business, Energy and Industrial Strategy",The Coal Authority,04/11/2021,Fuel (Vehicle),PS&S - General Claims,Government Procurement Card,118629,49.14
"Department for Business, Energy and Industrial Strategy",The Coal Authority,04/11/2021,Fuel (Vehicle),PS&S - General Claims,Government Procurement Card,118629,39.03
"Department for Business, Energy and Industrial Strategy",The Coal Authority,05/11/2021,Fuel (Vehicle),ENV - Mine Water Operations,Government Procurement Card,118629,43.33
"Department for Business, Energy and Industrial Strategy",The Coal Authority,08/11/2021,Fuel (Vehicle),PS&S - General Claims,Government Procurement Card,118629,45.57
"Department for Business, Energy and Industrial Strategy",The Coal Authority,10/11/2021,Fuel (Vehicle),ENV - Mine Water Operations,Government Procurement Card,118629,41.67
"Department for Business, Energy and Industrial Strategy",The Coal Authority,11/11/2021,Fuel (Vehicle),DEFRA Metal Mine Programme,Government Procurement Card,118629,50.42
"Department for Business, Energy and Industrial Strategy",The Coal Authority,12/11/2021,Fuel (Vehicle),PS&S - General Claims,Government Procurement Card,118629,50.19
"Department for Business, Energy and Industrial Strategy",The Coal Authority,16/11/2021,Fuel (Vehicle),PS&S - General Claims,Government Procurement Card,118629,48.19
"Department for Business, Energy and Industrial Strategy",The Coal Authority,17/11/2021,Fuel (Vehicle),PS&S - General Claims,Government Procurement Card,118629,40.88
"Department for Business, Energy and Industrial Strategy",The Coal Authority,17/11/2021,Fuel (Vehicle),PS&S - General Claims,Government Procurement Card,118629,44.89
"Department for Business, Energy and Industrial Strategy",The Coal Authority,17/11/2021,Fuel (Vehicle),PS&S - Industry Claims,Government Procurement Card,118629,49.52
"Department for Business, Energy and Industrial Strategy",The Coal Authority,18/11/2021,Fuel (Vehicle),ENV - Mine Water Operations,Government Procurement Card,118629,43.03
"Department for Business, Energy and Industrial Strategy",The Coal Authority,18/11/2021,Fuel (Vehicle),NRW Metal Mine Programme,Government Procurement Card,118629,68.99
"Department for Business, Energy and Industrial Strategy",The Coal Authority,18/11/2021,Fuel (Vehicle),PS&S - Industry Claims,Government Procurement Card,118629,11.98
"Department for Business, Energy and Industrial Strategy",The Coal Authority,19/11/2021,Fuel (Vehicle),ENV - Mine Water Operations,Government Procurement Card,118629,29.85
"Department for Business, Energy and Industrial Strategy",The Coal Authority,19/11/2021,Fuel (Vehicle),PS&S - General Claims,Government Procurement Card,118629,25.72
"Department for Business, Energy and Industrial Strategy",The Coal Authority,19/11/2021,Fuel (Vehicle),PS&S - Industry Claims,Government Procurement Card,118629,29.16
"Department for Business, Energy and Industrial Strategy",The Coal Authority,20/11/2021,Fuel (Vehicle),PS&S - General Claims,Government Procurement Card,118629,49.09
"Department for Business, Energy and Industrial Strategy",The Coal Authority,23/11/2021,Fuel (Vehicle),PS&S - General Claims,Government Procurement Card,118629,20.85
"Department for Business, Energy and Industrial Strategy",The Coal Authority,24/11/2021,Fuel (Vehicle),Executive,Government Procurement Card,118629,46.57
"Department for Business, Energy and Industrial Strategy",The Coal Authority,25/11/2021,Fuel (Vehicle),PS&S - Industry Claims,Government Procurement Card,118629,27.93
"Department for Business, Energy and Industrial Strategy",The Coal Authority,26/11/2021,Fuel (Vehicle),ENV - Mine Water Operations,Government Procurement Card,118629,35.00
"Department for Business, Energy and Industrial Strategy",The Coal Authority,26/11/2021,Fuel (Vehicle),PS&S - General Claims,Government Procurement Card,118629,46.09
"Department for Business, Energy and Industrial Strategy",The Coal Authority,30/11/2021,Fuel (Vehicle),ENV - Mine Water Operations,Government Procurement Card,118629,27.20
"Department for Business, Energy and Industrial Strategy",The Coal Authority,01/12/2021,Fuel (Vehicle),PS&S - General Claims,Government Procurement Card,118629,43.57
"Department for Business, Energy and Industrial Strategy",The Coal Authority,30/12/2021,Fuel (Vehicle),Environment - Metal Mine Build,Irrecoverable VAT on personal mileage-PM,118723,31.32
"Department for Business, Energy and Industrial Strategy",The Coal Authority,30/12/2021,Fuel (Vehicle),Tips Response,Irrecoverable VAT on personal mileage-PM,118723,65.34
"Department for Business, Energy and Industrial Strategy",The Coal Authority,11/11/2021,Gas / Other Fuels,Facilities,Calor Gas Limited,117203,741.95
"Department for Business, Energy and Industrial Strategy",The Coal Authority,26/11/2021,Gas / Other Fuels,"Health, Safety & Wellbeing",Ribble Enviro Ltd,117894,"1,650.00"
"Department for Business, Energy and Industrial Strategy",The Coal Authority,26/11/2021,Gas / Other Fuels,"Health, Safety & Wellbeing",Ribble Enviro Ltd,117894,15.00
"Department for Business, Energy and Industrial Strategy",The Coal Authority,26/11/2021,Gas / Other Fuels,"Health, Safety & Wellbeing",Ribble Enviro Ltd,117896,"1,100.00"
"Department for Business, Energy and Industrial Strategy",The Coal Authority,02/12/2021,Gas / Other Fuels,"Health, Safety & Wellbeing",Ribble Enviro Ltd,117960,15.00
"Department for Business, Energy and Industrial Strategy",The Coal Authority,02/12/2021,Gas / Other Fuels,"Health, Safety & Wellbeing",Ribble Enviro Ltd,117960,"2,634.00"
"Department for Business, Energy and Industrial Strategy",The Coal Authority,25/11/2021,Hardware Equipment & Support,DIG - Service & Assurance,Canon (Uk) Ltd,117755,70.50
"Department for Business, Energy and Industrial Strategy",The Coal Authority,12/10/2021,Hardware Equipment & Support,DIG - Technical Delivery,Government Procurement Card,118626,241.24
"Department for Business, Energy and Industrial Strategy",The Coal Authority,12/10/2021,Hardware Equipment & Support,DIG - Technical Delivery,Government Procurement Card,118626,251.79
"Department for Business, Energy and Industrial Strategy",The Coal Authority,12/10/2021,Hardware Equipment & Support,DIG - Technical Delivery,Government Procurement Card,118626,290.94
"Department for Business, Energy and Industrial Strategy",The Coal Authority,30/11/2021,Hotel & Accommodation,Finance,Corporate Travel Management North,117586,"11,283.23"
"Department for Business, Energy and Industrial Strategy",The Coal Authority,30/11/2021,Hotel & Accommodation,Finance,Corporate Travel Management North,117586,65.43
"Department for Business, Energy and Industrial Strategy",The Coal Authority,30/11/2021,Hotel & Accommodation,Finance,Corporate Travel Management North,117586,0.00
"Department for Business, Energy and Industrial Strategy",The Coal Authority,14/12/2021,Hotel & Accommodation,ENV - Projects & Delivery,Calder Conference Ltd,118155,848.33
"Department for Business, Energy and Industrial Strategy",The Coal Authority,24/09/2021,Hotel & Accommodation,ENV - Mine Water Operations,Government Procurement Card,118625,99.00
"Department for Business, Energy and Industrial Strategy",The Coal Authority,27/09/2021,Hotel & Accommodation,ENV - Mine Water Operations,Government Procurement Card,118625,-99.00
"Department for Business, Energy and Industrial Strategy",The Coal Authority,03/11/2021,Hotel & Accommodation,ENV - Mine Water Operations,Government Procurement Card,118629,75.50
"Department for Business, Energy and Industrial Strategy",The Coal Authority,10/11/2021,Hotel & Accommodation,Incident & Emergency Response,Government Procurement Card,118629,128.00
"Department for Business, Energy and Industrial Strategy",The Coal Authority,12/11/2021,Hotel & Accommodation,DEV - Permissions,Government Procurement Card,118629,5.32
"Department for Business, Energy and Industrial Strategy",The Coal Authority,16/11/2021,Hotel & Accommodation,Innovation By-Product & Services Delivery,Government Procurement Card,118629,74.22
"Department for Business, Energy and Industrial Strategy",The Coal Authority,16/11/2021,Hotel & Accommodation,Innovation By-Product & Services Delivery,Government Procurement Card,118629,74.22
"Department for Business, Energy and Industrial Strategy",The Coal Authority,24/11/2021,Hotel & Accommodation,Other Customers,Government Procurement Card,118629,79.38
"Department for Business, Energy and Industrial Strategy",The Coal Authority,30/11/2021,Hotel & Accommodation,Heat & By-Product Innovation,Government Procurement Card,118629,85.33
"Department for Business, Energy and Industrial Strategy",The Coal Authority,06/10/2021,Incidentals,Tips Response,Staff Expenses Control,117454,21.67
"Department for Business, Energy and Industrial Strategy",The Coal Authority,04/11/2021,Incidentals,Engineering,Staff Expenses Control,117454,3.00
"Department for Business, Energy and Industrial Strategy",The Coal Authority,18/11/2021,Incidentals,NRW Metal Mine Programme,Staff Expenses Control,117907,5.83
"Department for Business, Energy and Industrial Strategy",The Coal Authority,25/11/2021,Incidentals,DEV - Planning & Local Authority Liaison,Staff Expenses Control,117907,5.95
"Department for Business, Energy and Industrial Strategy",The Coal Authority,29/11/2021,Incidentals,Heat & By-Product Innovation,Staff Expenses Control,117907,7.60
"Department for Business, Energy and Industrial Strategy",The Coal Authority,01/12/2021,Incidentals,Heat & By-Product Innovation,Staff Expenses Control,117907,3.80
"Department for Business, Energy and Industrial Strategy",The Coal Authority,06/12/2021,Incidentals,DEFRA Metal Mine Programme,Staff Expenses Control,117907,5.00
"Department for Business, Energy and Industrial Strategy",The Coal Authority,08/12/2021,Incidentals,DEFRA Metal Mine Programme,Staff Expenses Control,117907,4.17
"Department for Business, Energy and Industrial Strategy",The Coal Authority,05/10/2021,Incidentals,PS&S - Industry Claims,Staff Expenses Control,118477,13.00
"Department for Business, Energy and Industrial Strategy",The Coal Authority,23/11/2021,Incidentals,Innovation By-Product & Services Delivery,Staff Expenses Control,118477,6.00
"Department for Business, Energy and Industrial Strategy",The Coal Authority,06/12/2021,Incidentals,Innovation By-Product & Services Delivery,Staff Expenses Control,118477,8.00
"Department for Business, Energy and Industrial Strategy",The Coal Authority,30/11/2021,Incidentals,Customer Services & Strategy,Security Plus Limited,118572,13.36
"Department for Business, Energy and Industrial Strategy",The Coal Authority,22/09/2021,Incidentals,ENV - Mine Water Operations,Government Procurement Card,118625,1.90
"Department for Business, Energy and Industrial Strategy",The Coal Authority,05/10/2021,Incidentals,Tips Response,Government Procurement Card,118626,21.67
"Department for Business, Energy and Industrial Strategy",The Coal Authority,07/10/2021,Incidentals,Tips Response,Government Procurement Card,118626,21.67
"Department for Business, Energy and Industrial Strategy",The Coal Authority,12/10/2021,Incidentals,Heat & By-Product Innovation,Government Procurement Card,118626,91.20
"Department for Business, Energy and Industrial Strategy",The Coal Authority,18/10/2021,Incidentals,Heat & By-Product Innovation,Government Procurement Card,118626,30.00
"Department for Business, Energy and Industrial Strategy",The Coal Authority,20/10/2021,Incidentals,Tip Management Services,Government Procurement Card,118626,48.00
"Department for Business, Energy and Industrial Strategy",The Coal Authority,27/10/2021,Incidentals,Executive,Government Procurement Card,118626,5.83
"Department for Business, Energy and Industrial Strategy",The Coal Authority,02/11/2021,Incidentals,Tips Response,Government Procurement Card,118626,4.00
"Department for Business, Energy and Industrial Strategy",The Coal Authority,03/11/2021,Incidentals,ENV - Technical,Government Procurement Card,118629,5.00
"Department for Business, Energy and Industrial Strategy",The Coal Authority,03/11/2021,Incidentals,Executive,Government Procurement Card,118629,10.42
"Department for Business, Energy and Industrial Strategy",The Coal Authority,04/11/2021,Incidentals,PS&S - General Claims,Government Procurement Card,118629,1.90
"Department for Business, Energy and Industrial Strategy",The Coal Authority,04/11/2021,Incidentals,PS&S - General Claims,Government Procurement Card,118629,1.90
"Department for Business, Energy and Industrial Strategy",The Coal Authority,05/11/2021,Incidentals,ENV - Technical,Government Procurement Card,118629,10.83
"Department for Business, Energy and Industrial Strategy",The Coal Authority,05/11/2021,Incidentals,PS&S - Industry Claims,Government Procurement Card,118629,0.50
"Department for Business, Energy and Industrial Strategy",The Coal Authority,05/11/2021,Incidentals,PS&S - Industry Claims,Government Procurement Card,118629,5.83
"Department for Business, Energy and Industrial Strategy",The Coal Authority,10/11/2021,Incidentals,DEFRA Metal Mine Programme,Government Procurement Card,118629,8.42
"Department for Business, Energy and Industrial Strategy",The Coal Authority,10/11/2021,Incidentals,ENV - Mine Water Operations,Government Procurement Card,118629,1.90
"Department for Business, Energy and Industrial Strategy",The Coal Authority,11/11/2021,Incidentals,Innovation By-Product & Services Delivery,Government Procurement Card,118629,28.33
"Department for Business, Energy and Industrial Strategy",The Coal Authority,16/11/2021,Incidentals,PS&S - Industry Claims,Government Procurement Card,118629,7.50
"Department for Business, Energy and Industrial Strategy",The Coal Authority,17/11/2021,Incidentals,PS&S - Industry Claims,Government Procurement Card,118629,7.50
"Department for Business, Energy and Industrial Strategy",The Coal Authority,18/11/2021,Incidentals,NRW Metal Mine Programme,Government Procurement Card,118629,4.17
"Department for Business, Energy and Industrial Strategy",The Coal Authority,18/11/2021,Incidentals,PS&S - Industry Claims,Government Procurement Card,118629,7.50
"Department for Business, Energy and Industrial Strategy",The Coal Authority,19/11/2021,Incidentals,ENV - Technical,Government Procurement Card,118629,54.17
"Department for Business, Energy and Industrial Strategy",The Coal Authority,19/11/2021,Incidentals,PS&S - Industry Claims,Government Procurement Card,118629,7.50
"Department for Business, Energy and Industrial Strategy",The Coal Authority,23/11/2021,Incidentals,Customer Services & Strategy,Government Procurement Card,118629,105.00
"Department for Business, Energy and Industrial Strategy",The Coal Authority,24/11/2021,Incidentals,Customer Services & Strategy,Government Procurement Card,118629,37.50
"Department for Business, Energy and Industrial Strategy",The Coal Authority,24/11/2021,Incidentals,Engineering,Government Procurement Card,118629,10.00
"Department for Business, Energy and Industrial Strategy",The Coal Authority,24/11/2021,Incidentals,Executive,Government Procurement Card,118629,4.96
"Department for Business, Energy and Industrial Strategy",The Coal Authority,24/11/2021,Incidentals,Heat & By-Product Innovation,Government Procurement Card,118629,10.00
"Department for Business, Energy and Industrial Strategy",The Coal Authority,24/11/2021,Incidentals,Heat & By-Product Innovation,Government Procurement Card,118629,2.60
"Department for Business, Energy and Industrial Strategy",The Coal Authority,25/11/2021,Incidentals,DIG - Data Licensing,Government Procurement Card,118629,15.00
"Department for Business, Energy and Industrial Strategy",The Coal Authority,25/11/2021,Incidentals,DIG - Data Licensing,Government Procurement Card,118629,16.67
"Department for Business, Energy and Industrial Strategy",The Coal Authority,26/11/2021,Incidentals,ENV - Technical,Government Procurement Card,118629,10.83
"Department for Business, Energy and Industrial Strategy",The Coal Authority,30/11/2021,Incidentals,ENV - Mine Water Operations,Government Procurement Card,118629,5.00
"Department for Business, Energy and Industrial Strategy",The Coal Authority,30/11/2021,Incidentals,Facilities,Government Procurement Card,118629,12.08
"Department for Business, Energy and Industrial Strategy",The Coal Authority,30/11/2021,Incidentals,Innovation By-Product & Services Delivery,Government Procurement Card,118629,3.80
"Department for Business, Energy and Industrial Strategy",The Coal Authority,01/12/2021,Incidentals,Innovation By-Product & Services Delivery,Government Procurement Card,118629,1.90
"Department for Business, Energy and Industrial Strategy",The Coal Authority,10/11/2021,Innovation Costs,Innovation By-Product & Services Delivery,H2O WEM Ltd,117240,"1,500.00"
"Department for Business, Energy and Industrial Strategy",The Coal Authority,30/11/2021,Innovation Costs,Heat & By-Product Innovation,Carter Jonas,117498,336.50
"Department for Business, Energy and Industrial Strategy",The Coal Authority,30/11/2021,Innovation Costs,Heat & By-Product Innovation,Staff Expenses Control,117907,21.59
"Department for Business, Energy and Industrial Strategy",The Coal Authority,09/12/2021,Innovation Costs,Heat & By-Product Innovation,Severn Trent Serv Ops Uk Ltd,118246,"2,008.30"
"Department for Business, Energy and Industrial Strategy",The Coal Authority,09/12/2021,Innovation Costs,Heat & By-Product Innovation,Severn Trent Serv Ops Uk Ltd,118246,"19,202.20"
"Department for Business, Energy and Industrial Strategy",The Coal Authority,09/12/2021,Innovation Costs,Heat & By-Product Innovation,Severn Trent Serv Ops Uk Ltd,118246,"1,037.60"
"Department for Business, Energy and Industrial Strategy",The Coal Authority,03/11/2021,Innovation Costs,Innovation By-Product & Services Delivery,Government Procurement Card,118629,9.38
"Department for Business, Energy and Industrial Strategy",The Coal Authority,01/10/2021,Internet Service Provider & Comms,Community Response,Government Procurement Card,118626,946.42
"Department for Business, Energy and Industrial Strategy",The Coal Authority,01/10/2021,Internet Service Provider & Comms,PS&S - General Claims,Government Procurement Card,118626,11.26
"Department for Business, Energy and Industrial Strategy",The Coal Authority,01/11/2021,Internet Service Provider & Comms,PS&S - General Claims,Government Procurement Card,118626,11.05
"Department for Business, Energy and Industrial Strategy",The Coal Authority,01/12/2021,Legal - General,Legal & Governance,Walker Morris,117023,472.80
"Department for Business, Energy and Industrial Strategy",The Coal Authority,25/11/2021,Legal - General,Legal & Governance,Browne Jacobson Llp Client Account,117170,"19,500.00"
"Department for Business, Energy and Industrial Strategy",The Coal Authority,26/11/2021,Legal - General,Legal & Governance,Browne Jacobson Llp Client Account,117247,"1,845.50"
"Department for Business, Energy and Industrial Strategy",The Coal Authority,01/12/2021,Legal - General,Legal & Governance,Anderson Strathern,117299,299.00
"Department for Business, Energy and Industrial Strategy",The Coal Authority,01/12/2021,Legal - General,Legal & Governance,Anderson Strathern,117300,260.00
"Department for Business, Energy and Industrial Strategy",The Coal Authority,01/12/2021,Legal - General,Legal & Governance,Anderson Strathern,117301,507.00
"Department for Business, Energy and Industrial Strategy",The Coal Authority,02/12/2021,Legal - General,Legal & Governance,Anderson Strathern,117302,65.00
"Department for Business, Energy and Industrial Strategy",The Coal Authority,08/12/2021,Legal - General,Legal & Governance,Dla Piper Uk Llp,118164,"1,931.00"
"Department for Business, Energy and Industrial Strategy",The Coal Authority,08/12/2021,Legal - General,Legal & Governance,Dla Piper Uk Llp,118164,0.00
"Department for Business, Energy and Industrial Strategy",The Coal Authority,08/12/2021,Legal - General,Legal & Governance,Dla Piper Uk Llp,118164,318.29
"Department for Business, Energy and Industrial Strategy",The Coal Authority,08/12/2021,Legal - General,Legal & Governance,Dla Piper Uk Llp,118164,"1,743.48"
"Department for Business, Energy and Industrial Strategy",The Coal Authority,08/12/2021,Legal - General,Legal & Governance,Dla Piper Uk Llp,118164,786.24
"Department for Business, Energy and Industrial Strategy",The Coal Authority,08/12/2021,Legal - General,Legal & Governance,Dla Piper Uk Llp,118164,"1,010.88"
"Department for Business, Energy and Industrial Strategy",The Coal Authority,08/12/2021,Legal - General,Legal & Governance,Dla Piper Uk Llp,118164,370.20
"Department for Business, Energy and Industrial Strategy",The Coal Authority,08/12/2021,Legal - General,Legal & Governance,Dla Piper Uk Llp,118164,992.96
"Department for Business, Energy and Industrial Strategy",The Coal Authority,13/12/2021,Legal - Property Title Search,Legal & Governance,Land Registry,118513,92.00
"Department for Business, Energy and Industrial Strategy",The Coal Authority,17/12/2021,Legal - Property Title Search,Legal & Governance,Land Registry,118659,15.00
"Department for Business, Energy and Industrial Strategy",The Coal Authority,17/11/2021,Legal - Property Valuation Fees,DEV - Property Management,Savills (Uk) Ltd,118001,450.00
"Department for Business, Energy and Industrial Strategy",The Coal Authority,06/12/2021,Membership Subscriptions,Innovation By-Product & Services Delivery,Staff Expenses Control,117907,321.00
"Department for Business, Energy and Industrial Strategy",The Coal Authority,01/12/2021,Membership Subscriptions,Engineering,Bsi,118139,633.00
"Department for Business, Energy and Industrial Strategy",The Coal Authority,15/12/2021,Membership Subscriptions,Tips Response,Staff Expenses Control,118477,76.00
"Department for Business, Energy and Industrial Strategy",The Coal Authority,27/10/2021,Membership Subscriptions,Innovation By-Product & Services Delivery,Government Procurement Card,118626,146.50
"Department for Business, Energy and Industrial Strategy",The Coal Authority,27/10/2021,Membership Subscriptions,Innovation By-Product & Services Delivery,Government Procurement Card,118626,153.81
"Department for Business, Energy and Industrial Strategy",The Coal Authority,11/10/2021,Mileage Payments,PS&S - Industry Claims,Staff Expenses Control,117454,4.50
"Department for Business, Energy and Industrial Strategy",The Coal Authority,11/10/2021,Mileage Payments,PS&S - Industry Claims,Staff Expenses Control,117454,4.05
"Department for Business, Energy and Industrial Strategy",The Coal Authority,12/10/2021,Mileage Payments,PS&S - Industry Claims,Staff Expenses Control,117454,4.50
"Department for Business, Energy and Industrial Strategy",The Coal Authority,12/10/2021,Mileage Payments,PS&S - Industry Claims,Staff Expenses Control,117454,4.05
"Department for Business, Energy and Industrial Strategy",The Coal Authority,14/10/2021,Mileage Payments,PS&S - Industry Claims,Staff Expenses Control,117454,4.50
"Department for Business, Energy and Industrial Strategy",The Coal Authority,14/10/2021,Mileage Payments,PS&S - Industry Claims,Staff Expenses Control,117454,4.05
"Department for Business, Energy and Industrial Strategy",The Coal Authority,18/10/2021,Mileage Payments,PS&S - Industry Claims,Staff Expenses Control,117454,4.50
"Department for Business, Energy and Industrial Strategy",The Coal Authority,18/10/2021,Mileage Payments,PS&S - Industry Claims,Staff Expenses Control,117454,4.05
"Department for Business, Energy and Industrial Strategy",The Coal Authority,18/10/2021,Mileage Payments,PS&S - Industry Claims,Staff Expenses Control,117454,0.45
"Department for Business, Energy and Industrial Strategy",The Coal Authority,18/10/2021,Mileage Payments,PS&S - Industry Claims,Staff Expenses Control,117454,0.45
"Department for Business, Energy and Industrial Strategy",The Coal Authority,20/10/2021,Mileage Payments,PS&S - Industry Claims,Staff Expenses Control,117454,4.50
"Department for Business, Energy and Industrial Strategy",The Coal Authority,20/10/2021,Mileage Payments,PS&S - Industry Claims,Staff Expenses Control,117454,4.05
"Department for Business, Energy and Industrial Strategy",The Coal Authority,21/10/2021,Mileage Payments,PS&S - Industry Claims,Staff Expenses Control,117454,4.50
"Department for Business, Energy and Industrial Strategy",The Coal Authority,21/10/2021,Mileage Payments,PS&S - Industry Claims,Staff Expenses Control,117454,4.05
"Department for Business, Energy and Industrial Strategy",The Coal Authority,01/11/2021,Mileage Payments,PS&S - Industry Claims,Staff Expenses Control,117454,0.63
"Department for Business, Energy and Industrial Strategy",The Coal Authority,03/11/2021,Mileage Payments,PS&S - Industry Claims,Staff Expenses Control,117454,4.50
"Department for Business, Energy and Industrial Strategy",The Coal Authority,03/11/2021,Mileage Payments,PS&S - Industry Claims,Staff Expenses Control,117454,4.95
"Department for Business, Energy and Industrial Strategy",The Coal Authority,04/11/2021,Mileage Payments,PS&S - Industry Claims,Staff Expenses Control,117454,8.10
"Department for Business, Energy and Industrial Strategy",The Coal Authority,04/11/2021,Mileage Payments,PS&S - Industry Claims,Staff Expenses Control,117454,2.25
"Department for Business, Energy and Industrial Strategy",The Coal Authority,04/11/2021,Mileage Payments,PS&S - Industry Claims,Staff Expenses Control,117454,2.25
"Department for Business, Energy and Industrial Strategy",The Coal Authority,04/11/2021,Mileage Payments,PS&S - Industry Claims,Staff Expenses Control,117454,2.70
"Department for Business, Energy and Industrial Strategy",The Coal Authority,04/11/2021,Mileage Payments,PS&S - Industry Claims,Staff Expenses Control,117454,4.50
"Department for Business, Energy and Industrial Strategy",The Coal Authority,05/11/2021,Mileage Payments,PS&S - Industry Claims,Staff Expenses Control,117454,4.50
"Department for Business, Energy and Industrial Strategy",The Coal Authority,05/11/2021,Mileage Payments,PS&S - Industry Claims,Staff Expenses Control,117454,4.05
"Department for Business, Energy and Industrial Strategy",The Coal Authority,08/11/2021,Mileage Payments,PS&S - Industry Claims,Staff Expenses Control,117454,2.25
"Department for Business, Energy and Industrial Strategy",The Coal Authority,08/11/2021,Mileage Payments,PS&S - Industry Claims,Staff Expenses Control,117454,2.70
"Department for Business, Energy and Industrial Strategy",The Coal Authority,09/11/2021,Mileage Payments,PS&S - Industry Claims,Staff Expenses Control,117454,4.50
"Department for Business, Energy and Industrial Strategy",The Coal Authority,09/11/2021,Mileage Payments,PS&S - Industry Claims,Staff Expenses Control,117454,4.05
"Department for Business, Energy and Industrial Strategy",The Coal Authority,10/11/2021,Mileage Payments,PS&S - Industry Claims,Staff Expenses Control,117454,4.50
"Department for Business, Energy and Industrial Strategy",The Coal Authority,10/11/2021,Mileage Payments,PS&S - Industry Claims,Staff Expenses Control,117454,4.95
"Department for Business, Energy and Industrial Strategy",The Coal Authority,11/11/2021,Mileage Payments,Tips Response,Staff Expenses Control,117454,22.14
"Department for Business, Energy and Industrial Strategy",The Coal Authority,12/11/2021,Mileage Payments,PS&S - Industry Claims,Staff Expenses Control,117454,4.50
"Department for Business, Energy and Industrial Strategy",The Coal Authority,12/11/2021,Mileage Payments,PS&S - Industry Claims,Staff Expenses Control,117454,4.05
"Department for Business, Energy and Industrial Strategy",The Coal Authority,15/11/2021,Mileage Payments,Tips Response,Staff Expenses Control,117454,25.56
"Department for Business, Energy and Industrial Strategy",The Coal Authority,17/11/2021,Mileage Payments,PS&S - Industry Claims,Staff Expenses Control,117454,36.90
"Department for Business, Energy and Industrial Strategy",The Coal Authority,17/11/2021,Mileage Payments,PS&S - Industry Claims,Staff Expenses Control,117454,36.90
"Department for Business, Energy and Industrial Strategy",The Coal Authority,18/11/2021,Mileage Payments,Tips Response,Staff Expenses Control,117454,22.68
"Department for Business, Energy and Industrial Strategy",The Coal Authority,22/11/2021,Mileage Payments,PS&S - Industry Claims,Staff Expenses Control,117454,4.50
"Department for Business, Energy and Industrial Strategy",The Coal Authority,22/11/2021,Mileage Payments,PS&S - Industry Claims,Staff Expenses Control,117454,4.05
"Department for Business, Energy and Industrial Strategy",The Coal Authority,22/11/2021,Mileage Payments,PS&S - Industry Claims,Staff Expenses Control,117454,5.26
"Department for Business, Energy and Industrial Strategy",The Coal Authority,22/11/2021,Mileage Payments,PS&S - Industry Claims,Staff Expenses Control,117454,90.27
"Department for Business, Energy and Industrial Strategy",The Coal Authority,23/11/2021,Mileage Payments,PS&S - Industry Claims,Staff Expenses Control,117454,5.25
"Department for Business, Energy and Industrial Strategy",The Coal Authority,23/11/2021,Mileage Payments,PS&S - Industry Claims,Staff Expenses Control,117454,5.49
"Department for Business, Energy and Industrial Strategy",The Coal Authority,23/11/2021,Mileage Payments,PS&S - Industry Claims,Staff Expenses Control,117454,7.68
"Department for Business, Energy and Industrial Strategy",The Coal Authority,23/11/2021,Mileage Payments,Tips Response,Staff Expenses Control,117454,1.44
"Department for Business, Energy and Industrial Strategy",The Coal Authority,23/11/2021,Mileage Payments,Tips Response,Staff Expenses Control,117454,1.39
"Department for Business, Energy and Industrial Strategy",The Coal Authority,24/11/2021,Mileage Payments,PS&S - Industry Claims,Staff Expenses Control,117454,4.05
"Department for Business, Energy and Industrial Strategy",The Coal Authority,24/11/2021,Mileage Payments,PS&S - Industry Claims,Staff Expenses Control,117454,4.50
"Department for Business, Energy and Industrial Strategy",The Coal Authority,24/11/2021,Mileage Payments,PS&S - Industry Claims,Staff Expenses Control,117454,2.38
"Department for Business, Energy and Industrial Strategy",The Coal Authority,24/11/2021,Mileage Payments,PS&S - Industry Claims,Staff Expenses Control,117454,10.08
"Department for Business, Energy and Industrial Strategy",The Coal Authority,24/11/2021,Mileage Payments,PS&S - Industry Claims,Staff Expenses Control,117454,7.87
"Department for Business, Energy and Industrial Strategy",The Coal Authority,24/11/2021,Mileage Payments,PS&S - Industry Claims,Staff Expenses Control,117454,10.59
"Department for Business, Energy and Industrial Strategy",The Coal Authority,24/11/2021,Mileage Payments,PS&S - Industry Claims,Staff Expenses Control,117454,8.13
"Department for Business, Energy and Industrial Strategy",The Coal Authority,24/11/2021,Mileage Payments,Tips Response,Staff Expenses Control,117454,1.43
"Department for Business, Energy and Industrial Strategy",The Coal Authority,24/11/2021,Mileage Payments,Tips Response,Staff Expenses Control,117454,1.39
"Department for Business, Energy and Industrial Strategy",The Coal Authority,24/11/2021,Mileage Payments,Tips Response,Staff Expenses Control,117454,22.68
"Department for Business, Energy and Industrial Strategy",The Coal Authority,25/11/2021,Mileage Payments,PS&S - Industry Claims,Staff Expenses Control,117454,11.23
"Department for Business, Energy and Industrial Strategy",The Coal Authority,25/11/2021,Mileage Payments,PS&S - Industry Claims,Staff Expenses Control,117454,9.85
"Department for Business, Energy and Industrial Strategy",The Coal Authority,25/11/2021,Mileage Payments,PS&S - Industry Claims,Staff Expenses Control,117454,7.66
"Department for Business, Energy and Industrial Strategy",The Coal Authority,25/11/2021,Mileage Payments,PS&S - Industry Claims,Staff Expenses Control,117454,4.50
"Department for Business, Energy and Industrial Strategy",The Coal Authority,25/11/2021,Mileage Payments,PS&S - Industry Claims,Staff Expenses Control,117454,4.05
"Department for Business, Energy and Industrial Strategy",The Coal Authority,25/11/2021,Mileage Payments,Tips Response,Staff Expenses Control,117454,1.44
"Department for Business, Energy and Industrial Strategy",The Coal Authority,25/11/2021,Mileage Payments,Tips Response,Staff Expenses Control,117454,1.39
"Department for Business, Energy and Industrial Strategy",The Coal Authority,25/11/2021,Mileage Payments,Tips Response,Staff Expenses Control,117454,22.68
"Department for Business, Energy and Industrial Strategy",The Coal Authority,26/11/2021,Mileage Payments,ENV - Technical,Staff Expenses Control,117454,23.40
"Department for Business, Energy and Industrial Strategy",The Coal Authority,26/11/2021,Mileage Payments,ENV - Technical,Staff Expenses Control,117454,23.85
"Department for Business, Energy and Industrial Strategy",The Coal Authority,26/11/2021,Mileage Payments,PS&S - Industry Claims,Staff Expenses Control,117454,86.51
"Department for Business, Energy and Industrial Strategy",The Coal Authority,26/11/2021,Mileage Payments,Tips Response,Staff Expenses Control,117454,17.66
"Department for Business, Energy and Industrial Strategy",The Coal Authority,26/11/2021,Mileage Payments,Tips Response,Staff Expenses Control,117454,17.28
"Department for Business, Energy and Industrial Strategy",The Coal Authority,29/11/2021,Mileage Payments,Tips Response,Staff Expenses Control,117454,1.43
"Department for Business, Energy and Industrial Strategy",The Coal Authority,29/11/2021,Mileage Payments,Tips Response,Staff Expenses Control,117454,1.39
"Department for Business, Energy and Industrial Strategy",The Coal Authority,29/11/2021,Mileage Payments,Tips Response,Staff Expenses Control,117454,22.68
"Department for Business, Energy and Industrial Strategy",The Coal Authority,30/11/2021,Mileage Payments,Tips Response,Staff Expenses Control,117454,22.68
"Department for Business, Energy and Industrial Strategy",The Coal Authority,01/12/2021,Mileage Payments,ENV - Technical,Staff Expenses Control,117454,0.88
"Department for Business, Energy and Industrial Strategy",The Coal Authority,01/12/2021,Mileage Payments,ENV - Technical,Staff Expenses Control,117454,4.87
"Department for Business, Energy and Industrial Strategy",The Coal Authority,01/12/2021,Mileage Payments,ENV - Technical,Staff Expenses Control,117454,13.43
"Department for Business, Energy and Industrial Strategy",The Coal Authority,01/12/2021,Mileage Payments,ENV - Technical,Staff Expenses Control,117454,0.33
"Department for Business, Energy and Industrial Strategy",The Coal Authority,01/12/2021,Mileage Payments,ENV - Technical,Staff Expenses Control,117454,0.53
"Department for Business, Energy and Industrial Strategy",The Coal Authority,01/12/2021,Mileage Payments,ENV - Technical,Staff Expenses Control,117454,13.70
"Department for Business, Energy and Industrial Strategy",The Coal Authority,01/12/2021,Mileage Payments,ENV - Technical,Staff Expenses Control,117454,1.50
"Department for Business, Energy and Industrial Strategy",The Coal Authority,01/12/2021,Mileage Payments,ENV - Technical,Staff Expenses Control,117454,0.61
"Department for Business, Energy and Industrial Strategy",The Coal Authority,01/12/2021,Mileage Payments,ENV - Technical,Staff Expenses Control,117454,0.57
"Department for Business, Energy and Industrial Strategy",The Coal Authority,01/12/2021,Mileage Payments,ENV - Technical,Staff Expenses Control,117454,1.62
"Department for Business, Energy and Industrial Strategy",The Coal Authority,01/12/2021,Mileage Payments,ENV - Technical,Staff Expenses Control,117454,0.68
"Department for Business, Energy and Industrial Strategy",The Coal Authority,01/12/2021,Mileage Payments,ENV - Technical,Staff Expenses Control,117454,1.78
"Department for Business, Energy and Industrial Strategy",The Coal Authority,01/12/2021,Mileage Payments,Tips Response,Staff Expenses Control,117454,1.44
"Department for Business, Energy and Industrial Strategy",The Coal Authority,01/12/2021,Mileage Payments,Tips Response,Staff Expenses Control,117454,1.39
"Department for Business, Energy and Industrial Strategy",The Coal Authority,01/12/2021,Mileage Payments,Tips Response,Staff Expenses Control,117454,16.20
"Department for Business, Energy and Industrial Strategy",The Coal Authority,01/12/2021,Mileage Payments,Tips Response,Staff Expenses Control,117454,6.89
"Department for Business, Energy and Industrial Strategy",The Coal Authority,01/12/2021,Mileage Payments,Tips Response,Staff Expenses Control,117454,18.54
"Department for Business, Energy and Industrial Strategy",The Coal Authority,02/12/2021,Mileage Payments,Tips Response,Staff Expenses Control,117454,8.36
"Department for Business, Energy and Industrial Strategy",The Coal Authority,02/12/2021,Mileage Payments,Tips Response,Staff Expenses Control,117454,8.42
"Department for Business, Energy and Industrial Strategy",The Coal Authority,02/12/2021,Mileage Payments,Tips Response,Staff Expenses Control,117454,17.15
"Department for Business, Energy and Industrial Strategy",The Coal Authority,19/08/2021,Mileage Payments,Executive,Staff Expenses Control,117907,9.19
"Department for Business, Energy and Industrial Strategy",The Coal Authority,19/08/2021,Mileage Payments,Executive,Staff Expenses Control,117907,10.53
"Department for Business, Energy and Industrial Strategy",The Coal Authority,20/08/2021,Mileage Payments,Executive,Staff Expenses Control,117907,9.19
"Department for Business, Energy and Industrial Strategy",The Coal Authority,20/08/2021,Mileage Payments,Executive,Staff Expenses Control,117907,10.56
"Department for Business, Energy and Industrial Strategy",The Coal Authority,14/09/2021,Mileage Payments,DEFRA LEP Funding,Staff Expenses Control,117907,5.53
"Department for Business, Energy and Industrial Strategy",The Coal Authority,14/09/2021,Mileage Payments,DEFRA LEP Funding,Staff Expenses Control,117907,5.85
"Department for Business, Energy and Industrial Strategy",The Coal Authority,23/09/2021,Mileage Payments,Innovation By-Product & Services Delivery,Staff Expenses Control,117907,16.65
"Department for Business, Energy and Industrial Strategy",The Coal Authority,23/09/2021,Mileage Payments,Innovation By-Product & Services Delivery,Staff Expenses Control,117907,16.20
"Department for Business, Energy and Industrial Strategy",The Coal Authority,11/10/2021,Mileage Payments,Innovation By-Product & Services Delivery,Staff Expenses Control,117907,4.05
"Department for Business, Energy and Industrial Strategy",The Coal Authority,11/10/2021,Mileage Payments,Innovation By-Product & Services Delivery,Staff Expenses Control,117907,5.85
"Department for Business, Energy and Industrial Strategy",The Coal Authority,21/10/2021,Mileage Payments,Executive,Staff Expenses Control,117907,177.30
"Department for Business, Energy and Industrial Strategy",The Coal Authority,27/10/2021,Mileage Payments,Executive,Staff Expenses Control,117907,62.10
"Department for Business, Energy and Industrial Strategy",The Coal Authority,02/11/2021,Mileage Payments,ENV - Projects & Delivery,Staff Expenses Control,117907,4.50
"Department for Business, Energy and Industrial Strategy",The Coal Authority,09/11/2021,Mileage Payments,PS&S - Industry Claims,Staff Expenses Control,117907,13.50
"Department for Business, Energy and Industrial Strategy",The Coal Authority,09/11/2021,Mileage Payments,PS&S - Industry Claims,Staff Expenses Control,117907,2.07
"Department for Business, Energy and Industrial Strategy",The Coal Authority,09/11/2021,Mileage Payments,PS&S - Industry Claims,Staff Expenses Control,117907,11.70
"Department for Business, Energy and Industrial Strategy",The Coal Authority,11/11/2021,Mileage Payments,DEV - Permissions,Staff Expenses Control,117907,93.38
"Department for Business, Energy and Industrial Strategy",The Coal Authority,11/11/2021,Mileage Payments,Executive,Staff Expenses Control,117907,69.75
"Department for Business, Energy and Industrial Strategy",The Coal Authority,12/11/2021,Mileage Payments,DEV - Permissions,Staff Expenses Control,117907,93.37
"Department for Business, Energy and Industrial Strategy",The Coal Authority,12/11/2021,Mileage Payments,Executive,Staff Expenses Control,117907,116.10
"Department for Business, Energy and Industrial Strategy",The Coal Authority,12/11/2021,Mileage Payments,Executive,Staff Expenses Control,117907,60.42
"Department for Business, Energy and Industrial Strategy",The Coal Authority,12/11/2021,Mileage Payments,PS&S - Industry Claims,Staff Expenses Control,117907,61.20
"Department for Business, Energy and Industrial Strategy",The Coal Authority,12/11/2021,Mileage Payments,PS&S - Industry Claims,Staff Expenses Control,117907,6.80
"Department for Business, Energy and Industrial Strategy",The Coal Authority,18/11/2021,Mileage Payments,Innovation By-Product & Services Delivery,Staff Expenses Control,117907,16.20
"Department for Business, Energy and Industrial Strategy",The Coal Authority,18/11/2021,Mileage Payments,Innovation By-Product & Services Delivery,Staff Expenses Control,117907,16.65
"Department for Business, Energy and Industrial Strategy",The Coal Authority,22/11/2021,Mileage Payments,PS&S - Industry Claims,Staff Expenses Control,117907,13.50
"Department for Business, Energy and Industrial Strategy",The Coal Authority,25/11/2021,Mileage Payments,DEFRA LEP Funding,Staff Expenses Control,117907,5.53
"Department for Business, Energy and Industrial Strategy",The Coal Authority,25/11/2021,Mileage Payments,DEFRA LEP Funding,Staff Expenses Control,117907,5.85
"Department for Business, Energy and Industrial Strategy",The Coal Authority,25/11/2021,Mileage Payments,DEV - Planning & Local Authority Liaison,Staff Expenses Control,117907,2.70
"Department for Business, Energy and Industrial Strategy",The Coal Authority,25/11/2021,Mileage Payments,DEV - Planning & Local Authority Liaison,Staff Expenses Control,117907,7.65
"Department for Business, Energy and Industrial Strategy",The Coal Authority,25/11/2021,Mileage Payments,ENV - Technical,Staff Expenses Control,117907,17.55
"Department for Business, Energy and Industrial Strategy",The Coal Authority,25/11/2021,Mileage Payments,ENV - Technical,Staff Expenses Control,117907,17.55
"Department for Business, Energy and Industrial Strategy",The Coal Authority,29/11/2021,Mileage Payments,Heat & By-Product Innovation,Staff Expenses Control,117907,73.31
"Department for Business, Energy and Industrial Strategy",The Coal Authority,29/11/2021,Mileage Payments,Heat & By-Product Innovation,Staff Expenses Control,117907,73.30
"Department for Business, Energy and Industrial Strategy",The Coal Authority,30/11/2021,Mileage Payments,Heat & By-Product Innovation,Staff Expenses Control,117907,75.10
"Department for Business, Energy and Industrial Strategy",The Coal Authority,30/11/2021,Mileage Payments,Heat & By-Product Innovation,Staff Expenses Control,117907,75.11
"Department for Business, Energy and Industrial Strategy",The Coal Authority,01/12/2021,Mileage Payments,Heat & By-Product Innovation,Staff Expenses Control,117907,73.30
"Department for Business, Energy and Industrial Strategy",The Coal Authority,01/12/2021,Mileage Payments,Heat & By-Product Innovation,Staff Expenses Control,117907,73.31
"Department for Business, Energy and Industrial Strategy",The Coal Authority,02/12/2021,Mileage Payments,DEV - Planning & Local Authority Liaison,Staff Expenses Control,117907,49.00
"Department for Business, Energy and Industrial Strategy",The Coal Authority,10/12/2021,Mileage Payments,ENV - Projects & Delivery,Staff Expenses Control,117907,4.50
"Department for Business, Energy and Industrial Strategy",The Coal Authority,16/09/2021,Mileage Payments,PS&S - Industry Claims,Staff Expenses Control,118477,21.60
"Department for Business, Energy and Industrial Strategy",The Coal Authority,17/09/2021,Mileage Payments,PS&S - Industry Claims,Staff Expenses Control,118477,55.80
"Department for Business, Energy and Industrial Strategy",The Coal Authority,20/09/2021,Mileage Payments,PS&S - Industry Claims,Staff Expenses Control,118477,24.30
"Department for Business, Energy and Industrial Strategy",The Coal Authority,21/09/2021,Mileage Payments,PS&S - Industry Claims,Staff Expenses Control,118477,26.10
"Department for Business, Energy and Industrial Strategy",The Coal Authority,22/09/2021,Mileage Payments,PS&S - Industry Claims,Staff Expenses Control,118477,27.90
"Department for Business, Energy and Industrial Strategy",The Coal Authority,28/09/2021,Mileage Payments,PS&S - Industry Claims,Staff Expenses Control,118477,26.10
"Department for Business, Energy and Industrial Strategy",The Coal Authority,30/09/2021,Mileage Payments,PS&S - Industry Claims,Staff Expenses Control,118477,19.80
"Department for Business, Energy and Industrial Strategy",The Coal Authority,01/10/2021,Mileage Payments,PS&S - Industry Claims,Staff Expenses Control,118477,27.90
"Department for Business, Energy and Industrial Strategy",The Coal Authority,05/10/2021,Mileage Payments,PS&S - Industry Claims,Staff Expenses Control,118477,18.45
"Department for Business, Energy and Industrial Strategy",The Coal Authority,05/10/2021,Mileage Payments,PS&S - Industry Claims,Staff Expenses Control,118477,13.95
"Department for Business, Energy and Industrial Strategy",The Coal Authority,05/10/2021,Mileage Payments,PS&S - Industry Claims,Staff Expenses Control,118477,72.45
"Department for Business, Energy and Industrial Strategy",The Coal Authority,06/10/2021,Mileage Payments,PS&S - Industry Claims,Staff Expenses Control,118477,90.90
"Department for Business, Energy and Industrial Strategy",The Coal Authority,07/10/2021,Mileage Payments,PS&S - Industry Claims,Staff Expenses Control,118477,30.60
"Department for Business, Energy and Industrial Strategy",The Coal Authority,08/10/2021,Mileage Payments,PS&S - Industry Claims,Staff Expenses Control,118477,28.80
"Department for Business, Energy and Industrial Strategy",The Coal Authority,11/10/2021,Mileage Payments,PS&S - Industry Claims,Staff Expenses Control,118477,27.00
"Department for Business, Energy and Industrial Strategy",The Coal Authority,12/10/2021,Mileage Payments,PS&S - Industry Claims,Staff Expenses Control,118477,24.30
"Department for Business, Energy and Industrial Strategy",The Coal Authority,13/10/2021,Mileage Payments,PS&S - Industry Claims,Staff Expenses Control,118477,37.80
"Department for Business, Energy and Industrial Strategy",The Coal Authority,14/10/2021,Mileage Payments,PS&S - Industry Claims,Staff Expenses Control,118477,30.60
"Department for Business, Energy and Industrial Strategy",The Coal Authority,15/10/2021,Mileage Payments,PS&S - Industry Claims,Staff Expenses Control,118477,24.30
"Department for Business, Energy and Industrial Strategy",The Coal Authority,18/10/2021,Mileage Payments,PS&S - Industry Claims,Staff Expenses Control,118477,9.48
"Department for Business, Energy and Industrial Strategy",The Coal Authority,18/10/2021,Mileage Payments,PS&S - Industry Claims,Staff Expenses Control,118477,13.50
"Department for Business, Energy and Industrial Strategy",The Coal Authority,18/10/2021,Mileage Payments,PS&S - Industry Claims,Staff Expenses Control,118477,4.44
"Department for Business, Energy and Industrial Strategy",The Coal Authority,19/10/2021,Mileage Payments,PS&S - Industry Claims,Staff Expenses Control,118477,27.90
"Department for Business, Energy and Industrial Strategy",The Coal Authority,20/10/2021,Mileage Payments,PS&S - Industry Claims,Staff Expenses Control,118477,13.95
"Department for Business, Energy and Industrial Strategy",The Coal Authority,20/10/2021,Mileage Payments,PS&S - Industry Claims,Staff Expenses Control,118477,24.30
"Department for Business, Energy and Industrial Strategy",The Coal Authority,20/10/2021,Mileage Payments,PS&S - Industry Claims,Staff Expenses Control,118477,9.92
"Department for Business, Energy and Industrial Strategy",The Coal Authority,26/10/2021,Mileage Payments,PS&S - Industry Claims,Staff Expenses Control,118477,29.25
"Department for Business, Energy and Industrial Strategy",The Coal Authority,27/10/2021,Mileage Payments,PS&S - Industry Claims,Staff Expenses Control,118477,27.90
"Department for Business, Energy and Industrial Strategy",The Coal Authority,03/11/2021,Mileage Payments,PS&S - Industry Claims,Staff Expenses Control,118477,26.10
"Department for Business, Energy and Industrial Strategy",The Coal Authority,05/11/2021,Mileage Payments,PS&S - Industry Claims,Staff Expenses Control,118477,28.80
"Department for Business, Energy and Industrial Strategy",The Coal Authority,17/11/2021,Mileage Payments,PS&S - Industry Claims,Staff Expenses Control,118477,13.03
"Department for Business, Energy and Industrial Strategy",The Coal Authority,17/11/2021,Mileage Payments,PS&S - Industry Claims,Staff Expenses Control,118477,11.59
"Department for Business, Energy and Industrial Strategy",The Coal Authority,17/11/2021,Mileage Payments,PS&S - Industry Claims,Staff Expenses Control,118477,13.74
"Department for Business, Energy and Industrial Strategy",The Coal Authority,18/11/2021,Mileage Payments,PS&S - Industry Claims,Staff Expenses Control,118477,28.80
"Department for Business, Energy and Industrial Strategy",The Coal Authority,19/11/2021,Mileage Payments,PS&S - Industry Claims,Staff Expenses Control,118477,27.90
"Department for Business, Energy and Industrial Strategy",The Coal Authority,23/11/2021,Mileage Payments,Innovation By-Product & Services Delivery,Staff Expenses Control,118477,15.30
"Department for Business, Energy and Industrial Strategy",The Coal Authority,23/11/2021,Mileage Payments,PS&S - Industry Claims,Staff Expenses Control,118477,32.40
"Department for Business, Energy and Industrial Strategy",The Coal Authority,24/11/2021,Mileage Payments,ENV - Projects & Delivery,Staff Expenses Control,118477,12.15
"Department for Business, Energy and Industrial Strategy",The Coal Authority,24/11/2021,Mileage Payments,ENV - Technical,Staff Expenses Control,118477,24.30
"Department for Business, Energy and Industrial Strategy",The Coal Authority,24/11/2021,Mileage Payments,ENV - Technical,Staff Expenses Control,118477,24.30
"Department for Business, Energy and Industrial Strategy",The Coal Authority,24/11/2021,Mileage Payments,PS&S - Industry Claims,Staff Expenses Control,118477,27.90
"Department for Business, Energy and Industrial Strategy",The Coal Authority,06/12/2021,Mileage Payments,Innovation By-Product & Services Delivery,Staff Expenses Control,118477,15.30
"Department for Business, Energy and Industrial Strategy",The Coal Authority,06/12/2021,Mileage Payments,Tips Response,Staff Expenses Control,118477,1.43
"Department for Business, Energy and Industrial Strategy",The Coal Authority,06/12/2021,Mileage Payments,Tips Response,Staff Expenses Control,118477,1.39
"Department for Business, Energy and Industrial Strategy",The Coal Authority,07/12/2021,Mileage Payments,Tips Response,Staff Expenses Control,118477,1.43
"Department for Business, Energy and Industrial Strategy",The Coal Authority,07/12/2021,Mileage Payments,Tips Response,Staff Expenses Control,118477,1.39
"Department for Business, Energy and Industrial Strategy",The Coal Authority,08/12/2021,Mileage Payments,PS&S - General Claims,Staff Expenses Control,118477,97.65
"Department for Business, Energy and Industrial Strategy",The Coal Authority,09/12/2021,Mileage Payments,PS&S - General Claims,Staff Expenses Control,118477,105.30
"Department for Business, Energy and Industrial Strategy",The Coal Authority,09/12/2021,Mileage Payments,Tips Response,Staff Expenses Control,118477,7.02
"Department for Business, Energy and Industrial Strategy",The Coal Authority,09/12/2021,Mileage Payments,Tips Response,Staff Expenses Control,118477,7.03
"Department for Business, Energy and Industrial Strategy",The Coal Authority,10/12/2021,Mileage Payments,ENV - Technical,Staff Expenses Control,118477,13.50
"Department for Business, Energy and Industrial Strategy",The Coal Authority,10/12/2021,Mileage Payments,ENV - Technical,Staff Expenses Control,118477,12.60
"Department for Business, Energy and Industrial Strategy",The Coal Authority,10/12/2021,Mileage Payments,Tips Response,Staff Expenses Control,118477,8.64
"Department for Business, Energy and Industrial Strategy",The Coal Authority,10/12/2021,Mileage Payments,Tips Response,Staff Expenses Control,118477,8.66
"Department for Business, Energy and Industrial Strategy",The Coal Authority,13/12/2021,Mileage Payments,DEFRA LEP Funding,Staff Expenses Control,118477,58.05
"Department for Business, Energy and Industrial Strategy",The Coal Authority,13/12/2021,Mileage Payments,Tips Response,Staff Expenses Control,118477,3.85
"Department for Business, Energy and Industrial Strategy",The Coal Authority,13/12/2021,Mileage Payments,Tips Response,Staff Expenses Control,118477,3.84
"Department for Business, Energy and Industrial Strategy",The Coal Authority,14/12/2021,Mileage Payments,DEFRA LEP Funding,Staff Expenses Control,118477,61.65
"Department for Business, Energy and Industrial Strategy",The Coal Authority,14/12/2021,Mileage Payments,Tips Response,Staff Expenses Control,118477,3.35
"Department for Business, Energy and Industrial Strategy",The Coal Authority,14/12/2021,Mileage Payments,Tips Response,Staff Expenses Control,118477,3.36
"Department for Business, Energy and Industrial Strategy",The Coal Authority,15/12/2021,Mileage Payments,PS&S - General Claims,Staff Expenses Control,118477,88.65
"Department for Business, Energy and Industrial Strategy",The Coal Authority,16/12/2021,Mileage Payments,PS&S - General Claims,Staff Expenses Control,118477,91.35
"Department for Business, Energy and Industrial Strategy",The Coal Authority,30/10/2021,Mine Entry Inspection - Contractor Costs,Tips Response,Interlocks Surveys,118209,"7,632.00"
"Department for Business, Energy and Industrial Strategy",The Coal Authority,16/12/2021,Mine Entry Inspection - Contractor Costs,Tips Response,Interlocks Surveys,118210,"-7,632.00"
"Department for Business, Energy and Industrial Strategy",The Coal Authority,30/11/2021,Mine Entry Inspection - Outsourced Management,PS&S - General Claims,Interlocks Surveys,117600,"9,900.00"
"Department for Business, Energy and Industrial Strategy",The Coal Authority,30/10/2021,Mine Entry Inspection - Outsourced Management,PS&S - General Claims,Interlocks Surveys,118214,"7,632.00"
"Department for Business, Energy and Industrial Strategy",The Coal Authority,29/11/2021,Minewater Chemicals - Operational Sites,DEFRA Metal Mine Programme,John F Hunt Regeneration Ltd,116991,"27,999.06"
"Department for Business, Energy and Industrial Strategy",The Coal Authority,07/12/2021,Minewater Chemicals - Operational Sites,DEFRA Metal Mine Programme,John F Hunt Regeneration Ltd,117862,"35,072.05"
"Department for Business, Energy and Industrial Strategy",The Coal Authority,29/11/2021,Minewater Contractor Add. Task Order - Ops Site,DEFRA Metal Mine Programme,John F Hunt Regeneration Ltd,116991,"4,211.31"
"Department for Business, Energy and Industrial Strategy",The Coal Authority,07/12/2021,Minewater Contractor Add. Task Order - Ops Site,DEFRA Metal Mine Programme,John F Hunt Regeneration Ltd,117862,"14,702.71"
"Department for Business, Energy and Industrial Strategy",The Coal Authority,09/12/2021,Minewater Contractor Add. Task Order - Ops Site,DEFRA Metal Mine Programme,Severn Trent Serv Ops Uk Ltd,118233,"11,494.07"
"Department for Business, Energy and Industrial Strategy",The Coal Authority,09/12/2021,Minewater Contractor Add. Task Order - Ops Site,ENV - Mine Water Operations,Severn Trent Serv Ops Uk Ltd,118246,24.97
"Department for Business, Energy and Industrial Strategy",The Coal Authority,09/12/2021,Minewater Contractor Add. Task Order - Ops Site,ENV - Mine Water Operations,Severn Trent Serv Ops Uk Ltd,118246,144.81
"Department for Business, Energy and Industrial Strategy",The Coal Authority,09/12/2021,Minewater Contractor Add. Task Order - Ops Site,ENV - Mine Water Operations,Severn Trent Serv Ops Uk Ltd,118246,"34,455.00"
"Department for Business, Energy and Industrial Strategy",The Coal Authority,09/12/2021,Minewater Contractor Add. Task Order - Ops Site,ENV - Mine Water Operations,Severn Trent Serv Ops Uk Ltd,118246,"3,685.35"
"Department for Business, Energy and Industrial Strategy",The Coal Authority,29/11/2021,Minewater Contractor Maint. Visits - Ops Site,ENV - Mine Water Operations,National Coal Mining Museum,116990,"2,384.00"
"Department for Business, Energy and Industrial Strategy",The Coal Authority,10/12/2021,Minewater Contractor Maint. Visits - Ops Site,ENV - Mine Water Operations,Severn Trent Serv Ops Uk Ltd,118226,"7,000.51"
"Department for Business, Energy and Industrial Strategy",The Coal Authority,09/12/2021,Minewater Contractor Maint. Visits - Ops Site,ENV - Mine Water Operations,Severn Trent Serv Ops Uk Ltd,118234,"344,526.41"
"Department for Business, Energy and Industrial Strategy",The Coal Authority,09/12/2021,Minewater Contractor Maint. Visits - Ops Site,ENV - Mine Water Operations,Severn Trent Serv Ops Uk Ltd,118246,"2,993.78"
"Department for Business, Energy and Industrial Strategy",The Coal Authority,09/12/2021,Minewater Contractor Maint. Visits - Ops Site,ENV - Mine Water Operations,Severn Trent Serv Ops Uk Ltd,118246,"1,040.42"
"Department for Business, Energy and Industrial Strategy",The Coal Authority,09/12/2021,Minewater Contractor Maint. Visits - Ops Site,ENV - Mine Water Operations,Severn Trent Serv Ops Uk Ltd,118246,"2,171.97"
"Department for Business, Energy and Industrial Strategy",The Coal Authority,09/12/2021,Minewater Contractor Maint. Visits - Ops Site,ENV - Mine Water Operations,Severn Trent Serv Ops Uk Ltd,118246,"56,565.18"
"Department for Business, Energy and Industrial Strategy",The Coal Authority,01/12/2021,Minewater Feasibility / Scoping,NRW Metal Mine Programme,Byfield Environment and Ecology Ltd.,117045,937.50
"Department for Business, Energy and Industrial Strategy",The Coal Authority,19/11/2021,Minewater Feasibility / Scoping,DEFRA Metal Mine Programme,Socotec,117331,137.86
"Department for Business, Energy and Industrial Strategy",The Coal Authority,09/12/2021,Minewater Land Option / Access Payments,ENV - Projects & Delivery,J Sowter & Sons,117697,"1,000.00"
"Department for Business, Energy and Industrial Strategy",The Coal Authority,09/12/2021,Minewater Landscaping,ENV - Mine Water Operations,Severn Trent Serv Ops Uk Ltd,118246,72.41
"Department for Business, Energy and Industrial Strategy",The Coal Authority,15/12/2021,Minewater Liability & Monitoring Sites - Maint.,ENV - Technical,Detectronic Limited,118395,900.00
"Department for Business, Energy and Industrial Strategy",The Coal Authority,29/11/2021,Minewater Management Fees,DEFRA Metal Mine Programme,John F Hunt Regeneration Ltd,116991,"37,347.99"
"Department for Business, Energy and Industrial Strategy",The Coal Authority,07/12/2021,Minewater Management Fees,DEFRA Metal Mine Programme,John F Hunt Regeneration Ltd,117862,"45,359.49"
"Department for Business, Energy and Industrial Strategy",The Coal Authority,29/11/2021,Minewater Monitoring & Flow Measurement,DEFRA LEP Funding,Ramboll Uk Ltd,117043,"3,605.00"
"Department for Business, Energy and Industrial Strategy",The Coal Authority,29/11/2021,Minewater Monitoring & Flow Measurement,DEFRA LEP Funding,Ramboll Uk Ltd,117044,"2,500.00"
"Department for Business, Energy and Industrial Strategy",The Coal Authority,07/12/2021,Minewater Monitoring & Flow Measurement,Heat & By-Product Innovation,Measurement Systems Limited,118187,"2,478.00"
"Department for Business, Energy and Industrial Strategy",The Coal Authority,30/11/2021,Minewater Monitoring & Flow Measurement,ENV - Projects & Delivery,Socotec,118485,"2,008.85"
"Department for Business, Energy and Industrial Strategy",The Coal Authority,09/11/2021,Minewater Monitoring & Flow Measurement,ENV - Technical,Government Procurement Card,118629,154.48
"Department for Business, Energy and Industrial Strategy",The Coal Authority,09/12/2021,Minewater Pump Overhauls,DEFRA Metal Mine Programme,Severn Trent Serv Ops Uk Ltd,118233,"39,268.64"
"Department for Business, Energy and Industrial Strategy",The Coal Authority,09/12/2021,Minewater Pump Overhauls,ENV - Mine Water Operations,Severn Trent Serv Ops Uk Ltd,118246,572.30
"Department for Business, Energy and Industrial Strategy",The Coal Authority,09/12/2021,Minewater Pump Overhauls,ENV - Mine Water Operations,Severn Trent Serv Ops Uk Ltd,118246,391.64
"Department for Business, Energy and Industrial Strategy",The Coal Authority,07/12/2021,Minewater Pumping Tests,ENV - Projects & Delivery,J N Bentley Limited,117410,"13,904.07"
"Department for Business, Energy and Industrial Strategy",The Coal Authority,07/12/2021,Minewater Pumping Tests,ENV - Projects & Delivery,J N Bentley Limited,117410,"5,920.88"
"Department for Business, Energy and Industrial Strategy",The Coal Authority,07/12/2021,Minewater Pumping Tests,ENV - Projects & Delivery,J N Bentley Limited,117410,"24,443.50"
"Department for Business, Energy and Industrial Strategy",The Coal Authority,16/09/2021,Minewater Pumping Tests,ENV - Projects & Delivery,J N Bentley Limited,117440,"9,947.91"
"Department for Business, Energy and Industrial Strategy",The Coal Authority,01/12/2021,Minewater Pumping Tests,ENV - Projects & Delivery,J N Bentley Limited,117445,0.03
"Department for Business, Energy and Industrial Strategy",The Coal Authority,01/12/2021,Minewater Pumping Tests,ENV - Projects & Delivery,J N Bentley Limited,117445,"29,243.62"
"Department for Business, Energy and Industrial Strategy",The Coal Authority,01/12/2021,Minewater Pumping Tests,ENV - Projects & Delivery,J N Bentley Limited,117445,"3,956.15"
"Department for Business, Energy and Industrial Strategy",The Coal Authority,09/12/2021,Minewater Pumping Tests,ENV - Mine Water Operations,Severn Trent Serv Ops Uk Ltd,118246,"12,222.47"
"Department for Business, Energy and Industrial Strategy",The Coal Authority,09/12/2021,Minewater Pumping Tests,ENV - Projects & Delivery,Severn Trent Serv Ops Uk Ltd,118246,93.62
"Department for Business, Energy and Industrial Strategy",The Coal Authority,09/12/2021,Minewater Pumping Tests,ENV - Projects & Delivery,Severn Trent Serv Ops Uk Ltd,118246,40.66
"Department for Business, Energy and Industrial Strategy",The Coal Authority,09/12/2021,Minewater Pumping Tests,ENV - Projects & Delivery,Severn Trent Serv Ops Uk Ltd,118246,"1,982.45"
"Department for Business, Energy and Industrial Strategy",The Coal Authority,09/12/2021,Minewater Pumping Tests,ENV - Projects & Delivery,Severn Trent Serv Ops Uk Ltd,118246,577.32
"Department for Business, Energy and Industrial Strategy",The Coal Authority,09/12/2021,Minewater Pumping Tests,ENV - Technical,Severn Trent Serv Ops Uk Ltd,118246,330.71
"Department for Business, Energy and Industrial Strategy",The Coal Authority,09/12/2021,Minewater Remediation,ENV - Mine Water Operations,Severn Trent Serv Ops Uk Ltd,118246,"1,240.38"
"Department for Business, Energy and Industrial Strategy",The Coal Authority,09/12/2021,Minewater Remediation,ENV - Mine Water Operations,Severn Trent Serv Ops Uk Ltd,118246,105.57
"Department for Business, Energy and Industrial Strategy",The Coal Authority,09/12/2021,Minewater Remediation,ENV - Mine Water Operations,Severn Trent Serv Ops Uk Ltd,118246,710.50
"Department for Business, Energy and Industrial Strategy",The Coal Authority,09/12/2021,Minewater Remediation,ENV - Mine Water Operations,Severn Trent Serv Ops Uk Ltd,118246,"8,897.90"
"Department for Business, Energy and Industrial Strategy",The Coal Authority,09/12/2021,Minewater Remediation,ENV - Mine Water Operations,Severn Trent Serv Ops Uk Ltd,118246,38.44
"Department for Business, Energy and Industrial Strategy",The Coal Authority,09/12/2021,Minewater Remediation,ENV - Mine Water Operations,Severn Trent Serv Ops Uk Ltd,118246,"10,820.56"
"Department for Business, Energy and Industrial Strategy",The Coal Authority,10/12/2021,Minewater Rent,ENV - Mine Water Operations,Rental Payment,117921,450.00
"Department for Business, Energy and Industrial Strategy",The Coal Authority,10/12/2021,Minewater Rent,ENV - Mine Water Operations,Adcliffe Drawdeal Ltd,117936,200.00
"Department for Business, Energy and Industrial Strategy",The Coal Authority,10/12/2021,Minewater Rent,ENV - Mine Water Operations,T C Richards and Sons,117937,"1,771.58"
"Department for Business, Energy and Industrial Strategy",The Coal Authority,10/12/2021,Minewater Rent,ENV - Mine Water Operations,Rental Payment,117938,500.00
"Department for Business, Energy and Industrial Strategy",The Coal Authority,10/12/2021,Minewater Rent,ENV - Mine Water Operations,Rental Payment,117939,"6,577.00"
"Department for Business, Energy and Industrial Strategy",The Coal Authority,10/12/2021,Minewater Rent,ENV - Mine Water Operations,Rental Payment,117940,282.00
"Department for Business, Energy and Industrial Strategy",The Coal Authority,10/12/2021,Minewater Rent,ENV - Mine Water Operations,Rental Payment,117941,350.00
"Department for Business, Energy and Industrial Strategy",The Coal Authority,10/12/2021,Minewater Rent,ENV - Mine Water Operations,Rental Payment,117942,520.00
"Department for Business, Energy and Industrial Strategy",The Coal Authority,29/11/2021,Minewater Rent,ENV - Mine Water Operations,The Buccleuch Estates Ltd,118182,118.00
"Department for Business, Energy and Industrial Strategy",The Coal Authority,26/11/2021,Minewater Sampling - 'Non-operational' Sites,DEFRA Metal Mine Programme,X-ray Mineral Services Ltd,117348,80.00
"Department for Business, Energy and Industrial Strategy",The Coal Authority,30/11/2021,Minewater Sampling - 'Non-operational' Sites,NRW Metal Mine Programme,Socotec,117359,20.00
"Department for Business, Energy and Industrial Strategy",The Coal Authority,30/11/2021,Minewater Sampling - 'Non-operational' Sites,NRW Metal Mine Programme,Socotec,117359,"1,182.50"
"Department for Business, Energy and Industrial Strategy",The Coal Authority,30/11/2021,Minewater Sampling - 'Non-operational' Sites,DEFRA Metal Mine Programme,Socotec,117438,60.38
"Department for Business, Energy and Industrial Strategy",The Coal Authority,30/11/2021,Minewater Sampling - 'Non-operational' Sites,DEFRA Metal Mine Programme,Socotec,117438,10.00
"Department for Business, Energy and Industrial Strategy",The Coal Authority,30/11/2021,Minewater Sampling - 'Non-operational' Sites,DEFRA Metal Mine Programme,Socotec,117438,60.38
"Department for Business, Energy and Industrial Strategy",The Coal Authority,30/11/2021,Minewater Sampling - 'Non-operational' Sites,DEFRA Metal Mine Programme,Socotec,117438,10.00
"Department for Business, Energy and Industrial Strategy",The Coal Authority,30/11/2021,Minewater Sampling - 'Non-operational' Sites,DEFRA Metal Mine Programme,Socotec,117438,0.00
"Department for Business, Energy and Industrial Strategy",The Coal Authority,09/12/2021,Minewater Sampling - 'Non-operational' Sites,ENV - Projects & Delivery,Severn Trent Serv Ops Uk Ltd,118246,96.39
"Department for Business, Energy and Industrial Strategy",The Coal Authority,29/11/2021,Minewater Sampling - Operational Sites,DEFRA Metal Mine Programme,John F Hunt Regeneration Ltd,116991,"2,567.79"
"Department for Business, Energy and Industrial Strategy",The Coal Authority,07/12/2021,Minewater Sampling - Operational Sites,DEFRA Metal Mine Programme,John F Hunt Regeneration Ltd,117862,123.59
"Department for Business, Energy and Industrial Strategy",The Coal Authority,09/12/2021,Minewater Sampling - Operational Sites,ENV - Projects & Delivery,Severn Trent Serv Ops Uk Ltd,118246,330.75
"Department for Business, Energy and Industrial Strategy",The Coal Authority,09/12/2021,Minewater Sampling - Operational Sites,ENV - Projects & Delivery,Severn Trent Serv Ops Uk Ltd,118246,840.20
"Department for Business, Energy and Industrial Strategy",The Coal Authority,14/12/2021,Minewater Sampling - Operational Sites,ENV - Mine Water Operations,Socotec,118374,421.32
"Department for Business, Energy and Industrial Strategy",The Coal Authority,09/12/2021,Minewater Site Investigations,ENV - Projects & Delivery,Severn Trent Serv Ops Uk Ltd,118246,"1,521.76"
"Department for Business, Energy and Industrial Strategy",The Coal Authority,25/11/2021,Minewater Sludge Disposal,DEFRA Metal Mine Programme,Wheal Jane Ltd,117105,"33,333.33"
"Department for Business, Energy and Industrial Strategy",The Coal Authority,09/12/2021,Minewater Sludge Disposal,ENV - Mine Water Operations,Severn Trent Serv Ops Uk Ltd,118246,"4,777.38"
"Department for Business, Energy and Industrial Strategy",The Coal Authority,09/12/2021,Minewater Sludge Disposal,ENV - Mine Water Operations,Severn Trent Serv Ops Uk Ltd,118246,485.75
"Department for Business, Energy and Industrial Strategy",The Coal Authority,09/12/2021,Minewater Sludge Disposal,ENV - Mine Water Operations,Severn Trent Serv Ops Uk Ltd,118246,819.79
"Department for Business, Energy and Industrial Strategy",The Coal Authority,09/12/2021,Minewater Sludge Disposal,ENV - Mine Water Operations,Severn Trent Serv Ops Uk Ltd,118246,"56,764.61"
"Department for Business, Energy and Industrial Strategy",The Coal Authority,17/11/2021,Minewater Telecoms & Telemetry,ENV - Mine Water Operations,KORE Wireless UK PLC,118098,35.00
"Department for Business, Energy and Industrial Strategy",The Coal Authority,08/12/2021,Minewater Telecoms & Telemetry,ENV - Mine Water Operations,KORE Wireless UK PLC,118100,15.00
"Department for Business, Energy and Industrial Strategy",The Coal Authority,14/11/2021,Minewater Water Charges,ENV - Mine Water Operations,Wave Utilities,118377,20.31
"Department for Business, Energy and Industrial Strategy",The Coal Authority,01/12/2021,Mobiles Phones - Call Charges,DIG - Service & Assurance,Daisy Corporate Services Trading Services Ltd,118605,33.33
"Department for Business, Energy and Industrial Strategy",The Coal Authority,01/12/2021,Mobiles Phones - Line Rent,DIG - Service & Assurance,Daisy Corporate Services Trading Services Ltd,118605,"1,429.51"
"Department for Business, Energy and Industrial Strategy",The Coal Authority,14/10/2021,Office Telephony - Call Charges,DIG - Service & Assurance,British Telecommunications Plc,117110,36.48
"Department for Business, Energy and Industrial Strategy",The Coal Authority,01/12/2021,Office Telephony - Call Charges,DIG - Service & Assurance,Daisy Corporate Services Trading Services Ltd,118606,50.72
"Department for Business, Energy and Industrial Strategy",The Coal Authority,14/10/2021,Office Telephony - Line Rent,DIG - Service & Assurance,British Telecommunications Plc,117110,728.10
"Department for Business, Energy and Industrial Strategy",The Coal Authority,14/10/2021,Office Telephony - Line Rent,DIG - Service & Assurance,British Telecommunications Plc,117110,0.00
"Department for Business, Energy and Industrial Strategy",The Coal Authority,01/12/2021,Office Telephony - Line Rent,DIG - Service & Assurance,Daisy Corporate Services Trading Services Ltd,118606,659.03
"Department for Business, Energy and Industrial Strategy",The Coal Authority,02/11/2021,Other Hosting / IaaS,DIG - Service & Assurance,Amazon Web Services EMEA SARL,117643,"5,383.28"
"Department for Business, Energy and Industrial Strategy",The Coal Authority,02/11/2021,Other Hosting / IaaS,DIG - Service & Assurance,Amazon Web Services EMEA SARL,117643,0.00
"Department for Business, Energy and Industrial Strategy",The Coal Authority,02/12/2021,Other Hosting / IaaS,DIG - Service & Assurance,Amazon Web Services EMEA SARL,117648,0.00
"Department for Business, Energy and Industrial Strategy",The Coal Authority,02/12/2021,Other Hosting / IaaS,DIG - Service & Assurance,Amazon Web Services EMEA SARL,117648,"5,300.93"
"Department for Business, Energy and Industrial Strategy",The Coal Authority,13/12/2021,Other Hosting / IaaS,Mining Reports,Bytemark Limited,117817,160.00
"Department for Business, Energy and Industrial Strategy",The Coal Authority,20/12/2021,Other Hosting / IaaS,Mining Reports,Bytemark Limited,118427,0.00
"Department for Business, Energy and Industrial Strategy",The Coal Authority,20/12/2021,Other Hosting / IaaS,Mining Reports,Bytemark Limited,118427,-0.25
"Department for Business, Energy and Industrial Strategy",The Coal Authority,20/12/2021,Other Hosting / IaaS,Mining Reports,Bytemark Limited,118428,-0.25
"Department for Business, Energy and Industrial Strategy",The Coal Authority,20/12/2021,Other Hosting / IaaS,Mining Reports,Bytemark Limited,118428,0.00
"Department for Business, Energy and Industrial Strategy",The Coal Authority,01/11/2021,Outsourced Cleaning Staff,Facilities,Regent Office Care Ltd T/A Regent Samsic,117200,"6,309.49"
"Department for Business, Energy and Industrial Strategy",The Coal Authority,30/11/2021,Outsourced Security Staff,Facilities,Regent Office Care Ltd T/A Regent Samsic,118153,"7,014.01"
"Department for Business, Energy and Industrial Strategy",The Coal Authority,30/11/2021,Outsourced Security Staff,Facilities,Regent Office Care Ltd T/A Regent Samsic,118153,184.61
"Department for Business, Energy and Industrial Strategy",The Coal Authority,30/11/2021,Outsourced Security Staff,Facilities,Regent Office Care Ltd T/A Regent Samsic,118153,"2,133.47"
"Department for Business, Energy and Industrial Strategy",The Coal Authority,30/11/2021,Outsourced Security Staff,Facilities,Regent Office Care Ltd T/A Regent Samsic,118153,336.10
"Department for Business, Energy and Industrial Strategy",The Coal Authority,30/11/2021,Outsourced Security Staff,Facilities,Regent Office Care Ltd T/A Regent Samsic,118153,0.00
"Department for Business, Energy and Industrial Strategy",The Coal Authority,26/11/2021,Payroll Processing Fees,Finance,Cgi It Uk Ltd,117191,"1,476.08"
"Department for Business, Energy and Industrial Strategy",The Coal Authority,26/11/2021,Payroll Processing Fees,Finance,Cgi It Uk Ltd,117985,248.76
"Department for Business, Energy and Industrial Strategy",The Coal Authority,11/10/2021,Peripherals / Consumables (MEP),Tips Response,Staff Expenses Control,117454,10.23
"Department for Business, Energy and Industrial Strategy",The Coal Authority,30/11/2021,Peripherals / Consumables (MEP),Finance,Staff Expenses Control,117907,31.37
"Department for Business, Energy and Industrial Strategy",The Coal Authority,01/12/2021,Peripherals / Consumables (MEP),Finance,Staff Expenses Control,117907,41.10
"Department for Business, Energy and Industrial Strategy",The Coal Authority,05/10/2021,Peripherals / Consumables (MEP),Engineering,Government Procurement Card,118626,52.43
"Department for Business, Energy and Industrial Strategy",The Coal Authority,20/10/2021,Peripherals / Consumables (MEP),DIG - Service & Assurance,Government Procurement Card,118626,62.60
"Department for Business, Energy and Industrial Strategy",The Coal Authority,31/10/2021,Peripherals / Consumables (MEP),DIG - Service & Assurance,Government Procurement Card,118626,109.90
"Department for Business, Energy and Industrial Strategy",The Coal Authority,01/11/2021,Peripherals / Consumables (MEP),DIG - Service & Assurance,Government Procurement Card,118626,21.67
"Department for Business, Energy and Industrial Strategy",The Coal Authority,11/11/2021,Peripherals / Consumables (MEP),PS&S - General Claims,Government Procurement Card,118629,124.99
"Department for Business, Energy and Industrial Strategy",The Coal Authority,12/11/2021,Peripherals / Consumables (MEP),PS&S - General Claims,Government Procurement Card,118629,16.00
"Department for Business, Energy and Industrial Strategy",The Coal Authority,12/11/2021,Peripherals / Consumables (MEP),Tips Response,Government Procurement Card,118629,34.00
"Department for Business, Energy and Industrial Strategy",The Coal Authority,23/11/2021,Peripherals / Consumables (MEP),PS&S - Industry Claims,Government Procurement Card,118629,138.49
"Department for Business, Energy and Industrial Strategy",The Coal Authority,01/12/2021,Peripherals / Consumables (MEP),PS&S - Industry Claims,Government Procurement Card,118629,28.98
"Department for Business, Energy and Industrial Strategy",The Coal Authority,30/11/2021,Plant Maintenance,Facilities,Briggs & Forrester Building Services Maintenance L,117206,"1,334.70"
"Department for Business, Energy and Industrial Strategy",The Coal Authority,01/12/2021,Plant Maintenance,Facilities,Stannah Lift Services Limited,117601,185.53
"Department for Business, Energy and Industrial Strategy",The Coal Authority,30/11/2021,Plant Maintenance,Facilities,Firm Power Electrical Contractors Limited,117605,"1,134.00"
"Department for Business, Energy and Industrial Strategy",The Coal Authority,31/12/2021,Plant Maintenance,Facilities,Briggs & Forrester Building Services Maintenance L,118112,"1,334.70"
"Department for Business, Energy and Industrial Strategy",The Coal Authority,07/12/2021,Plant Maintenance,Facilities,Stannah Lift Services Limited,118414,803.40
"Department for Business, Energy and Industrial Strategy",The Coal Authority,23/12/2021,Plant Maintenance,Facilities,PTSG Access and Safety Limited,118622,288.90
"Department for Business, Energy and Industrial Strategy",The Coal Authority,02/12/2021,Postage & Couriers,Customer Services & Strategy,Postage By Phone -Pitney Bowes,117496,500.00
"Department for Business, Energy and Industrial Strategy",The Coal Authority,03/12/2021,Postage & Couriers,Customer Services & Strategy,FedEx Express UK Transportaion Limited,118323,90.09
"Department for Business, Energy and Industrial Strategy",The Coal Authority,08/12/2021,Postage & Couriers,PS&S - General Claims,Staff Expenses Control,118477,6.38
"Department for Business, Energy and Industrial Strategy",The Coal Authority,08/12/2021,Postage & Couriers,PS&S - General Claims,Staff Expenses Control,118477,5.71
"Department for Business, Energy and Industrial Strategy",The Coal Authority,15/12/2021,Postage & Couriers,Customer Services & Strategy,THE MAILING ROOM LTD,118552,189.90
"Department for Business, Energy and Industrial Strategy",The Coal Authority,04/11/2021,Postage & Couriers,PS&S - Industry Claims,Government Procurement Card,118629,4.00
"Department for Business, Energy and Industrial Strategy",The Coal Authority,08/12/2021,Professional Subscriptions,PS&S - Industry Claims,Staff Expenses Control,117907,175.00
"Department for Business, Energy and Industrial Strategy",The Coal Authority,22/11/2021,Professional Subscriptions,Executive,St George's House Trust (Windsor Castle),118253,240.00
"Department for Business, Energy and Industrial Strategy",The Coal Authority,10/11/2021,Professional Subscriptions,ENV - Technical,Staff Expenses Control,118477,76.00
"Department for Business, Energy and Industrial Strategy",The Coal Authority,09/11/2021,Professional Subscriptions,ENV - Technical,Government Procurement Card,118629,268.00
"Department for Business, Energy and Industrial Strategy",The Coal Authority,10/11/2021,Professional Subscriptions,"Business Planning, Risk & Systems",Government Procurement Card,118629,306.00
"Department for Business, Energy and Industrial Strategy",The Coal Authority,23/11/2021,Professional Subscriptions,Finance,Government Procurement Card,118629,400.00
"Department for Business, Energy and Industrial Strategy",The Coal Authority,24/11/2021,Professional Subscriptions,ENV - Technical,Government Procurement Card,118629,176.00
"Department for Business, Energy and Industrial Strategy",The Coal Authority,24/11/2021,Professional Subscriptions,PS&S - General Claims,Government Procurement Card,118629,215.50
"Department for Business, Energy and Industrial Strategy",The Coal Authority,26/11/2021,Professional Subscriptions,Finance,Government Procurement Card,118629,306.00
"Department for Business, Energy and Industrial Strategy",The Coal Authority,30/11/2021,Professional Subscriptions,PS&S - General Claims,Government Procurement Card,118629,76.00
"Department for Business, Energy and Industrial Strategy",The Coal Authority,01/12/2021,Professional Subscriptions,Executive,Government Procurement Card,118629,311.00
"Department for Business, Energy and Industrial Strategy",The Coal Authority,10/12/2021,Property Rents Payable,DEV - Historic Property Liabilities,Trustees Of The Plumtree Child Trust,117920,"59,494.65"
"Department for Business, Energy and Industrial Strategy",The Coal Authority,30/11/2021,Property Site Maintenance,DEV - Property Management,JMC Engineering Uk Ltd,117446,261.15
"Department for Business, Energy and Industrial Strategy",The Coal Authority,30/11/2021,Property Site Maintenance,DEV - Property Management,JMC Engineering Uk Ltd,117446,36.90
"Department for Business, Energy and Industrial Strategy",The Coal Authority,30/11/2021,Property Site Maintenance,DEV - Property Management,JMC Engineering Uk Ltd,117447,887.91
"Department for Business, Energy and Industrial Strategy",The Coal Authority,30/11/2021,Property Site Maintenance,DEV - Property Management,JMC Engineering Uk Ltd,117447,6.30
"Department for Business, Energy and Industrial Strategy",The Coal Authority,30/11/2021,Property Site Maintenance,DEV - Historic Property Liabilities,Ovenden Plant Hire Limited,117590,32.61
"Department for Business, Energy and Industrial Strategy",The Coal Authority,20/11/2021,Property Site Maintenance,DEV - Property Management,Marshall Farming Limited,118252,"1,087.81"
"Department for Business, Energy and Industrial Strategy",The Coal Authority,30/11/2021,Property Site Maintenance,DEV - Historic Property Liabilities,Ovenden Plant Hire Limited,118465,585.00
"Department for Business, Energy and Industrial Strategy",The Coal Authority,30/11/2021,Property Site Maintenance,DEV - Historic Property Liabilities,Ovenden Plant Hire Limited,118466,550.00
"Department for Business, Energy and Industrial Strategy",The Coal Authority,16/12/2021,Property Site Maintenance,DEV - Property Management,AECOM Ltd,118469,"9,092.41"
"Department for Business, Energy and Industrial Strategy",The Coal Authority,18/11/2021,Public Relations,Community Response,NLA media access Ltd,118315,"3,319.80"
"Department for Business, Energy and Industrial Strategy",The Coal Authority,22/12/2021,Public Relations,Business Intelligence,DeHavilland Political Intelligence,118618,"1,050.00"
"Department for Business, Energy and Industrial Strategy",The Coal Authority,31/03/2021,Recruitment Advertising,People & Organisational Development,Job Ladder Ltd,117047,275.00
"Department for Business, Energy and Industrial Strategy",The Coal Authority,08/12/2021,Recruitment Advertising,People & Organisational Development,Yourvacancy Ltd t/a LGBT JOBS,117984,"3,950.00"
"Department for Business, Energy and Industrial Strategy",The Coal Authority,29/11/2021,Research & Development (BEIS Funded),People & Organisational Development,BMG Research Ltd,117250,"2,250.00"
"Department for Business, Energy and Industrial Strategy",The Coal Authority,30/11/2021,Research & Development (BEIS Funded),DEFRA Metal Mine Programme,Enitial Limited,117350,350.00
"Department for Business, Energy and Industrial Strategy",The Coal Authority,19/11/2021,Research & Development (Non BEIS Funded),DEFRA Metal Mine Programme,Socotec,117331,513.58
"Department for Business, Energy and Industrial Strategy",The Coal Authority,22/11/2021,Research & Development (Non BEIS Funded),DEFRA Metal Mine Programme,Socotec,117332,809.30
"Department for Business, Energy and Industrial Strategy",The Coal Authority,30/11/2021,Research & Development (Non BEIS Funded),DEFRA Metal Mine Programme,Socotec,117333,201.53
"Department for Business, Energy and Industrial Strategy",The Coal Authority,30/11/2021,Research & Development (Non BEIS Funded),DEFRA Metal Mine Programme,Socotec,117334,177.86
"Department for Business, Energy and Industrial Strategy",The Coal Authority,30/11/2021,Research & Development (Non BEIS Funded),DEFRA Metal Mine Programme,Socotec,117335,809.30
"Department for Business, Energy and Industrial Strategy",The Coal Authority,19/11/2021,Research & Development (Non BEIS Funded),DEFRA Metal Mine Programme,Socotec,117346,201.53
"Department for Business, Energy and Industrial Strategy",The Coal Authority,30/11/2021,Research & Development (Non BEIS Funded),DEFRA Metal Mine Programme,Socotec,117347,201.53
"Department for Business, Energy and Industrial Strategy",The Coal Authority,30/11/2021,Research & Development (Non BEIS Funded),DEFRA Metal Mine Programme,SUEZ Advanced Solutions UK Ltd,117349,"1,426.75"
"Department for Business, Energy and Industrial Strategy",The Coal Authority,30/11/2021,Research & Development (Non BEIS Funded),DEFRA Metal Mine Programme,Enitial Limited,117351,"1,625.00"
"Department for Business, Energy and Industrial Strategy",The Coal Authority,30/11/2021,Research & Development (Non BEIS Funded),DEFRA Metal Mine Programme,Enitial Limited,117352,350.00
"Department for Business, Energy and Industrial Strategy",The Coal Authority,30/11/2021,Research & Development (Non BEIS Funded),DEFRA Metal Mine Programme,Enitial Limited,117353,"1,764.90"
"Department for Business, Energy and Industrial Strategy",The Coal Authority,30/11/2021,Research & Development (Non BEIS Funded),DEFRA Metal Mine Programme,SUEZ Advanced Solutions UK Ltd,117360,"1,188.18"
"Department for Business, Energy and Industrial Strategy",The Coal Authority,03/12/2021,Research & Development (Non BEIS Funded),DEFRA Metal Mine Programme,Socotec,117617,651.44
"Department for Business, Energy and Industrial Strategy",The Coal Authority,09/12/2021,Research & Development (Non BEIS Funded),DEFRA Metal Mine Programme,Socotec,118135,177.86
"Department for Business, Energy and Industrial Strategy",The Coal Authority,09/12/2021,Research & Development (Non BEIS Funded),DEFRA Metal Mine Programme,Socotec,118137,201.53
"Department for Business, Energy and Industrial Strategy",The Coal Authority,30/11/2021,Short Term Vehicle Hire,Facilities,Edan Holding Ltd,117603,280.00
"Department for Business, Energy and Industrial Strategy",The Coal Authority,30/11/2021,Short Term Vehicle Hire,Facilities,Enterprise Rent A Car,117846,"8,445.41"
"Department for Business, Energy and Industrial Strategy",The Coal Authority,04/12/2021,Site Repairs & Maintenance,Facilities,Garry Dalton Window Cleaning Service Ltd,117602,"1,160.00"
"Department for Business, Energy and Industrial Strategy",The Coal Authority,09/12/2021,Site Repairs & Maintenance,Facilities,Total Integrated Solutions,118111,613.33
"Department for Business, Energy and Industrial Strategy",The Coal Authority,15/12/2021,Site Repairs & Maintenance,Facilities,Total Integrated Solutions,118419,104.95
"Department for Business, Energy and Industrial Strategy",The Coal Authority,15/11/2021,Site Repairs & Maintenance,Facilities,Government Procurement Card,118629,7.08
"Department for Business, Energy and Industrial Strategy",The Coal Authority,15/11/2021,Site Repairs & Maintenance,Facilities,Government Procurement Card,118629,7.05
"Department for Business, Energy and Industrial Strategy",The Coal Authority,24/11/2021,Site Repairs & Maintenance,Facilities,Government Procurement Card,118629,7.31
"Department for Business, Energy and Industrial Strategy",The Coal Authority,29/11/2021,Site Services,Facilities,Ulyett Landscapes Ltd,117201,413.30
"Department for Business, Energy and Industrial Strategy",The Coal Authority,29/11/2021,Site Services,Facilities,Ulyett Landscapes Ltd,117202,230.00
"Department for Business, Energy and Industrial Strategy",The Coal Authority,19/11/2021,Site Services,Facilities,Biffa Waste Services Ltd,117204,114.96
"Department for Business, Energy and Industrial Strategy",The Coal Authority,19/11/2021,Site Services,Facilities,Biffa Waste Services Ltd,117204,105.60
"Department for Business, Energy and Industrial Strategy",The Coal Authority,30/11/2021,Site Services,Facilities,Ulyett Landscapes Ltd,117205,729.15
"Department for Business, Energy and Industrial Strategy",The Coal Authority,30/11/2021,Site Services,Facilities,Dakro Environmental Ltd,117604,107.50
"Department for Business, Energy and Industrial Strategy",The Coal Authority,01/12/2021,Site Services,Facilities,Ulyett Landscapes Ltd,117606,207.50
"Department for Business, Energy and Industrial Strategy",The Coal Authority,07/12/2021,Site Services,Facilities,Restore Datashred,118222,122.40
"Department for Business, Energy and Industrial Strategy",The Coal Authority,17/12/2021,Site Services,Facilities,Ulyett Landscapes Ltd,118415,729.17
"Department for Business, Energy and Industrial Strategy",The Coal Authority,10/11/2021,Site Services,Facilities,Government Procurement Card,118629,16.78
"Department for Business, Energy and Industrial Strategy",The Coal Authority,24/11/2021,Software Licenses - On Premise,DIG - Technical Delivery,Phoenix Software Limited,117106,"6,729.07"
"Department for Business, Energy and Industrial Strategy",The Coal Authority,21/07/2021,Software Licenses - On Premise,Innovation By-Product & Services Delivery,Government Procurement Card,118005,126.50
"Department for Business, Energy and Industrial Strategy",The Coal Authority,21/08/2021,Software Licenses - On Premise,Innovation By-Product & Services Delivery,Government Procurement Card,118008,126.50
"Department for Business, Energy and Industrial Strategy",The Coal Authority,15/12/2021,Software Licenses - On Premise,DIG - Service & Assurance,Experian Ltd,118567,"16,138.50"
"Department for Business, Energy and Industrial Strategy",The Coal Authority,21/10/2021,Software Licenses - On Premise,Innovation By-Product & Services Delivery,Government Procurement Card,118626,126.50
"Department for Business, Energy and Industrial Strategy",The Coal Authority,21/11/2021,Software Licenses - On Premise,Innovation By-Product & Services Delivery,Government Procurement Card,118629,126.50
"Department for Business, Energy and Industrial Strategy",The Coal Authority,30/11/2021,Software Licenses - SaaS,DIG - Technical Delivery,Nowcomm,117587,"7,382.40"
"Department for Business, Energy and Industrial Strategy",The Coal Authority,15/09/2021,Software Licenses - SaaS,DIG - Technical Delivery,Egress Software Technologies,118144,776.25
"Department for Business, Energy and Industrial Strategy",The Coal Authority,15/09/2021,Software Licenses - SaaS,DIG - Technical Delivery,Egress Software Technologies,118144,"3,105.00"
"Department for Business, Energy and Industrial Strategy",The Coal Authority,15/09/2021,Software Licenses - SaaS,DIG - Technical Delivery,Egress Software Technologies,118144,"3,105.00"
"Department for Business, Energy and Industrial Strategy",The Coal Authority,08/10/2021,Software Licenses - SaaS,Community Response,Government Procurement Card,118626,48.00
"Department for Business, Energy and Industrial Strategy",The Coal Authority,23/12/2021,Software Licenses - SaaS,Procurement,Thomas Telford Training,118632,"6,300.00"
"Department for Business, Energy and Industrial Strategy",The Coal Authority,23/12/2021,Software Licenses - SaaS,Procurement,Thomas Telford Training,118633,"12,532.00"
"Department for Business, Energy and Industrial Strategy",The Coal Authority,26/11/2021,Software Support & Maintenance - On Premise,Finance,Sapphire Systems Plc,117130,"15,428.54"
"Department for Business, Energy and Industrial Strategy",The Coal Authority,26/11/2021,Software Support & Maintenance - On Premise,Finance,Sapphire Systems Plc,117130,"2,309.79"
"Department for Business, Energy and Industrial Strategy",The Coal Authority,26/11/2021,Software Support & Maintenance - On Premise,Finance,Sapphire Systems Plc,117130,-0.01
"Department for Business, Energy and Industrial Strategy",The Coal Authority,26/11/2021,Software Support & Maintenance - On Premise,Finance,Sapphire Systems Plc,117130,"3,902.42"
"Department for Business, Energy and Industrial Strategy",The Coal Authority,26/11/2021,Software Support & Maintenance - On Premise,Finance,Sapphire Systems Plc,117130,508.16
"Department for Business, Energy and Industrial Strategy",The Coal Authority,22/11/2021,Software Support & Maintenance - On Premise,People & Organisational Development,MHR International UK Ltd,117466,"2,903.49"
"Department for Business, Energy and Industrial Strategy",The Coal Authority,01/10/2021,Software Support & Maintenance - On Premise,DEV - Historic Property Liabilities,Cgi It Uk Ltd,117613,271.07
"Department for Business, Energy and Industrial Strategy",The Coal Authority,01/10/2021,Software Support & Maintenance - On Premise,DEV - Planning & Local Authority Liaison,Cgi It Uk Ltd,117613,406.61
"Department for Business, Energy and Industrial Strategy",The Coal Authority,01/10/2021,Software Support & Maintenance - On Premise,DIG - Data Licensing,Cgi It Uk Ltd,117613,"5,692.47"
"Department for Business, Energy and Industrial Strategy",The Coal Authority,01/10/2021,Software Support & Maintenance - On Premise,Mining Reports,Cgi It Uk Ltd,117613,-0.02
"Department for Business, Energy and Industrial Strategy",The Coal Authority,01/10/2021,Software Support & Maintenance - On Premise,Mining Reports,Cgi It Uk Ltd,117613,"3,388.38"
"Department for Business, Energy and Industrial Strategy",The Coal Authority,01/10/2021,Software Support & Maintenance - On Premise,PS&S - General Claims,Cgi It Uk Ltd,117613,"3,388.38"
"Department for Business, Energy and Industrial Strategy",The Coal Authority,01/10/2021,Software Support & Maintenance - On Premise,Tips Response,Cgi It Uk Ltd,117613,406.61
"Department for Business, Energy and Industrial Strategy",The Coal Authority,18/11/2021,Software Support & Maintenance - On Premise,DIG - Service & Assurance,Daisy Corporate Services Trading Services Ltd,117662,"28,675.00"
"Department for Business, Energy and Industrial Strategy",The Coal Authority,12/11/2021,Software Support & Maintenance - On Premise,DEV - Historic Property Liabilities,Cgi It Uk Ltd,118154,293.64
"Department for Business, Energy and Industrial Strategy",The Coal Authority,12/11/2021,Software Support & Maintenance - On Premise,DEV - Planning & Local Authority Liaison,Cgi It Uk Ltd,118154,440.45
"Department for Business, Energy and Industrial Strategy",The Coal Authority,12/11/2021,Software Support & Maintenance - On Premise,DIG - Data Licensing,Cgi It Uk Ltd,118154,"6,166.35"
"Department for Business, Energy and Industrial Strategy",The Coal Authority,12/11/2021,Software Support & Maintenance - On Premise,Mining Reports,Cgi It Uk Ltd,118154,"3,670.45"
"Department for Business, Energy and Industrial Strategy",The Coal Authority,12/11/2021,Software Support & Maintenance - On Premise,Mining Reports,Cgi It Uk Ltd,118154,-0.01
"Department for Business, Energy and Industrial Strategy",The Coal Authority,12/11/2021,Software Support & Maintenance - On Premise,PS&S - General Claims,Cgi It Uk Ltd,118154,"3,670.45"
"Department for Business, Energy and Industrial Strategy",The Coal Authority,12/11/2021,Software Support & Maintenance - On Premise,Tips Response,Cgi It Uk Ltd,118154,440.45
"Department for Business, Energy and Industrial Strategy",The Coal Authority,14/12/2021,Software Support & Maintenance - On Premise,DIG - Technical Delivery,Dell Corporation Ltd,118257,"2,698.00"
"Department for Business, Energy and Industrial Strategy",The Coal Authority,15/10/2021,Software Support & Maintenance - SaaS,DIG - Technical Delivery,Egress Software Technologies,116972,"6,250.00"
"Department for Business, Energy and Industrial Strategy",The Coal Authority,30/11/2021,Software Support & Maintenance - SaaS,Finance,Bottomline Technologies D/D,117614,166.11
"Department for Business, Energy and Industrial Strategy",The Coal Authority,30/11/2021,Software Support & Maintenance - SaaS,Finance,Bottomline Technologies D/D,117614,0.00
"Department for Business, Energy and Industrial Strategy",The Coal Authority,30/09/2021,Software Support & Maintenance - SaaS,Procurement,Wax Digital Ltd,118040,"2,975.00"
"Department for Business, Energy and Industrial Strategy",The Coal Authority,30/09/2021,Software Support & Maintenance - SaaS,Procurement,Wax Digital Ltd,118040,850.00
"Department for Business, Energy and Industrial Strategy",The Coal Authority,07/09/2021,Software Support & Maintenance - SaaS,DIG - Management,Ordnance Survey,118141,"5,600.00"
"Department for Business, Energy and Industrial Strategy",The Coal Authority,08/12/2021,Software Support & Maintenance - SaaS,DIG - Data Licensing,Nerc,118337,"3,753.04"
"Department for Business, Energy and Industrial Strategy",The Coal Authority,05/10/2021,Staff Events,Tips Response,Government Procurement Card,118626,374.32
"Department for Business, Energy and Industrial Strategy",The Coal Authority,23/11/2021,Staff Events,Heat & By-Product Innovation,Government Procurement Card,118629,330.50
"Department for Business, Energy and Industrial Strategy",The Coal Authority,25/11/2021,Staff Events,People & Organisational Development,Government Procurement Card,118629,30.00
"Department for Business, Energy and Industrial Strategy",The Coal Authority,26/11/2021,Staff Events,People & Organisational Development,Government Procurement Card,118629,32.46
"Department for Business, Energy and Industrial Strategy",The Coal Authority,26/11/2021,Staff Events,People & Organisational Development,Government Procurement Card,118629,13.33
"Department for Business, Energy and Industrial Strategy",The Coal Authority,28/11/2021,Staff Events,People & Organisational Development,Government Procurement Card,118629,42.20
"Department for Business, Energy and Industrial Strategy",The Coal Authority,30/11/2021,Staff Medicals,People & Organisational Development,Bupa Wellness Finance,118587,650.00
"Department for Business, Energy and Industrial Strategy",The Coal Authority,01/12/2021,Staff Medicals,People & Organisational Development,Bupa Wellness Finance,118588,650.00
"Department for Business, Energy and Industrial Strategy",The Coal Authority,08/11/2021,Stationery,PS&S - General Claims,Staff Expenses Control,117454,6.66
"Department for Business, Energy and Industrial Strategy",The Coal Authority,08/11/2021,Stationery,PS&S - General Claims,Staff Expenses Control,117454,5.41
"Department for Business, Energy and Industrial Strategy",The Coal Authority,22/11/2021,Stationery,PS&S - General Claims,Staff Expenses Control,117454,2.60
"Department for Business, Energy and Industrial Strategy",The Coal Authority,30/11/2021,Stationery,PS&S - General Claims,Staff Expenses Control,117454,1.08
"Department for Business, Energy and Industrial Strategy",The Coal Authority,01/12/2021,Stationery,PS&S - General Claims,Staff Expenses Control,117454,16.00
"Department for Business, Energy and Industrial Strategy",The Coal Authority,27/04/2021,Stationery,ENV - Technical,Staff Expenses Control,117907,3.33
"Department for Business, Energy and Industrial Strategy",The Coal Authority,13/09/2021,Stationery,ENV - Technical,Staff Expenses Control,117907,10.36
"Department for Business, Energy and Industrial Strategy",The Coal Authority,18/09/2021,Stationery,ENV - Technical,Staff Expenses Control,117907,5.94
"Department for Business, Energy and Industrial Strategy",The Coal Authority,15/11/2021,Stationery,ENV - Technical,Staff Expenses Control,117907,6.16
"Department for Business, Energy and Industrial Strategy",The Coal Authority,07/12/2021,Stationery,PS&S - General Claims,Staff Expenses Control,117907,1.33
"Department for Business, Energy and Industrial Strategy",The Coal Authority,15/12/2021,Stationery,Customer Services & Strategy,Imprint,118352,47.24
"Department for Business, Energy and Industrial Strategy",The Coal Authority,30/11/2021,Stationery,ENV - Technical,Staff Expenses Control,118477,3.59
"Department for Business, Energy and Industrial Strategy",The Coal Authority,20/10/2021,Stationery,Engineering,Government Procurement Card,118626,30.99
"Department for Business, Energy and Industrial Strategy",The Coal Authority,21/10/2021,Stationery,Engineering,Government Procurement Card,118626,16.68
"Department for Business, Energy and Industrial Strategy",The Coal Authority,03/11/2021,Stationery,PS&S - Industry Claims,Government Procurement Card,118629,16.64
"Department for Business, Energy and Industrial Strategy",The Coal Authority,11/11/2021,Stationery,PS&S - General Claims,Government Procurement Card,118629,16.23
"Department for Business, Energy and Industrial Strategy",The Coal Authority,13/11/2021,Stationery,PS&S - General Claims,Government Procurement Card,118629,21.18
"Department for Business, Energy and Industrial Strategy",The Coal Authority,23/11/2021,Stationery,PS&S - General Claims,Government Procurement Card,118629,5.05
"Department for Business, Energy and Industrial Strategy",The Coal Authority,25/11/2021,Stationery,PS&S - General Claims,Government Procurement Card,118629,12.48
"Department for Business, Energy and Industrial Strategy",The Coal Authority,26/11/2021,Stationery,Facilities,Government Procurement Card,118629,50.45
"Department for Business, Energy and Industrial Strategy",The Coal Authority,26/11/2021,Stationery,PS&S - General Claims,Government Procurement Card,118629,2.50
"Department for Business, Energy and Industrial Strategy",The Coal Authority,28/11/2021,Stationery,Facilities,Government Procurement Card,118629,104.94
"Department for Business, Energy and Industrial Strategy",The Coal Authority,29/11/2021,Stationery,Other Customers,Government Procurement Card,118629,5.57
"Department for Business, Energy and Industrial Strategy",The Coal Authority,29/11/2021,Subsidence - Contractor Costs,PS&S - General Claims,Compensation Payment,116964,"1,200.00"
"Department for Business, Energy and Industrial Strategy",The Coal Authority,29/11/2021,Subsidence - Contractor Costs,PS&S - General Claims,Compensation Payment,116965,94.46
"Department for Business, Energy and Industrial Strategy",The Coal Authority,30/11/2021,Subsidence - Contractor Costs,PS&S - General Claims,Compensation Payment,117046,330.00
"Department for Business, Energy and Industrial Strategy",The Coal Authority,19/11/2021,Subsidence - Contractor Costs,PS&S - Kellingley,Yorkshire Water,117167,25.44
"Department for Business, Energy and Industrial Strategy",The Coal Authority,30/11/2021,Subsidence - Contractor Costs,PS&S - Kellingley,Socotec,117169,164.80
"Department for Business, Energy and Industrial Strategy",The Coal Authority,30/11/2021,Subsidence - Contractor Costs,PS&S - Kellingley,Socotec,117169,20.00
"Department for Business, Energy and Industrial Strategy",The Coal Authority,02/12/2021,Subsidence - Contractor Costs,PS&S - General Claims,Cornerstone  Projects Ltd,117223,204.70
"Department for Business, Energy and Industrial Strategy",The Coal Authority,30/11/2021,Subsidence - Contractor Costs,PS&S - General Claims,AMC Removals UK Ltd,117277,0.00
"Department for Business, Energy and Industrial Strategy",The Coal Authority,30/11/2021,Subsidence - Contractor Costs,PS&S - General Claims,AMC Removals UK Ltd,117277,236.82
"Department for Business, Energy and Industrial Strategy",The Coal Authority,06/12/2021,Subsidence - Contractor Costs,PS&S - General Claims,Cornerstone  Projects Ltd,117413,253.70
"Department for Business, Energy and Industrial Strategy",The Coal Authority,06/12/2021,Subsidence - Contractor Costs,PS&S - General Claims,Cornerstone  Projects Ltd,117414,234.70
"Department for Business, Energy and Industrial Strategy",The Coal Authority,01/12/2021,Subsidence - Contractor Costs,PS&S - Kellingley,Compensation Payment,117417,"17,437.72"
"Department for Business, Energy and Industrial Strategy",The Coal Authority,01/12/2021,Subsidence - Contractor Costs,PS&S - General Claims,MGL Demolition Limited,117487,"1,308.42"
"Department for Business, Energy and Industrial Strategy",The Coal Authority,01/12/2021,Subsidence - Contractor Costs,PS&S - General Claims,MGL Demolition Limited,117488,"8,609.03"
"Department for Business, Energy and Industrial Strategy",The Coal Authority,31/12/2021,Subsidence - Contractor Costs,PS&S - General Claims,Ayrshire Letting & Sales Ltd,117664,"1,600.00"
"Department for Business, Energy and Industrial Strategy",The Coal Authority,01/12/2021,Subsidence - Contractor Costs,PS&S - General Claims,Ayrshire Letting & Sales Ltd,117670,"2,500.00"
"Department for Business, Energy and Industrial Strategy",The Coal Authority,31/12/2021,Subsidence - Contractor Costs,PS&S - General Claims,Ayrshire Letting & Sales Ltd,117671,"1,600.00"
"Department for Business, Energy and Industrial Strategy",The Coal Authority,31/12/2021,Subsidence - Contractor Costs,PS&S - General Claims,Ayrshire Letting & Sales Ltd,117672,"1,500.00"
"Department for Business, Energy and Industrial Strategy",The Coal Authority,07/12/2021,Subsidence - Contractor Costs,PS&S - General Claims,Geol-Consultants Ltd,117673,251.75
"Department for Business, Energy and Industrial Strategy",The Coal Authority,07/12/2021,Subsidence - Contractor Costs,PS&S - General Claims,Geol-Consultants Ltd,117673,"2,416.80"
"Department for Business, Energy and Industrial Strategy",The Coal Authority,07/12/2021,Subsidence - Contractor Costs,PS&S - General Claims,Geol-Consultants Ltd,117673,453.15
"Department for Business, Energy and Industrial Strategy",The Coal Authority,07/12/2021,Subsidence - Contractor Costs,PS&S - General Claims,Geol-Consultants Ltd,117673,35.85
"Department for Business, Energy and Industrial Strategy",The Coal Authority,07/12/2021,Subsidence - Contractor Costs,PS&S - General Claims,Geol-Consultants Ltd,117673,75.00
"Department for Business, Energy and Industrial Strategy",The Coal Authority,07/12/2021,Subsidence - Contractor Costs,PS&S - General Claims,Geol-Consultants Ltd,117673,135.95
"Department for Business, Energy and Industrial Strategy",The Coal Authority,07/12/2021,Subsidence - Contractor Costs,PS&S - General Claims,Geol-Consultants Ltd,117674,251.75
"Department for Business, Energy and Industrial Strategy",The Coal Authority,07/12/2021,Subsidence - Contractor Costs,PS&S - General Claims,Geol-Consultants Ltd,117674,"1,611.20"
"Department for Business, Energy and Industrial Strategy",The Coal Authority,07/12/2021,Subsidence - Contractor Costs,PS&S - General Claims,Geol-Consultants Ltd,117674,302.10
"Department for Business, Energy and Industrial Strategy",The Coal Authority,07/12/2021,Subsidence - Contractor Costs,PS&S - General Claims,Geol-Consultants Ltd,117674,23.47
"Department for Business, Energy and Industrial Strategy",The Coal Authority,07/12/2021,Subsidence - Contractor Costs,PS&S - General Claims,Geol-Consultants Ltd,117674,75.00
"Department for Business, Energy and Industrial Strategy",The Coal Authority,07/12/2021,Subsidence - Contractor Costs,PS&S - General Claims,Geol-Consultants Ltd,117674,90.35
"Department for Business, Energy and Industrial Strategy",The Coal Authority,30/11/2021,Subsidence - Contractor Costs,PS&S - Kellingley,Ray Holt Land Drainage Ltd,117676,"7,715.37"
"Department for Business, Energy and Industrial Strategy",The Coal Authority,09/12/2021,Subsidence - Contractor Costs,PS&S - General Claims,Compensation Payment,117686,330.00
"Department for Business, Energy and Industrial Strategy",The Coal Authority,10/12/2021,Subsidence - Contractor Costs,PS&S - General Claims,Compensation Payment,117687,330.00
"Department for Business, Energy and Industrial Strategy",The Coal Authority,04/08/2021,Subsidence - Contractor Costs,PS&S - General Claims,Christie Gillespie Consulting Engineers,117843,630.00
"Department for Business, Energy and Industrial Strategy",The Coal Authority,13/12/2021,Subsidence - Contractor Costs,PS&S - Thoresby,Compensation Payment,117913,930.81
"Department for Business, Energy and Industrial Strategy",The Coal Authority,13/12/2021,Subsidence - Contractor Costs,PS&S - Thoresby,Compensation Payment,117914,323.76
"Department for Business, Energy and Industrial Strategy",The Coal Authority,08/12/2021,Subsidence - Contractor Costs,PS&S - General Claims,Luddon Construction Limited,118074,"1,900.00"
"Department for Business, Energy and Industrial Strategy",The Coal Authority,30/11/2021,Subsidence - Contractor Costs,PS&S - General Claims,Mar Scaffolding Scotland Ltd,118101,502.00
"Department for Business, Energy and Industrial Strategy",The Coal Authority,22/12/2021,Subsidence - Contractor Costs,PS&S - General Claims,Ayrshire Letting & Sales Ltd,118113,"1,400.00"
"Department for Business, Energy and Industrial Strategy",The Coal Authority,14/12/2021,Subsidence - Contractor Costs,PS&S - General Claims,Christie Gillespie Consulting Engineers,118256,332.50
"Department for Business, Energy and Industrial Strategy",The Coal Authority,16/12/2021,Subsidence - Contractor Costs,PS&S - General Claims,Nal Plant Limited,118288,300.00
"Department for Business, Energy and Industrial Strategy",The Coal Authority,16/12/2021,Subsidence - Contractor Costs,PS&S - General Claims,Nal Plant Limited,118288,30.00
"Department for Business, Energy and Industrial Strategy",The Coal Authority,16/12/2021,Subsidence - Contractor Costs,PS&S - General Claims,Nal Plant Limited,118290,35.00
"Department for Business, Energy and Industrial Strategy",The Coal Authority,16/12/2021,Subsidence - Contractor Costs,PS&S - General Claims,Nal Plant Limited,118290,6.00
"Department for Business, Energy and Industrial Strategy",The Coal Authority,16/12/2021,Subsidence - Contractor Costs,PS&S - General Claims,Nal Plant Limited,118290,6.00
"Department for Business, Energy and Industrial Strategy",The Coal Authority,16/12/2021,Subsidence - Contractor Costs,PS&S - General Claims,Nal Plant Limited,118290,2.00
"Department for Business, Energy and Industrial Strategy",The Coal Authority,16/12/2021,Subsidence - Contractor Costs,PS&S - General Claims,Nal Plant Limited,118290,7.90
"Department for Business, Energy and Industrial Strategy",The Coal Authority,16/12/2021,Subsidence - Contractor Costs,PS&S - General Claims,Nal Plant Limited,118290,0.00
"Department for Business, Energy and Industrial Strategy",The Coal Authority,16/12/2021,Subsidence - Contractor Costs,PS&S - General Claims,Nal Plant Limited,118290,93.04
"Department for Business, Energy and Industrial Strategy",The Coal Authority,16/12/2021,Subsidence - Contractor Costs,PS&S - General Claims,Nal Plant Limited,118290,208.00
"Department for Business, Energy and Industrial Strategy",The Coal Authority,16/12/2021,Subsidence - Contractor Costs,PS&S - General Claims,Nal Plant Limited,118290,141.52
"Department for Business, Energy and Industrial Strategy",The Coal Authority,16/12/2021,Subsidence - Contractor Costs,PS&S - General Claims,Nal Plant Limited,118290,160.00
"Department for Business, Energy and Industrial Strategy",The Coal Authority,16/12/2021,Subsidence - Contractor Costs,PS&S - General Claims,Nal Plant Limited,118290,13.32
"Department for Business, Energy and Industrial Strategy",The Coal Authority,16/12/2021,Subsidence - Contractor Costs,PS&S - General Claims,Nal Plant Limited,118290,30.00
"Department for Business, Energy and Industrial Strategy",The Coal Authority,16/12/2021,Subsidence - Contractor Costs,PS&S - General Claims,Compensation Payment,118303,550.99
"Department for Business, Energy and Industrial Strategy",The Coal Authority,16/12/2021,Subsidence - Contractor Costs,PS&S - Kellingley,Slater Brothers Whitley Limited - In Liquidation,118304,"31,750.00"
"Department for Business, Energy and Industrial Strategy",The Coal Authority,16/12/2021,Subsidence - Contractor Costs,PS&S - Kellingley,Slater Brothers Whitley Limited - In Liquidation,118305,"2,745.00"
"Department for Business, Energy and Industrial Strategy",The Coal Authority,21/12/2021,Subsidence - Contractor Costs,PS&S - Thoresby,Cornerstone  Projects Ltd,118536,240.83
"Department for Business, Energy and Industrial Strategy",The Coal Authority,10/11/2021,Subsidence - Contractor Costs,PS&S - General Claims,Government Procurement Card,118629,259.00
"Department for Business, Energy and Industrial Strategy",The Coal Authority,10/11/2021,Subsidence - Contractor Costs,PS&S - General Claims,Government Procurement Card,118629,43.33
"Department for Business, Energy and Industrial Strategy",The Coal Authority,25/11/2021,Subsidence - Contractor Costs,PS&S - General Claims,Government Procurement Card,118629,86.48
"Department for Business, Energy and Industrial Strategy",The Coal Authority,26/11/2021,Subsidence - Contractor Costs,PS&S - General Claims,Government Procurement Card,118629,174.79
"Department for Business, Energy and Industrial Strategy",The Coal Authority,21/12/2021,Subsidence - Contractor Costs,PS&S - General Claims,Compensation Payment,118666,"1,200.00"
"Department for Business, Energy and Industrial Strategy",The Coal Authority,18/10/2021,Subsidence - Equipment,Engineering,Government Procurement Card,118626,204.10
"Department for Business, Energy and Industrial Strategy",The Coal Authority,21/10/2021,Subsidence - Equipment,ENV - Technical,Government Procurement Card,118626,30.05
"Department for Business, Energy and Industrial Strategy",The Coal Authority,18/10/2021,Subsidence - Equipment,Engineering,Government Procurement Card,118719,-204.10
"Department for Business, Energy and Industrial Strategy",The Coal Authority,09/12/2021,Subsidence Pumping Maintenance - Ad Hoc,ENV - Mine Water Operations,Severn Trent Serv Ops Uk Ltd,118246,963.92
"Department for Business, Energy and Industrial Strategy",The Coal Authority,22/11/2021,Subsidence Pumping Maintenance - Power,DEFRA LEP Funding,IMServ Europe Limited,118394,28.18
"Department for Business, Energy and Industrial Strategy",The Coal Authority,22/11/2021,Subsidence Pumping Maintenance - Power,DEFRA LEP Funding,IMServ Europe Limited,118394,0.00
"Department for Business, Energy and Industrial Strategy",The Coal Authority,17/12/2021,Subsidence Pumping Maintenance - Power,ENV - Mine Water Operations,RA & RL Smith Ltd,118398,"1,400.00"
"Department for Business, Energy and Industrial Strategy",The Coal Authority,25/10/2021,Subsistence Allowances,PS&S - Industry Claims,Staff Expenses Control,117454,3.49
"Department for Business, Energy and Industrial Strategy",The Coal Authority,26/10/2021,Subsistence Allowances,PS&S - Industry Claims,Staff Expenses Control,117454,8.62
"Department for Business, Energy and Industrial Strategy",The Coal Authority,01/11/2021,Subsistence Allowances,Tips Response,Staff Expenses Control,117454,3.75
"Department for Business, Energy and Industrial Strategy",The Coal Authority,01/11/2021,Subsistence Allowances,Tips Response,Staff Expenses Control,117454,24.90
"Department for Business, Energy and Industrial Strategy",The Coal Authority,02/11/2021,Subsistence Allowances,Tips Response,Staff Expenses Control,117454,1.67
"Department for Business, Energy and Industrial Strategy",The Coal Authority,02/11/2021,Subsistence Allowances,Tips Response,Staff Expenses Control,117454,3.95
"Department for Business, Energy and Industrial Strategy",The Coal Authority,04/11/2021,Subsistence Allowances,Engineering,Staff Expenses Control,117454,7.47
"Department for Business, Energy and Industrial Strategy",The Coal Authority,04/11/2021,Subsistence Allowances,Engineering,Staff Expenses Control,117454,2.30
"Department for Business, Energy and Industrial Strategy",The Coal Authority,09/11/2021,Subsistence Allowances,Engineering,Staff Expenses Control,117454,4.40
"Department for Business, Energy and Industrial Strategy",The Coal Authority,17/11/2021,Subsistence Allowances,DEFRA Metal Mine Programme,Staff Expenses Control,117454,6.60
"Department for Business, Energy and Industrial Strategy",The Coal Authority,17/11/2021,Subsistence Allowances,DEFRA Metal Mine Programme,Staff Expenses Control,117454,22.25
"Department for Business, Energy and Industrial Strategy",The Coal Authority,18/11/2021,Subsistence Allowances,DEFRA Metal Mine Programme,Staff Expenses Control,117454,3.29
"Department for Business, Energy and Industrial Strategy",The Coal Authority,19/11/2021,Subsistence Allowances,DEFRA Metal Mine Programme,Staff Expenses Control,117454,2.09
"Department for Business, Energy and Industrial Strategy",The Coal Authority,23/11/2021,Subsistence Allowances,PS&S - Industry Claims,Staff Expenses Control,117454,3.49
"Department for Business, Energy and Industrial Strategy",The Coal Authority,29/11/2021,Subsistence Allowances,DEV - Property Management,Staff Expenses Control,117454,3.54
"Department for Business, Energy and Industrial Strategy",The Coal Authority,30/11/2021,Subsistence Allowances,DEV - Property Management,Staff Expenses Control,117454,5.30
"Department for Business, Energy and Industrial Strategy",The Coal Authority,01/12/2021,Subsistence Allowances,ENV - Technical,Staff Expenses Control,117454,5.00
"Department for Business, Energy and Industrial Strategy",The Coal Authority,13/09/2021,Subsistence Allowances,Heat & By-Product Innovation,Staff Expenses Control,117907,9.58
"Department for Business, Energy and Industrial Strategy",The Coal Authority,15/10/2021,Subsistence Allowances,DEV - Planning & Local Authority Liaison,Staff Expenses Control,117907,2.76
"Department for Business, Energy and Industrial Strategy",The Coal Authority,15/10/2021,Subsistence Allowances,DEV - Planning & Local Authority Liaison,Staff Expenses Control,117907,2.76
"Department for Business, Energy and Industrial Strategy",The Coal Authority,15/10/2021,Subsistence Allowances,DEV - Planning & Local Authority Liaison,Staff Expenses Control,117907,2.71
"Department for Business, Energy and Industrial Strategy",The Coal Authority,15/10/2021,Subsistence Allowances,DEV - Planning & Local Authority Liaison,Staff Expenses Control,117907,2.76
"Department for Business, Energy and Industrial Strategy",The Coal Authority,15/10/2021,Subsistence Allowances,DEV - Planning & Local Authority Liaison,Staff Expenses Control,117907,2.76
"Department for Business, Energy and Industrial Strategy",The Coal Authority,15/10/2021,Subsistence Allowances,DEV - Planning & Local Authority Liaison,Staff Expenses Control,117907,2.76
"Department for Business, Energy and Industrial Strategy",The Coal Authority,15/10/2021,Subsistence Allowances,DEV - Planning & Local Authority Liaison,Staff Expenses Control,117907,2.76
"Department for Business, Energy and Industrial Strategy",The Coal Authority,15/10/2021,Subsistence Allowances,DEV - Planning & Local Authority Liaison,Staff Expenses Control,117907,2.76
"Department for Business, Energy and Industrial Strategy",The Coal Authority,15/10/2021,Subsistence Allowances,DEV - Planning & Local Authority Liaison,Staff Expenses Control,117907,2.76
"Department for Business, Energy and Industrial Strategy",The Coal Authority,15/10/2021,Subsistence Allowances,DEV - Planning & Local Authority Liaison,Staff Expenses Control,117907,2.76
"Department for Business, Energy and Industrial Strategy",The Coal Authority,22/10/2021,Subsistence Allowances,Innovation By-Product & Services Delivery,Staff Expenses Control,117907,7.05
"Department for Business, Energy and Industrial Strategy",The Coal Authority,12/11/2021,Subsistence Allowances,Executive,Staff Expenses Control,117907,8.43
"Department for Business, Energy and Industrial Strategy",The Coal Authority,18/11/2021,Subsistence Allowances,NRW Metal Mine Programme,Staff Expenses Control,117907,2.62
"Department for Business, Energy and Industrial Strategy",The Coal Authority,18/11/2021,Subsistence Allowances,NRW Metal Mine Programme,Staff Expenses Control,117907,2.78
"Department for Business, Energy and Industrial Strategy",The Coal Authority,30/11/2021,Subsistence Allowances,Heat & By-Product Innovation,Staff Expenses Control,117907,7.44
"Department for Business, Energy and Industrial Strategy",The Coal Authority,30/11/2021,Subsistence Allowances,Heat & By-Product Innovation,Staff Expenses Control,117907,7.44
"Department for Business, Energy and Industrial Strategy",The Coal Authority,30/11/2021,Subsistence Allowances,Heat & By-Product Innovation,Staff Expenses Control,117907,7.44
"Department for Business, Energy and Industrial Strategy",The Coal Authority,30/11/2021,Subsistence Allowances,Heat & By-Product Innovation,Staff Expenses Control,117907,7.44
"Department for Business, Energy and Industrial Strategy",The Coal Authority,30/11/2021,Subsistence Allowances,Heat & By-Product Innovation,Staff Expenses Control,117907,7.44
"Department for Business, Energy and Industrial Strategy",The Coal Authority,30/11/2021,Subsistence Allowances,Heat & By-Product Innovation,Staff Expenses Control,117907,7.44
"Department for Business, Energy and Industrial Strategy",The Coal Authority,30/11/2021,Subsistence Allowances,Heat & By-Product Innovation,Staff Expenses Control,117907,7.44
"Department for Business, Energy and Industrial Strategy",The Coal Authority,30/11/2021,Subsistence Allowances,Heat & By-Product Innovation,Staff Expenses Control,117907,7.44
"Department for Business, Energy and Industrial Strategy",The Coal Authority,08/12/2021,Subsistence Allowances,DEFRA Metal Mine Programme,Staff Expenses Control,117907,3.16
"Department for Business, Energy and Industrial Strategy",The Coal Authority,08/12/2021,Subsistence Allowances,DEFRA Metal Mine Programme,Staff Expenses Control,117907,7.75
"Department for Business, Energy and Industrial Strategy",The Coal Authority,17/11/2021,Subsistence Allowances,DEFRA Metal Mine Programme,Staff Expenses Control,118477,6.00
"Department for Business, Energy and Industrial Strategy",The Coal Authority,18/11/2021,Subsistence Allowances,DEFRA Metal Mine Programme,Staff Expenses Control,118477,4.95
"Department for Business, Energy and Industrial Strategy",The Coal Authority,18/11/2021,Subsistence Allowances,DEFRA Metal Mine Programme,Staff Expenses Control,118477,25.55
"Department for Business, Energy and Industrial Strategy",The Coal Authority,18/11/2021,Subsistence Allowances,DEFRA Metal Mine Programme,Staff Expenses Control,118477,25.55
"Department for Business, Energy and Industrial Strategy",The Coal Authority,19/11/2021,Subsistence Allowances,DEFRA Metal Mine Programme,Staff Expenses Control,118477,28.50
"Department for Business, Energy and Industrial Strategy",The Coal Authority,24/11/2021,Subsistence Allowances,Innovation By-Product & Services Delivery,Staff Expenses Control,118477,8.13
"Department for Business, Energy and Industrial Strategy",The Coal Authority,06/12/2021,Subsistence Allowances,Innovation By-Product & Services Delivery,Staff Expenses Control,118477,25.13
"Department for Business, Energy and Industrial Strategy",The Coal Authority,06/12/2021,Subsistence Allowances,Innovation By-Product & Services Delivery,Staff Expenses Control,118477,1.58
"Department for Business, Energy and Industrial Strategy",The Coal Authority,08/12/2021,Subsistence Allowances,Innovation By-Product & Services Delivery,Staff Expenses Control,118477,14.25
"Department for Business, Energy and Industrial Strategy",The Coal Authority,08/12/2021,Subsistence Allowances,PS&S - General Claims,Staff Expenses Control,118477,6.98
"Department for Business, Energy and Industrial Strategy",The Coal Authority,09/12/2021,Subsistence Allowances,ENV - Projects & Delivery,Staff Expenses Control,118477,6.60
"Department for Business, Energy and Industrial Strategy",The Coal Authority,09/12/2021,Subsistence Allowances,PS&S - General Claims,Staff Expenses Control,118477,10.00
"Department for Business, Energy and Industrial Strategy",The Coal Authority,10/12/2021,Subsistence Allowances,ENV - Technical,Staff Expenses Control,118477,3.51
"Department for Business, Energy and Industrial Strategy",The Coal Authority,13/12/2021,Subsistence Allowances,PS&S - General Claims,Staff Expenses Control,118477,2.35
"Department for Business, Energy and Industrial Strategy",The Coal Authority,13/12/2021,Subsistence Allowances,PS&S - General Claims,Staff Expenses Control,118477,17.00
"Department for Business, Energy and Industrial Strategy",The Coal Authority,14/12/2021,Subsistence Allowances,DEFRA LEP Funding,Staff Expenses Control,118477,17.63
"Department for Business, Energy and Industrial Strategy",The Coal Authority,14/12/2021,Subsistence Allowances,PS&S - General Claims,Staff Expenses Control,118477,7.97
"Department for Business, Energy and Industrial Strategy",The Coal Authority,15/12/2021,Subsistence Allowances,PS&S - General Claims,Staff Expenses Control,118477,14.89
"Department for Business, Energy and Industrial Strategy",The Coal Authority,15/12/2021,Subsistence Allowances,PS&S - General Claims,Staff Expenses Control,118477,5.16
"Department for Business, Energy and Industrial Strategy",The Coal Authority,15/12/2021,Subsistence Allowances,PS&S - General Claims,Staff Expenses Control,118477,17.91
"Department for Business, Energy and Industrial Strategy",The Coal Authority,16/12/2021,Subsistence Allowances,PS&S - General Claims,Staff Expenses Control,118477,7.41
"Department for Business, Energy and Industrial Strategy",The Coal Authority,02/09/2021,Subsistence Allowances,ENV - Mine Water Operations,Government Procurement Card,118625,6.61
"Department for Business, Energy and Industrial Strategy",The Coal Authority,03/09/2021,Subsistence Allowances,ENV - Mine Water Operations,Government Procurement Card,118625,3.50
"Department for Business, Energy and Industrial Strategy",The Coal Authority,03/09/2021,Subsistence Allowances,ENV - Mine Water Operations,Government Procurement Card,118625,4.08
"Department for Business, Energy and Industrial Strategy",The Coal Authority,07/09/2021,Subsistence Allowances,ENV - Mine Water Operations,Government Procurement Card,118625,5.00
"Department for Business, Energy and Industrial Strategy",The Coal Authority,07/09/2021,Subsistence Allowances,ENV - Mine Water Operations,Government Procurement Card,118625,4.95
"Department for Business, Energy and Industrial Strategy",The Coal Authority,21/09/2021,Subsistence Allowances,ENV - Mine Water Operations,Government Procurement Card,118625,1.85
"Department for Business, Energy and Industrial Strategy",The Coal Authority,21/09/2021,Subsistence Allowances,ENV - Mine Water Operations,Government Procurement Card,118625,4.65
"Department for Business, Energy and Industrial Strategy",The Coal Authority,22/09/2021,Subsistence Allowances,ENV - Mine Water Operations,Government Procurement Card,118625,4.74
"Department for Business, Energy and Industrial Strategy",The Coal Authority,30/09/2021,Subsistence Allowances,ENV - Technical,Government Procurement Card,118626,4.40
"Department for Business, Energy and Industrial Strategy",The Coal Authority,01/10/2021,Subsistence Allowances,ENV - Technical,Government Procurement Card,118626,7.45
"Department for Business, Energy and Industrial Strategy",The Coal Authority,04/10/2021,Subsistence Allowances,Tips Response,Government Procurement Card,118626,17.75
"Department for Business, Energy and Industrial Strategy",The Coal Authority,04/10/2021,Subsistence Allowances,Tips Response,Government Procurement Card,118626,4.02
"Department for Business, Energy and Industrial Strategy",The Coal Authority,05/10/2021,Subsistence Allowances,Innovation By-Product & Services Delivery,Government Procurement Card,118626,5.04
"Department for Business, Energy and Industrial Strategy",The Coal Authority,05/10/2021,Subsistence Allowances,Innovation By-Product & Services Delivery,Government Procurement Card,118626,5.04
"Department for Business, Energy and Industrial Strategy",The Coal Authority,05/10/2021,Subsistence Allowances,Innovation By-Product & Services Delivery,Government Procurement Card,118626,5.21
"Department for Business, Energy and Industrial Strategy",The Coal Authority,05/10/2021,Subsistence Allowances,Tips Response,Government Procurement Card,118626,3.16
"Department for Business, Energy and Industrial Strategy",The Coal Authority,06/10/2021,Subsistence Allowances,Tips Response,Government Procurement Card,118626,22.40
"Department for Business, Energy and Industrial Strategy",The Coal Authority,06/10/2021,Subsistence Allowances,Tips Response,Government Procurement Card,118626,4.45
"Department for Business, Energy and Industrial Strategy",The Coal Authority,07/10/2021,Subsistence Allowances,Tips Response,Government Procurement Card,118626,6.78
"Department for Business, Energy and Industrial Strategy",The Coal Authority,10/10/2021,Subsistence Allowances,"Health, Safety & Wellbeing",Government Procurement Card,118626,7.35
"Department for Business, Energy and Industrial Strategy",The Coal Authority,11/10/2021,Subsistence Allowances,ENV - Mine Water Operations,Government Procurement Card,118626,23.28
"Department for Business, Energy and Industrial Strategy",The Coal Authority,11/10/2021,Subsistence Allowances,ENV - Technical,Government Procurement Card,118626,23.28
"Department for Business, Energy and Industrial Strategy",The Coal Authority,11/10/2021,Subsistence Allowances,"Health, Safety & Wellbeing",Government Procurement Card,118626,23.28
"Department for Business, Energy and Industrial Strategy",The Coal Authority,11/10/2021,Subsistence Allowances,"Health, Safety & Wellbeing",Government Procurement Card,118626,2.33
"Department for Business, Energy and Industrial Strategy",The Coal Authority,11/10/2021,Subsistence Allowances,Incident & Emergency Response,Government Procurement Card,118626,23.31
"Department for Business, Energy and Industrial Strategy",The Coal Authority,12/10/2021,Subsistence Allowances,ENV - Mine Water Operations,Government Procurement Card,118626,30.00
"Department for Business, Energy and Industrial Strategy",The Coal Authority,12/10/2021,Subsistence Allowances,ENV - Technical,Government Procurement Card,118626,30.00
"Department for Business, Energy and Industrial Strategy",The Coal Authority,12/10/2021,Subsistence Allowances,"Health, Safety & Wellbeing",Government Procurement Card,118626,30.00
"Department for Business, Energy and Industrial Strategy",The Coal Authority,12/10/2021,Subsistence Allowances,Incident & Emergency Response,Government Procurement Card,118626,30.40
"Department for Business, Energy and Industrial Strategy",The Coal Authority,13/10/2021,Subsistence Allowances,ENV - Projects & Delivery,Government Procurement Card,118626,9.84
"Department for Business, Energy and Industrial Strategy",The Coal Authority,13/10/2021,Subsistence Allowances,ENV - Projects & Delivery,Government Procurement Card,118626,3.86
"Department for Business, Energy and Industrial Strategy",The Coal Authority,13/10/2021,Subsistence Allowances,ENV - Projects & Delivery,Government Procurement Card,118626,2.44
"Department for Business, Energy and Industrial Strategy",The Coal Authority,13/10/2021,Subsistence Allowances,"Health, Safety & Wellbeing",Government Procurement Card,118626,1.83
"Department for Business, Energy and Industrial Strategy",The Coal Authority,13/10/2021,Subsistence Allowances,"Health, Safety & Wellbeing",Government Procurement Card,118626,9.06
"Department for Business, Energy and Industrial Strategy",The Coal Authority,14/10/2021,Subsistence Allowances,ENV - Mine Water Operations,Government Procurement Card,118626,4.50
"Department for Business, Energy and Industrial Strategy",The Coal Authority,14/10/2021,Subsistence Allowances,Innovation By-Product & Services Delivery,Government Procurement Card,118626,6.97
"Department for Business, Energy and Industrial Strategy",The Coal Authority,17/10/2021,Subsistence Allowances,Tip Management Services,Government Procurement Card,118626,6.21
"Department for Business, Energy and Industrial Strategy",The Coal Authority,18/10/2021,Subsistence Allowances,Tip Management Services,Government Procurement Card,118626,25.00
"Department for Business, Energy and Industrial Strategy",The Coal Authority,19/10/2021,Subsistence Allowances,Heat & By-Product Innovation,Government Procurement Card,118626,2.68
"Department for Business, Energy and Industrial Strategy",The Coal Authority,19/10/2021,Subsistence Allowances,Heat & By-Product Innovation,Government Procurement Card,118626,8.35
"Department for Business, Energy and Industrial Strategy",The Coal Authority,19/10/2021,Subsistence Allowances,Heat & By-Product Innovation,Government Procurement Card,118626,3.29
"Department for Business, Energy and Industrial Strategy",The Coal Authority,19/10/2021,Subsistence Allowances,Heat & By-Product Innovation,Government Procurement Card,118626,18.46
"Department for Business, Energy and Industrial Strategy",The Coal Authority,19/10/2021,Subsistence Allowances,Heat & By-Product Innovation,Government Procurement Card,118626,18.46
"Department for Business, Energy and Industrial Strategy",The Coal Authority,19/10/2021,Subsistence Allowances,Heat & By-Product Innovation,Government Procurement Card,118626,18.46
"Department for Business, Energy and Industrial Strategy",The Coal Authority,19/10/2021,Subsistence Allowances,Heat & By-Product Innovation,Government Procurement Card,118626,5.17
"Department for Business, Energy and Industrial Strategy",The Coal Authority,19/10/2021,Subsistence Allowances,Heat & By-Product Innovation,Government Procurement Card,118626,15.15
"Department for Business, Energy and Industrial Strategy",The Coal Authority,19/10/2021,Subsistence Allowances,Heat & By-Product Innovation,Government Procurement Card,118626,5.00
"Department for Business, Energy and Industrial Strategy",The Coal Authority,19/10/2021,Subsistence Allowances,Heat & By-Product Innovation,Government Procurement Card,118626,3.25
"Department for Business, Energy and Industrial Strategy",The Coal Authority,19/10/2021,Subsistence Allowances,NRW Metal Mine Programme,Government Procurement Card,118626,21.65
"Department for Business, Energy and Industrial Strategy",The Coal Authority,19/10/2021,Subsistence Allowances,NRW Metal Mine Programme,Government Procurement Card,118626,3.50
"Department for Business, Energy and Industrial Strategy",The Coal Authority,19/10/2021,Subsistence Allowances,NRW Metal Mine Programme,Government Procurement Card,118626,2.40
"Department for Business, Energy and Industrial Strategy",The Coal Authority,19/10/2021,Subsistence Allowances,NRW Metal Mine Programme,Government Procurement Card,118626,21.66
"Department for Business, Energy and Industrial Strategy",The Coal Authority,19/10/2021,Subsistence Allowances,NRW Metal Mine Programme,Government Procurement Card,118626,21.65
"Department for Business, Energy and Industrial Strategy",The Coal Authority,19/10/2021,Subsistence Allowances,NRW Metal Mine Programme,Government Procurement Card,118626,21.65
"Department for Business, Energy and Industrial Strategy",The Coal Authority,19/10/2021,Subsistence Allowances,NRW Metal Mine Programme,Government Procurement Card,118626,21.65
"Department for Business, Energy and Industrial Strategy",The Coal Authority,19/10/2021,Subsistence Allowances,NRW Metal Mine Programme,Government Procurement Card,118626,21.65
"Department for Business, Energy and Industrial Strategy",The Coal Authority,19/10/2021,Subsistence Allowances,NRW Metal Mine Programme,Government Procurement Card,118626,4.80
"Department for Business, Energy and Industrial Strategy",The Coal Authority,19/10/2021,Subsistence Allowances,Tip Management Services,Government Procurement Card,118626,22.80
"Department for Business, Energy and Industrial Strategy",The Coal Authority,19/10/2021,Subsistence Allowances,Tips Response,Government Procurement Card,118626,2.03
"Department for Business, Energy and Industrial Strategy",The Coal Authority,20/10/2021,Subsistence Allowances,Heat & By-Product Innovation,Government Procurement Card,118626,8.27
"Department for Business, Energy and Industrial Strategy",The Coal Authority,20/10/2021,Subsistence Allowances,Heat & By-Product Innovation,Government Procurement Card,118626,5.69
"Department for Business, Energy and Industrial Strategy",The Coal Authority,20/10/2021,Subsistence Allowances,Tip Management Services,Government Procurement Card,118626,3.37
"Department for Business, Energy and Industrial Strategy",The Coal Authority,21/10/2021,Subsistence Allowances,Executive,Government Procurement Card,118626,5.77
"Department for Business, Energy and Industrial Strategy",The Coal Authority,26/10/2021,Subsistence Allowances,Tip Management Services,Government Procurement Card,118626,21.35
"Department for Business, Energy and Industrial Strategy",The Coal Authority,26/10/2021,Subsistence Allowances,Tip Management Services,Government Procurement Card,118626,7.18
"Department for Business, Energy and Industrial Strategy",The Coal Authority,27/10/2021,Subsistence Allowances,Tip Management Services,Government Procurement Card,118626,7.32
"Department for Business, Energy and Industrial Strategy",The Coal Authority,27/10/2021,Subsistence Allowances,Tips Response,Government Procurement Card,118626,12.55
"Department for Business, Energy and Industrial Strategy",The Coal Authority,28/10/2021,Subsistence Allowances,Innovation By-Product & Services Delivery,Government Procurement Card,118626,6.55
"Department for Business, Energy and Industrial Strategy",The Coal Authority,28/10/2021,Subsistence Allowances,Innovation By-Product & Services Delivery,Government Procurement Card,118626,6.55
"Department for Business, Energy and Industrial Strategy",The Coal Authority,03/11/2021,Subsistence Allowances,ENV - Mine Water Operations,Government Procurement Card,118629,21.47
"Department for Business, Energy and Industrial Strategy",The Coal Authority,03/11/2021,Subsistence Allowances,ENV - Mine Water Operations,Government Procurement Card,118629,5.98
"Department for Business, Energy and Industrial Strategy",The Coal Authority,03/11/2021,Subsistence Allowances,ENV - Technical,Government Procurement Card,118629,16.50
"Department for Business, Energy and Industrial Strategy",The Coal Authority,03/11/2021,Subsistence Allowances,ENV - Technical,Government Procurement Card,118629,1.87
"Department for Business, Energy and Industrial Strategy",The Coal Authority,03/11/2021,Subsistence Allowances,ENV - Technical,Government Procurement Card,118629,2.85
"Department for Business, Energy and Industrial Strategy",The Coal Authority,03/11/2021,Subsistence Allowances,Innovation By-Product & Services Delivery,Government Procurement Card,118629,4.44
"Department for Business, Energy and Industrial Strategy",The Coal Authority,04/11/2021,Subsistence Allowances,DEV - Mine Heat Licensing,Government Procurement Card,118629,3.99
"Department for Business, Energy and Industrial Strategy",The Coal Authority,04/11/2021,Subsistence Allowances,DEV - Permissions,Government Procurement Card,118629,4.08
"Department for Business, Energy and Industrial Strategy",The Coal Authority,04/11/2021,Subsistence Allowances,NRW Metal Mine Programme,Government Procurement Card,118629,4.69
"Department for Business, Energy and Industrial Strategy",The Coal Authority,04/11/2021,Subsistence Allowances,NRW Metal Mine Programme,Government Procurement Card,118629,1.96
"Department for Business, Energy and Industrial Strategy",The Coal Authority,04/11/2021,Subsistence Allowances,PS&S - General Claims,Government Procurement Card,118629,5.05
"Department for Business, Energy and Industrial Strategy",The Coal Authority,04/11/2021,Subsistence Allowances,PS&S - General Claims,Government Procurement Card,118629,2.76
"Department for Business, Energy and Industrial Strategy",The Coal Authority,05/11/2021,Subsistence Allowances,DEFRA Metal Mine Programme,Government Procurement Card,118629,6.86
"Department for Business, Energy and Industrial Strategy",The Coal Authority,05/11/2021,Subsistence Allowances,DEFRA Metal Mine Programme,Government Procurement Card,118629,6.87
"Department for Business, Energy and Industrial Strategy",The Coal Authority,08/11/2021,Subsistence Allowances,DEV - Planning & Local Authority Liaison,Government Procurement Card,118629,11.35
"Department for Business, Energy and Industrial Strategy",The Coal Authority,08/11/2021,Subsistence Allowances,DEV - Planning & Local Authority Liaison,Government Procurement Card,118629,11.00
"Department for Business, Energy and Industrial Strategy",The Coal Authority,08/11/2021,Subsistence Allowances,DEV - Planning & Local Authority Liaison,Government Procurement Card,118629,11.00
"Department for Business, Energy and Industrial Strategy",The Coal Authority,08/11/2021,Subsistence Allowances,DEV - Planning & Local Authority Liaison,Government Procurement Card,118629,11.00
"Department for Business, Energy and Industrial Strategy",The Coal Authority,08/11/2021,Subsistence Allowances,ENV - Mine Water Operations,Government Procurement Card,118629,23.07
"Department for Business, Energy and Industrial Strategy",The Coal Authority,08/11/2021,Subsistence Allowances,ENV - Mine Water Operations,Government Procurement Card,118629,5.15
"Department for Business, Energy and Industrial Strategy",The Coal Authority,09/11/2021,Subsistence Allowances,ENV - Mine Water Operations,Government Procurement Card,118629,7.96
